Workbook

Sheet MOG
A1: 2020 | B1: مغلفات | D1: =ALL!C1 -> 2020-12-01
A2: كانون اول | B2: رمز | C2: المنصرم | D2: =ALL!C2 -> 02/12/ | AK2: مغلفات مستلمة | AL2: مغلفات مستلمة+ المنصرم | AM2: مغلفات غير مسلّمة
A3: بيروت | B3: A | C3: 11 | D3: =IFERROR(VLOOKUP($A3&$B3,CHOOSE({1,2},ALL!$A$4:$A$500&ALL!$B$4:$B$500,ALL!$C$4:$C$500),2,FALSE),"") -> 4 | AK3: =SUM(D3:AH3) -> 4 | AL3: =SUM(AK3+C3) -> 15 | AM3: 0
A4: بعبدا | B4: B1 | C4: 0 | D4: =IFERROR(VLOOKUP($A4&$B4,CHOOSE({1,2},ALL!$A$4:$A$500&ALL!$B$4:$B$500,ALL!$C$4:$C$500),2,FALSE),"") -> 3 | AK4: =SUM(D4:AH4) -> 3 | AL4: =SUM(AK4+C4) -> 3 | AM4: 3
A5: بكفيا | B5: B10 | C5: 11 | D5: =IFERROR(VLOOKUP($A5&$B5,CHOOSE({1,2},ALL!$A$4:$A$500&ALL!$B$4:$B$500,ALL!$C$4:$C$500),2,FALSE),"") -> 4 | AK5: 4 | AL5: 15 | AM5: 4
A6: المتن الشمالي العالي | B6: B11 | C6: 7 | D6: =IFERROR(VLOOKUP($A6&$B6,CHOOSE({1,2},ALL!$A$4:$A$500&ALL!$B$4:$B$500,ALL!$C$4:$C$500),2,FALSE),"") -> 5 | AK6: 5 | AL6: 12 | AM6: 5
A7: كسروان | B7: B12 | C7: 30 | D7: =IFERROR(VLOOKUP($A7&$B7,CHOOSE({1,2},ALL!$A$4:$A$500&ALL!$B$4:$B$500,ALL!$C$4:$C$500),2,FALSE),"") -> 12 | AK7: 12 | AL7: 42 | AM7: 12
A8: جبيل | B8: B13 | C8: 12 | D8: =IFERROR(VLOOKUP($A8&$B8,CHOOSE({1,2},ALL!$A$4:$A$500&ALL!$B$4:$B$500,ALL!$C$4:$C$500),2,FALSE),"") -> 0 | AK8: 0 | AL8: 12 | AM8: 0
A9: فتوح كسروان | B9: B14 | C9: 13 | D9: =IFERROR(VLOOKUP($A9&$B9,CHOOSE({1,2},ALL!$A$4:$A$500&ALL!$B$4:$B$500,ALL!$C$4:$C$500),2,FALSE),"") -> 4 | AK9: 4 | AL9: 17 | AM9: 4
A10: الشويفات | B10: B2 | C10: 26 | D10: =IFERROR(VLOOKUP($A10&$B10,CHOOSE({1,2},ALL!$A$4:$A$500&ALL!$B$4:$B$500,ALL!$C$4:$C$500),2,FALSE),"") -> 8 | AK10: 8 | AL10: 34 | AM10: 8
A11: برجا | B11: B3 | C11: 16 | D11: =IFERROR(VLOOKUP($A11&$B11,CHOOSE({1,2},ALL!$A$4:$A$500&ALL!$B$4:$B$500,ALL!$C$4:$C$500),2,FALSE),"") -> 0 | AK11: 0 | AL11: 16 | AM11: 0
A12: شحيم | B12: B4 | C12: 2 | D12: =IFERROR(VLOOKUP($A12&$B12,CHOOSE({1,2},ALL!$A$4:$A$500&ALL!$B$4:$B$500,ALL!$C$4:$C$500),2,FALSE),"") -> 0 | AK12: 0 | AL12: 2 | AM12: 0
A13: عاليه | B13: B5 | C13: 26 | D13: =IFERROR(VLOOKUP($A13&$B13,CHOOSE({1,2},ALL!$A$4:$A$500&ALL!$B$4:$B$500,ALL!$C$4:$C$500),2,FALSE),"") -> 5 | AK13: 5 | AL13: 31 | AM13: 5
A14: حمانا | B14: B6 | C14: 11 | D14: =IFERROR(VLOOKUP($A14&$B14,CHOOSE({1,2},ALL!$A$4:$A$500&ALL!$B$4:$B$500,ALL!$C$4:$C$500),2,FALSE),"") -> 0 | AK14: 0 | AL14: 11 | AM14: 0
A15: الشوف | B15: B7 | C15: 13 | D15: =IFERROR(VLOOKUP($A15&$B15,CHOOSE({1,2},ALL!$A$4:$A$500&ALL!$B$4:$B$500,ALL!$C$4:$C$500),2,FALSE),"") -> 1 | AK15: 1 | AL15: 14 | AM15: 1
A16: المتن | B16: B8 | C16: 22 | D16: =IFERROR(VLOOKUP($A16&$B16,CHOOSE({1,2},ALL!$A$4:$A$500&ALL!$B$4:$B$500,ALL!$C$4:$C$500),2,FALSE),"") -> 6 | AK16: 6 | AL16: 28 | AM16: 6
A17: انطلياس | B17: B9 | C17: 8 | D17: =IFERROR(VLOOKUP($A17&$B17,CHOOSE({1,2},ALL!$A$4:$A$500&ALL!$B$4:$B$500,ALL!$C$4:$C$500),2,FALSE),"") -> 7 | AK17: 7 | AL17: 15 | AM17: 7
A18: صيدا | B18: C1 | C18: 9 | D18: =IFERROR(VLOOKUP($A18&$B18,CHOOSE({1,2},ALL!$A$4:$A$500&ALL!$B$4:$B$500,ALL!$C$4:$C$500),2,FALSE),"") -> 0 | AK18: 0 | AL18: 9 | AM18: 0
A19: جويا | B19: C10 | C19: 21 | D19: =IFERROR(VLOOKUP($A19&$B19,CHOOSE({1,2},ALL!$A$4:$A$500&ALL!$B$4:$B$500,ALL!$C$4:$C$500),2,FALSE),"") -> 0 | AK19: 0 | AL19: 21 | AM19: 0
A20: ميس الجبل | B20: C11 | C20: 12 | D20: =IFERROR(VLOOKUP($A20&$B20,CHOOSE({1,2},ALL!$A$4:$A$500&ALL!$B$4:$B$500,ALL!$C$4:$C$500),2,FALSE),"") -> 0 | AK20: 0 | AL20: 12 | AM20: 0
A21: صور | B21: C2 | C21: 42 | D21: =IFERROR(VLOOKUP($A21&$B21,CHOOSE({1,2},ALL!$A$4:$A$500&ALL!$B$4:$B$500,ALL!$C$4:$C$500),2,FALSE),"") -> 0 | AK21: 0 | AL21: 42 | AM21: 0
A22: جزين | B22: C3 | C22: 8 | D22: =IFERROR(VLOOKUP($A22&$B22,CHOOSE({1,2},ALL!$A$4:$A$500&ALL!$B$4:$B$500,ALL!$C$4:$C$500),2,FALSE),"") -> 0 | AK22: 0 | AL22: 8 | AM22: 0
A23: النبطية | B23: C4 | C23: 47 | D23: =IFERROR(VLOOKUP($A23&$B23,CHOOSE({1,2},ALL!$A$4:$A$500&ALL!$B$4:$B$500,ALL!$C$4:$C$500),2,FALSE),"") -> 2 | AK23: 2 | AL23: 49 | AM23: 2
A24: بنت جبيل | B24: C5 | C24: 46 | D24: =IFERROR(VLOOKUP($A24&$B24,CHOOSE({1,2},ALL!$A$4:$A$500&ALL!$B$4:$B$500,ALL!$C$4:$C$500),2,FALSE),"") -> 2 | AK24: 2 | AL24: 48 | AM24: 2
A25: مرجعيون | B25: C6 | C25: 15 | D25: =IFERROR(VLOOKUP($A25&$B25,CHOOSE({1,2},ALL!$A$4:$A$500&ALL!$B$4:$B$500,ALL!$C$4:$C$500),2,FALSE),"") -> 0 | AK25: 0 | AL25: 15 | AM25: 0
A26: حاصبيا | B26: C7 | C26: 21 | D26: =IFERROR(VLOOKUP($A26&$B26,CHOOSE({1,2},ALL!$A$4:$A$500&ALL!$B$4:$B$500,ALL!$C$4:$C$500),2,FALSE),"") -> 0 | AK26: 0 | AL26: 21 | AM26: 0
A27: تبنين | B27: C8 | C27: 37 | D27: =IFERROR(VLOOKUP($A27&$B27,CHOOSE({1,2},ALL!$A$4:$A$500&ALL!$B$4:$B$500,ALL!$C$4:$C$500),2,FALSE),"") -> 2 | AK27: 2 | AL27: 39 | AM27: 2
A28: جباع | B28: C9 | C28: 17 | D28: =IFERROR(VLOOKUP($A28&$B28,CHOOSE({1,2},ALL!$A$4:$A$500&ALL!$B$4:$B$500,ALL!$C$4:$C$500),2,FALSE),"") -> 1 | AK28: 1 | AL28: 18 | AM28: 1
A29: زحلة | B29: D1 | C29: 80 | D29: =IFERROR(VLOOKUP($A29&$B29,CHOOSE({1,2},ALL!$A$4:$A$500&ALL!$B$4:$B$500,ALL!$C$4:$C$500),2,FALSE),"") -> 4 | AK29: 4 | AL29: 84 | AM29: 4
A30: النبي شيت | B30: D10 | C30: 18 | D30: =IFERROR(VLOOKUP($A30&$B30,CHOOSE({1,2},ALL!$A$4:$A$500&ALL!$B$4:$B$500,ALL!$C$4:$C$500),2,FALSE),"") -> 11 | AK30: 11 | AL30: 29 | AM30: 11
A31: راشيا | B31: D2 | C31: 22 | D31: =IFERROR(VLOOKUP($A31&$B31,CHOOSE({1,2},ALL!$A$4:$A$500&ALL!$B$4:$B$500,ALL!$C$4:$C$500),2,FALSE),"") -> 0 | AK31: 0 | AL31: 22 | AM31: 0
A32: البقاع الغربي | B32: D3 | C32: 47 | D32: =IFERROR(VLOOKUP($A32&$B32,CHOOSE({1,2},ALL!$A$4:$A$500&ALL!$B$4:$B$500,ALL!$C$4:$C$500),2,FALSE),"") -> 2 | AK32: 2 | AL32: 49 | AM32: 2
A33: شمسطار | B33: D4 | C33: 25 | D33: =IFERROR(VLOOKUP($A33&$B33,CHOOSE({1,2},ALL!$A$4:$A$500&ALL!$B$4:$B$500,ALL!$C$4:$C$500),2,FALSE),"") -> 5 | AK33: 5 | AL33: 30 | AM33: 5
A34: بعلبك | B34: D5 | C34: 57 | D34: =IFERROR(VLOOKUP($A34&$B34,CHOOSE({1,2},ALL!$A$4:$A$500&ALL!$B$4:$B$500,ALL!$C$4:$C$500),2,FALSE),"") -> 19 | AK34: 19 | AL34: 76 | AM34: 19
A35: الهرمل | B35: D6 | C35: 30 | D35: =IFERROR(VLOOKUP($A35&$B35,CHOOSE({1,2},ALL!$A$4:$A$500&ALL!$B$4:$B$500,ALL!$C$4:$C$500),2,FALSE),"") -> 0 | AK35: 0 | AL35: 30 | AM35: 0
A36: دير الاحمر | B36: D7 | C36: 12 | D36: =IFERROR(VLOOKUP($A36&$B36,CHOOSE({1,2},ALL!$A$4:$A$500&ALL!$B$4:$B$500,ALL!$C$4:$C$500),2,FALSE),"") -> 6 | AK36: 6 | AL36: 18 | AM36: 6
A37: اللبوة | B37: D8 | C37: 47 | D37: =IFERROR(VLOOKUP($A37&$B37,CHOOSE({1,2},ALL!$A$4:$A$500&ALL!$B$4:$B$500,ALL!$C$4:$C$500),2,FALSE),"") -> 0 | AK37: 0 | AL37: 47 | AM37: 0
A38: صغبين | B38: D9 | C38: 33 | D38: =IFERROR(VLOOKUP($A38&$B38,CHOOSE({1,2},ALL!$A$4:$A$500&ALL!$B$4:$B$500,ALL!$C$4:$C$500),2,FALSE),"") -> 2 | AK38: 2 | AL38: 35 | AM38: 2
A39: طرابلس | B39: E1 | C39: 0 | D39: =IFERROR(VLOOKUP($A39&$B39,CHOOSE({1,2},ALL!$A$4:$A$500&ALL!$B$4:$B$500,ALL!$C$4:$C$500),2,FALSE),"") -> 4 | AK39: 4 | AL39: 4 | AM39: 4
A40: دوما | B40: E10 | C40: 4 | D40: =IFERROR(VLOOKUP($A40&$B40,CHOOSE({1,2},ALL!$A$4:$A$500&ALL!$B$4:$B$500,ALL!$C$4:$C$500),2,FALSE),"") -> 4 | AK40: 4 | AL40: 8 | AM40: 4
A41: العبدة | B41: E11 | C41: 11 | D41: =IFERROR(VLOOKUP($A41&$B41,CHOOSE({1,2},ALL!$A$4:$A$500&ALL!$B$4:$B$500,ALL!$C$4:$C$500),2,FALSE),"") -> 0 | AK41: 0 | AL41: 11 | AM41: 0
A42: بخعون | B42: E12 | C42: 2 | D42: =IFERROR(VLOOKUP($A42&$B42,CHOOSE({1,2},ALL!$A$4:$A$500&ALL!$B$4:$B$500,ALL!$C$4:$C$500),2,FALSE),"") -> 0 | AK42: 0 | AL42: 2 | AM42: 0
A43: بيت ملات | B43: E13 | C43: 10 | D43: =IFERROR(VLOOKUP($A43&$B43,CHOOSE({1,2},ALL!$A$4:$A$500&ALL!$B$4:$B$500,ALL!$C$4:$C$500),2,FALSE),"") -> 0 | AK43: 0 | AL43: 10 | AM43: 0
A44: المنية | B44: E2 | C44: 20 | D44: =IFERROR(VLOOKUP($A44&$B44,CHOOSE({1,2},ALL!$A$4:$A$500&ALL!$B$4:$B$500,ALL!$C$4:$C$500),2,FALSE),"") -> 1 | AK44: 1 | AL44: 21 | AM44: 1
A45: سير الضنية | B45: E3 | C45: 11 | D45: =IFERROR(VLOOKUP($A45&$B45,CHOOSE({1,2},ALL!$A$4:$A$500&ALL!$B$4:$B$500,ALL!$C$4:$C$500),2,FALSE),"") -> 2 | AK45: 2 | AL45: 13 | AM45: 2
A46: حلبا عكار | B46: E4 | C46: 7 | D46: =IFERROR(VLOOKUP($A46&$B46,CHOOSE({1,2},ALL!$A$4:$A$500&ALL!$B$4:$B$500,ALL!$C$4:$C$500),2,FALSE),"") -> 0 | AK46: 0 | AL46: 7 | AM46: 0
A47: القبيات | B47: E5 | C47: 18 | D47: =IFERROR(VLOOKUP($A47&$B47,CHOOSE({1,2},ALL!$A$4:$A$500&ALL!$B$4:$B$500,ALL!$C$4:$C$500),2,FALSE),"") -> 0 | AK47: 0 | AL47: 18 | AM47: 0
A48: البترون | B48: E6 | C48: 5 | D48: =IFERROR(VLOOKUP($A48&$B48,CHOOSE({1,2},ALL!$A$4:$A$500&ALL!$B$4:$B$500,ALL!$C$4:$C$500),2,FALSE),"") -> 3 | AK48: 3 | AL48: 8 | AM48: 3
A49: الكورة | B49: E7 | C49: 9 | D49: =IFERROR(VLOOKUP($A49&$B49,CHOOSE({1,2},ALL!$A$4:$A$500&ALL!$B$4:$B$500,ALL!$C$4:$C$500),2,FALSE),"") -> 5 | AK49: 5 | AL49: 14 | AM49: 5
A50: زغرتا | B50: E8 | C50: 13 | D50: =IFERROR(VLOOKUP($A50&$B50,CHOOSE({1,2},ALL!$A$4:$A$500&ALL!$B$4:$B$500,ALL!$C$4:$C$500),2,FALSE),"") -> 1 | AK50: 1 | AL50: 14 | AM50: 1
A51: بشري | B51: E9 | C51: 2 | D51: =IFERROR(VLOOKUP($A51&$B51,CHOOSE({1,2},ALL!$A$4:$A$500&ALL!$B$4:$B$500,ALL!$C$4:$C$500),2,FALSE),"") -> 4 | AK51: 4 | AL51: 6 | AM51: 4
A52: المجموع | C52: =SUM(C3:C51) -> 966 | D52: =SUM(D3:D51) -> 139 | E52: 0 | F52: 0 | G52: 0 | H52: 0 | I52: 0 | J52: 0 | K52: 0 | L52: 0 | M52: 0 | N52: =SUM(N3:N51) -> 0 | O52: 0 | P52: 0 | Q52: 0 | R52: 0 | S52: 0 | T52: 0 | U52: 0 | V52: 0 | W52: 0 | X52: 0 | Y52: 0 | Z52: 0 | AA52: 0 | AB52: 0 | AC52: 0 | AD52: 0 | AE52: 0 | AF52: 0 | AG52: 0 | AH52: 0 | AK52: =SUM(AK3:AK50) -> 135 | AL52: =SUM(AL3:AL51) -> 1105 | AM52: =SUM(AM3:AM51) -> 135

Sheet HA
A1: 2020 | B1: هويات | D1: =ALL!C1 -> 2020-12-01
A2: كانون اول | B2: رمز | C2: المنصرم | D2: =ALL!C2 -> 02/12/ | AK2: هويات مستلمة | AL2: هويات مستلمة + المنصرم | AM2: هويات غير مسلّمة
A3: بيروت | B3: A | C3: 140 | D3: =IFERROR(VLOOKUP($A3&$B3,CHOOSE({1,2},ALL!$A$4:$A$500&ALL!$B$4:$B$500,ALL!$D$4:$D$500),2,FALSE),"") -> 4 | AK3: =SUM(D3:AH3) -> 4 | AL3: =SUM(AK3+C3) -> 144 | AM3: 0
A4: بعبدا | B4: B1 | C4: 0 | D4: =IFERROR(VLOOKUP($A4&$B4,CHOOSE({1,2},ALL!$A$4:$A$500&ALL!$B$4:$B$500,ALL!$D$4:$D$500),2,FALSE),"") -> 22 | AK4: =SUM(D4:AH4) -> 22 | AL4: =SUM(AK4+C4) -> 22 | AM4: 22
A5: بكفيا | B5: B10 | C5: 88 | D5: =IFERROR(VLOOKUP($A5&$B5,CHOOSE({1,2},ALL!$A$4:$A$500&ALL!$B$4:$B$500,ALL!$D$4:$D$500),2,FALSE),"") -> 82 | AK5: 82 | AL5: 170 | AM5: 82
A6: المتن الشمالي العالي | B6: B11 | C6: 16 | D6: =IFERROR(VLOOKUP($A6&$B6,CHOOSE({1,2},ALL!$A$4:$A$500&ALL!$B$4:$B$500,ALL!$D$4:$D$500),2,FALSE),"") -> 9 | AK6: 9 | AL6: 25 | AM6: 9
A7: كسروان | B7: B12 | C7: 81 | D7: =IFERROR(VLOOKUP($A7&$B7,CHOOSE({1,2},ALL!$A$4:$A$500&ALL!$B$4:$B$500,ALL!$D$4:$D$500),2,FALSE),"") -> 63 | AK7: 63 | AL7: 144 | AM7: 63
A8: جبيل | B8: B13 | C8: 81 | D8: =IFERROR(VLOOKUP($A8&$B8,CHOOSE({1,2},ALL!$A$4:$A$500&ALL!$B$4:$B$500,ALL!$D$4:$D$500),2,FALSE),"") -> 0 | AK8: 0 | AL8: 81 | AM8: 0
A9: فتوح كسروان | B9: B14 | C9: 22 | D9: =IFERROR(VLOOKUP($A9&$B9,CHOOSE({1,2},ALL!$A$4:$A$500&ALL!$B$4:$B$500,ALL!$D$4:$D$500),2,FALSE),"") -> 22 | AK9: 22 | AL9: 44 | AM9: 22
A10: الشويفات | B10: B2 | C10: 58 | D10: =IFERROR(VLOOKUP($A10&$B10,CHOOSE({1,2},ALL!$A$4:$A$500&ALL!$B$4:$B$500,ALL!$D$4:$D$500),2,FALSE),"") -> 24 | AK10: 24 | AL10: 82 | AM10: 24
A11: برجا | B11: B3 | C11: 44 | D11: =IFERROR(VLOOKUP($A11&$B11,CHOOSE({1,2},ALL!$A$4:$A$500&ALL!$B$4:$B$500,ALL!$D$4:$D$500),2,FALSE),"") -> 0 | AK11: 0 | AL11: 44 | AM11: 0
A12: شحيم | B12: B4 | C12: 5 | D12: =IFERROR(VLOOKUP($A12&$B12,CHOOSE({1,2},ALL!$A$4:$A$500&ALL!$B$4:$B$500,ALL!$D$4:$D$500),2,FALSE),"") -> 0 | AK12: 0 | AL12: 5 | AM12: 0
A13: عاليه | B13: B5 | C13: 51 | D13: =IFERROR(VLOOKUP($A13&$B13,CHOOSE({1,2},ALL!$A$4:$A$500&ALL!$B$4:$B$500,ALL!$D$4:$D$500),2,FALSE),"") -> 7 | AK13: 7 | AL13: 58 | AM13: 7
A14: حمانا | B14: B6 | C14: 10 | D14: =IFERROR(VLOOKUP($A14&$B14,CHOOSE({1,2},ALL!$A$4:$A$500&ALL!$B$4:$B$500,ALL!$D$4:$D$500),2,FALSE),"") -> 0 | AK14: 0 | AL14: 10 | AM14: 0
A15: الشوف | B15: B7 | C15: 19 | D15: =IFERROR(VLOOKUP($A15&$B15,CHOOSE({1,2},ALL!$A$4:$A$500&ALL!$B$4:$B$500,ALL!$D$4:$D$500),2,FALSE),"") -> 1 | AK15: 1 | AL15: 20 | AM15: 1
A16: المتن | B16: B8 | C16: 62 | D16: =IFERROR(VLOOKUP($A16&$B16,CHOOSE({1,2},ALL!$A$4:$A$500&ALL!$B$4:$B$500,ALL!$D$4:$D$500),2,FALSE),"") -> 14 | AK16: 14 | AL16: 76 | AM16: 14
A17: انطلياس | B17: B9 | C17: 36 | D17: =IFERROR(VLOOKUP($A17&$B17,CHOOSE({1,2},ALL!$A$4:$A$500&ALL!$B$4:$B$500,ALL!$D$4:$D$500),2,FALSE),"") -> 28 | AK17: 28 | AL17: 64 | AM17: 28
A18: صيدا | B18: C1 | C18: 16 | D18: =IFERROR(VLOOKUP($A18&$B18,CHOOSE({1,2},ALL!$A$4:$A$500&ALL!$B$4:$B$500,ALL!$D$4:$D$500),2,FALSE),"") -> 0 | AK18: 0 | AL18: 16 | AM18: 0
A19: جويا | B19: C10 | C19: 90 | D19: =IFERROR(VLOOKUP($A19&$B19,CHOOSE({1,2},ALL!$A$4:$A$500&ALL!$B$4:$B$500,ALL!$D$4:$D$500),2,FALSE),"") -> 0 | AK19: 0 | AL19: 90 | AM19: 0
A20: ميس الجبل | B20: C11 | C20: 69 | D20: =IFERROR(VLOOKUP($A20&$B20,CHOOSE({1,2},ALL!$A$4:$A$500&ALL!$B$4:$B$500,ALL!$D$4:$D$500),2,FALSE),"") -> 0 | AK20: 0 | AL20: 69 | AM20: 0
A21: صور | B21: C2 | C21: 139 | D21: =IFERROR(VLOOKUP($A21&$B21,CHOOSE({1,2},ALL!$A$4:$A$500&ALL!$B$4:$B$500,ALL!$D$4:$D$500),2,FALSE),"") -> 0 | AK21: 0 | AL21: 139 | AM21: 0
A22: جزين | B22: C3 | C22: 13 | D22: =IFERROR(VLOOKUP($A22&$B22,CHOOSE({1,2},ALL!$A$4:$A$500&ALL!$B$4:$B$500,ALL!$D$4:$D$500),2,FALSE),"") -> 0 | AK22: 0 | AL22: 13 | AM22: 0
A23: النبطية | B23: C4 | C23: 94 | D23: =IFERROR(VLOOKUP($A23&$B23,CHOOSE({1,2},ALL!$A$4:$A$500&ALL!$B$4:$B$500,ALL!$D$4:$D$500),2,FALSE),"") -> 2 | AK23: 2 | AL23: 96 | AM23: 2
A24: بنت جبيل | B24: C5 | C24: 216 | D24: =IFERROR(VLOOKUP($A24&$B24,CHOOSE({1,2},ALL!$A$4:$A$500&ALL!$B$4:$B$500,ALL!$D$4:$D$500),2,FALSE),"") -> 3 | AK24: 3 | AL24: 219 | AM24: 3
A25: مرجعيون | B25: C6 | C25: 29 | D25: =IFERROR(VLOOKUP($A25&$B25,CHOOSE({1,2},ALL!$A$4:$A$500&ALL!$B$4:$B$500,ALL!$D$4:$D$500),2,FALSE),"") -> 0 | AK25: 0 | AL25: 29 | AM25: 0
A26: حاصبيا | B26: C7 | C26: 45 | D26: =IFERROR(VLOOKUP($A26&$B26,CHOOSE({1,2},ALL!$A$4:$A$500&ALL!$B$4:$B$500,ALL!$D$4:$D$500),2,FALSE),"") -> 0 | AK26: 0 | AL26: 45 | AM26: 0
A27: تبنين | B27: C8 | C27: 97 | D27: =IFERROR(VLOOKUP($A27&$B27,CHOOSE({1,2},ALL!$A$4:$A$500&ALL!$B$4:$B$500,ALL!$D$4:$D$500),2,FALSE),"") -> 3 | AK27: 3 | AL27: 100 | AM27: 3
A28: جباع | B28: C9 | C28: 60 | D28: =IFERROR(VLOOKUP($A28&$B28,CHOOSE({1,2},ALL!$A$4:$A$500&ALL!$B$4:$B$500,ALL!$D$4:$D$500),2,FALSE),"") -> 1 | AK28: 1 | AL28: 61 | AM28: 1
A29: زحلة | B29: D1 | C29: 322 | D29: =IFERROR(VLOOKUP($A29&$B29,CHOOSE({1,2},ALL!$A$4:$A$500&ALL!$B$4:$B$500,ALL!$D$4:$D$500),2,FALSE),"") -> 21 | AK29: 21 | AL29: 343 | AM29: 21
A30: النبي شيت | B30: D10 | C30: 36 | D30: =IFERROR(VLOOKUP($A30&$B30,CHOOSE({1,2},ALL!$A$4:$A$500&ALL!$B$4:$B$500,ALL!$D$4:$D$500),2,FALSE),"") -> 68 | AK30: 68 | AL30: 104 | AM30: 68
A31: راشيا | B31: D2 | C31: 82 | D31: =IFERROR(VLOOKUP($A31&$B31,CHOOSE({1,2},ALL!$A$4:$A$500&ALL!$B$4:$B$500,ALL!$D$4:$D$500),2,FALSE),"") -> 0 | AK31: 0 | AL31: 82 | AM31: 0
A32: البقاع الغربي | B32: D3 | C32: 174 | D32: =IFERROR(VLOOKUP($A32&$B32,CHOOSE({1,2},ALL!$A$4:$A$500&ALL!$B$4:$B$500,ALL!$D$4:$D$500),2,FALSE),"") -> 4 | AK32: 4 | AL32: 178 | AM32: 4
A33: شمسطار | B33: D4 | C33: 93 | D33: =IFERROR(VLOOKUP($A33&$B33,CHOOSE({1,2},ALL!$A$4:$A$500&ALL!$B$4:$B$500,ALL!$D$4:$D$500),2,FALSE),"") -> 10 | AK33: 10 | AL33: 103 | AM33: 10
A34: بعلبك | B34: D5 | C34: 167 | D34: =IFERROR(VLOOKUP($A34&$B34,CHOOSE({1,2},ALL!$A$4:$A$500&ALL!$B$4:$B$500,ALL!$D$4:$D$500),2,FALSE),"") -> 58 | AK34: 58 | AL34: 225 | AM34: 58
A35: الهرمل | B35: D6 | C35: 131 | D35: =IFERROR(VLOOKUP($A35&$B35,CHOOSE({1,2},ALL!$A$4:$A$500&ALL!$B$4:$B$500,ALL!$D$4:$D$500),2,FALSE),"") -> 0 | AK35: 0 | AL35: 131 | AM35: 0
A36: دير الاحمر | B36: D7 | C36: 24 | D36: =IFERROR(VLOOKUP($A36&$B36,CHOOSE({1,2},ALL!$A$4:$A$500&ALL!$B$4:$B$500,ALL!$D$4:$D$500),2,FALSE),"") -> 14 | AK36: 14 | AL36: 38 | AM36: 14
A37: اللبوة | B37: D8 | C37: 144 | D37: =IFERROR(VLOOKUP($A37&$B37,CHOOSE({1,2},ALL!$A$4:$A$500&ALL!$B$4:$B$500,ALL!$D$4:$D$500),2,FALSE),"") -> 0 | AK37: 0 | AL37: 144 | AM37: 0
A38: صغبين | B38: D9 | C38: 86 | D38: =IFERROR(VLOOKUP($A38&$B38,CHOOSE({1,2},ALL!$A$4:$A$500&ALL!$B$4:$B$500,ALL!$D$4:$D$500),2,FALSE),"") -> 2 | AK38: 2 | AL38: 88 | AM38: 2
A39: طرابلس | B39: E1 | C39: 0 | D39: =IFERROR(VLOOKUP($A39&$B39,CHOOSE({1,2},ALL!$A$4:$A$500&ALL!$B$4:$B$500,ALL!$D$4:$D$500),2,FALSE),"") -> 7 | AK39: 7 | AL39: 7 | AM39: 7
A40: دوما | B40: E10 | C40: 12 | D40: =IFERROR(VLOOKUP($A40&$B40,CHOOSE({1,2},ALL!$A$4:$A$500&ALL!$B$4:$B$500,ALL!$D$4:$D$500),2,FALSE),"") -> 9 | AK40: 9 | AL40: 21 | AM40: 9
A41: العبدة | B41: E11 | C41: 32 | D41: =IFERROR(VLOOKUP($A41&$B41,CHOOSE({1,2},ALL!$A$4:$A$500&ALL!$B$4:$B$500,ALL!$D$4:$D$500),2,FALSE),"") -> 0 | AK41: 0 | AL41: 32 | AM41: 0
A42: بخعون | B42: E12 | C42: 5 | D42: =IFERROR(VLOOKUP($A42&$B42,CHOOSE({1,2},ALL!$A$4:$A$500&ALL!$B$4:$B$500,ALL!$D$4:$D$500),2,FALSE),"") -> 0 | AK42: 0 | AL42: 5 | AM42: 0
A43: بيت ملات | B43: E13 | C43: 17 | D43: =IFERROR(VLOOKUP($A43&$B43,CHOOSE({1,2},ALL!$A$4:$A$500&ALL!$B$4:$B$500,ALL!$D$4:$D$500),2,FALSE),"") -> 0 | AK43: 0 | AL43: 17 | AM43: 0
A44: المنية | B44: E2 | C44: 63 | D44: =IFERROR(VLOOKUP($A44&$B44,CHOOSE({1,2},ALL!$A$4:$A$500&ALL!$B$4:$B$500,ALL!$D$4:$D$500),2,FALSE),"") -> 2 | AK44: 2 | AL44: 65 | AM44: 2
A45: سير الضنية | B45: E3 | C45: 49 | D45: =IFERROR(VLOOKUP($A45&$B45,CHOOSE({1,2},ALL!$A$4:$A$500&ALL!$B$4:$B$500,ALL!$D$4:$D$500),2,FALSE),"") -> 2 | AK45: 2 | AL45: 51 | AM45: 2
A46: حلبا عكار | B46: E4 | C46: 71 | D46: =IFERROR(VLOOKUP($A46&$B46,CHOOSE({1,2},ALL!$A$4:$A$500&ALL!$B$4:$B$500,ALL!$D$4:$D$500),2,FALSE),"") -> 0 | AK46: 0 | AL46: 71 | AM46: 0
A47: القبيات | B47: E5 | C47: 41 | D47: =IFERROR(VLOOKUP($A47&$B47,CHOOSE({1,2},ALL!$A$4:$A$500&ALL!$B$4:$B$500,ALL!$D$4:$D$500),2,FALSE),"") -> 0 | AK47: 0 | AL47: 41 | AM47: 0
A48: البترون | B48: E6 | C48: 29 | D48: =IFERROR(VLOOKUP($A48&$B48,CHOOSE({1,2},ALL!$A$4:$A$500&ALL!$B$4:$B$500,ALL!$D$4:$D$500),2,FALSE),"") -> 8 | AK48: 8 | AL48: 37 | AM48: 8
A49: الكورة | B49: E7 | C49: 53 | D49: =IFERROR(VLOOKUP($A49&$B49,CHOOSE({1,2},ALL!$A$4:$A$500&ALL!$B$4:$B$500,ALL!$D$4:$D$500),2,FALSE),"") -> 36 | AK49: 36 | AL49: 89 | AM49: 36
A50: زغرتا | B50: E8 | C50: 77 | D50: =IFERROR(VLOOKUP($A50&$B50,CHOOSE({1,2},ALL!$A$4:$A$500&ALL!$B$4:$B$500,ALL!$D$4:$D$500),2,FALSE),"") -> 2 | AK50: 2 | AL50: 79 | AM50: 2
A51: بشري | B51: E9 | C51: 2 | D51: =IFERROR(VLOOKUP($A51&$B51,CHOOSE({1,2},ALL!$A$4:$A$500&ALL!$B$4:$B$500,ALL!$D$4:$D$500),2,FALSE),"") -> 22 | AK51: 22 | AL51: 24 | AM51: 22
A52: المجموع | C52: =SUM(C3:C51) -> 3291 | D52: =SUM(D3:D51) -> 550 | E52: 0 | F52: 0 | G52: 0 | H52: 0 | I52: 0 | J52: 0 | K52: 0 | L52: 0 | M52: 0 | N52: 0 | O52: 0 | P52: 0 | Q52: 0 | R52: 0 | S52: 0 | T52: 0 | U52: 0 | V52: 0 | W52: 0 | X52: 0 | Y52: 0 | Z52: 0 | AA52: 0 | AB52: 0 | AC52: 0 | AD52: 0 | AE52: 0 | AF52: 0 | AG52: 0 | AH52: 0 | AK52: =SUM(AK3:AK51) -> 550 | AL52: =SUM(AL3:AL51) -> 3841 | AM52: =SUM(AM3:AM51) -> 546

Sheet MOG_OMT
A1: 2020 | B1: مغلفات OMT | D1: =ALL!C1 -> 2020-12-01
A2: كانون اول | B2: رمز | C2: المنصرم | D2: =ALL!C2 -> 02/12/ | AJ2: مغلفات OMTمستلمة | AL2: مغلفات OMTمستلمة + المنصرم | AM2: مغلفات OMT غير مسلمة
A3: بيروت | B3: A | D3: 0 | AJ3: =SUM(D3:AG3) -> 0 | AL3: =SUM(AJ3+C3) -> 0 | AM3: 0
A4: بعبدا | B4: B1 | D4: 0 | AJ4: =SUM(D4:AG4) -> 0 | AL4: =SUM(AJ4+C4) -> 0 | AM4: 0
A5: بكفيا | B5: B10 | D5: =IFERROR(VLOOKUP($A5&$B5,CHOOSE({1,2},ALL!$A$4:$A$500&ALL!$B$4:$B$500,ALL!$E$4:$E$500),2,FALSE),"") -> 0 | AJ5: 0 | AL5: 0 | AM5: 0
A6: المتن الشمالي العالي | B6: B11 | D6: 0 | AJ6: 0 | AL6: 0 | AM6: 0
A7: كسروان | B7: B12 | D7: =IFERROR(VLOOKUP($A7&$B7,CHOOSE({1,2},ALL!$A$4:$A$500&ALL!$B$4:$B$500,ALL!$E$4:$E$500),2,FALSE),"") -> 0 | AJ7: 0 | AL7: 0 | AM7: 0
A8: جبيل | B8: B13 | D8: =IFERROR(VLOOKUP($A8&$B8,CHOOSE({1,2},ALL!$A$4:$A$500&ALL!$B$4:$B$500,ALL!$E$4:$E$500),2,FALSE),"") -> 0 | AJ8: 0 | AL8: 0 | AM8: 0
A9: فتوح كسروان | B9: B14 | D9: =IFERROR(VLOOKUP($A9&$B9,CHOOSE({1,2},ALL!$A$4:$A$500&ALL!$B$4:$B$500,ALL!$E$4:$E$500),2,FALSE),"") -> 0 | AJ9: 0 | AL9: 0 | AM9: 0
A10: الشويفات | B10: B2 | D10: =IFERROR(VLOOKUP($A10&$B10,CHOOSE({1,2},ALL!$A$4:$A$500&ALL!$B$4:$B$500,ALL!$E$4:$E$500),2,FALSE),"") -> 0 | AJ10: 0 | AL10: 0 | AM10: 0
A11: برجا | B11: B3 | D11: =IFERROR(VLOOKUP($A11&$B11,CHOOSE({1,2},ALL!$A$4:$A$500&ALL!$B$4:$B$500,ALL!$E$4:$E$500),2,FALSE),"") -> 0 | AJ11: 0 | AL11: 0 | AM11: 0
A12: شحيم | B12: B4 | D12: =IFERROR(VLOOKUP($A12&$B12,CHOOSE({1,2},ALL!$A$4:$A$500&ALL!$B$4:$B$500,ALL!$E$4:$E$500),2,FALSE),"") -> 0 | AJ12: 0 | AL12: 0 | AM12: 0
A13: عاليه | B13: B5 | D13: =IFERROR(VLOOKUP($A13&$B13,CHOOSE({1,2},ALL!$A$4:$A$500&ALL!$B$4:$B$500,ALL!$E$4:$E$500),2,FALSE),"") -> 0 | AJ13: 0 | AL13: 0 | AM13: 0
A14: حمانا | B14: B6 | D14: =IFERROR(VLOOKUP($A14&$B14,CHOOSE({1,2},ALL!$A$4:$A$500&ALL!$B$4:$B$500,ALL!$E$4:$E$500),2,FALSE),"") -> 0 | AJ14: 0 | AL14: 0 | AM14: 0
A15: الشوف | B15: B7 | D15: =IFERROR(VLOOKUP($A15&$B15,CHOOSE({1,2},ALL!$A$4:$A$500&ALL!$B$4:$B$500,ALL!$E$4:$E$500),2,FALSE),"") -> 0 | AJ15: 0 | AL15: 0 | AM15: 0
A16: المتن | B16: B8 | D16: =IFERROR(VLOOKUP($A16&$B16,CHOOSE({1,2},ALL!$A$4:$A$500&ALL!$B$4:$B$500,ALL!$E$4:$E$500),2,FALSE),"") -> 0 | AJ16: 0 | AL16: 0 | AM16: 0
A17: انطلياس | B17: B9 | D17: =IFERROR(VLOOKUP($A17&$B17,CHOOSE({1,2},ALL!$A$4:$A$500&ALL!$B$4:$B$500,ALL!$E$4:$E$500),2,FALSE),"") -> 0 | AJ17: 0 | AL17: 0 | AM17: 0
A18: صيدا | B18: C1 | D18: =IFERROR(VLOOKUP($A18&$B18,CHOOSE({1,2},ALL!$A$4:$A$500&ALL!$B$4:$B$500,ALL!$E$4:$E$500),2,FALSE),"") -> 0 | AJ18: 0 | AL18: 0 | AM18: 0
A19: جويا | B19: C10 | D19: =IFERROR(VLOOKUP($A19&$B19,CHOOSE({1,2},ALL!$A$4:$A$500&ALL!$B$4:$B$500,ALL!$E$4:$E$500),2,FALSE),"") -> 0 | AJ19: 0 | AL19: 0 | AM19: 0
A20: ميس الجبل | B20: C11 | D20: =IFERROR(VLOOKUP($A20&$B20,CHOOSE({1,2},ALL!$A$4:$A$500&ALL!$B$4:$B$500,ALL!$E$4:$E$500),2,FALSE),"") -> 0 | AJ20: 0 | AL20: 0 | AM20: 0
A21: صور | B21: C2 | D21: =IFERROR(VLOOKUP($A21&$B21,CHOOSE({1,2},ALL!$A$4:$A$500&ALL!$B$4:$B$500,ALL!$E$4:$E$500),2,FALSE),"") -> 0 | AJ21: 0 | AL21: 0 | AM21: 0
A22: جزين | B22: C3 | D22: =IFERROR(VLOOKUP($A22&$B22,CHOOSE({1,2},ALL!$A$4:$A$500&ALL!$B$4:$B$500,ALL!$E$4:$E$500),2,FALSE),"") -> 0 | AJ22: 0 | AL22: 0 | AM22: 0
A23: النبطية | B23: C4 | D23: =IFERROR(VLOOKUP($A23&$B23,CHOOSE({1,2},ALL!$A$4:$A$500&ALL!$B$4:$B$500,ALL!$E$4:$E$500),2,FALSE),"") -> 0 | AJ23: 0 | AL23: 0 | AM23: 0
A24: بنت جبيل | B24: C5 | D24: =IFERROR(VLOOKUP($A24&$B24,CHOOSE({1,2},ALL!$A$4:$A$500&ALL!$B$4:$B$500,ALL!$E$4:$E$500),2,FALSE),"") -> 0 | AJ24: 0 | AL24: 0 | AM24: 0
A25: مرجعيون | B25: C6 | D25: =IFERROR(VLOOKUP($A25&$B25,CHOOSE({1,2},ALL!$A$4:$A$500&ALL!$B$4:$B$500,ALL!$E$4:$E$500),2,FALSE),"") -> 0 | AJ25: 0 | AL25: 0 | AM25: 0
A26: حاصبيا | B26: C7 | D26: =IFERROR(VLOOKUP($A26&$B26,CHOOSE({1,2},ALL!$A$4:$A$500&ALL!$B$4:$B$500,ALL!$E$4:$E$500),2,FALSE),"") -> 0 | AJ26: 0 | AL26: 0 | AM26: 0
A27: تبنين | B27: C8 | D27: =IFERROR(VLOOKUP($A27&$B27,CHOOSE({1,2},ALL!$A$4:$A$500&ALL!$B$4:$B$500,ALL!$E$4:$E$500),2,FALSE),"") -> 0 | AJ27: 0 | AL27: 0 | AM27: 0
A28: جباع | B28: C9 | D28: =IFERROR(VLOOKUP($A28&$B28,CHOOSE({1,2},ALL!$A$4:$A$500&ALL!$B$4:$B$500,ALL!$E$4:$E$500),2,FALSE),"") -> 0 | AJ28: 0 | AL28: 0 | AM28: 0
A29: زحلة | B29: D1 | D29: =IFERROR(VLOOKUP($A29&$B29,CHOOSE({1,2},ALL!$A$4:$A$500&ALL!$B$4:$B$500,ALL!$E$4:$E$500),2,FALSE),"") -> 0 | AJ29: 0 | AL29: 0 | AM29: 0
A30: النبي شيت | B30: D10 | D30: =IFERROR(VLOOKUP($A30&$B30,CHOOSE({1,2},ALL!$A$4:$A$500&ALL!$B$4:$B$500,ALL!$E$4:$E$500),2,FALSE),"") -> 0 | AJ30: 0 | AL30: 0 | AM30: 0
A31: راشيا | B31: D2 | D31: =IFERROR(VLOOKUP($A31&$B31,CHOOSE({1,2},ALL!$A$4:$A$500&ALL!$B$4:$B$500,ALL!$E$4:$E$500),2,FALSE),"") -> 0 | AJ31: 0 | AL31: 0 | AM31: 0
A32: البقاع الغربي | B32: D3 | D32: =IFERROR(VLOOKUP($A32&$B32,CHOOSE({1,2},ALL!$A$4:$A$500&ALL!$B$4:$B$500,ALL!$E$4:$E$500),2,FALSE),"") -> 0 | AJ32: 0 | AL32: 0 | AM32: 0
A33: شمسطار | B33: D4 | D33: =IFERROR(VLOOKUP($A33&$B33,CHOOSE({1,2},ALL!$A$4:$A$500&ALL!$B$4:$B$500,ALL!$E$4:$E$500),2,FALSE),"") -> 0 | AJ33: 0 | AL33: 0 | AM33: 0
A34: بعلبك | B34: D5 | D34: =IFERROR(VLOOKUP($A34&$B34,CHOOSE({1,2},ALL!$A$4:$A$500&ALL!$B$4:$B$500,ALL!$E$4:$E$500),2,FALSE),"") -> 0 | AJ34: 0 | AL34: 0 | AM34: 0
A35: الهرمل | B35: D6 | D35: =IFERROR(VLOOKUP($A35&$B35,CHOOSE({1,2},ALL!$A$4:$A$500&ALL!$B$4:$B$500,ALL!$E$4:$E$500),2,FALSE),"") -> 0 | AJ35: 0 | AL35: 0 | AM35: 0
A36: دير الاحمر | B36: D7 | D36: =IFERROR(VLOOKUP($A36&$B36,CHOOSE({1,2},ALL!$A$4:$A$500&ALL!$B$4:$B$500,ALL!$E$4:$E$500),2,FALSE),"") -> 0 | AJ36: 0 | AL36: 0 | AM36: 0
A37: اللبوة | B37: D8 | D37: =IFERROR(VLOOKUP($A37&$B37,CHOOSE({1,2},ALL!$A$4:$A$500&ALL!$B$4:$B$500,ALL!$E$4:$E$500),2,FALSE),"") -> 0 | AJ37: 0 | AL37: 0 | AM37: 0
A38: صغبين | B38: D9 | D38: =IFERROR(VLOOKUP($A38&$B38,CHOOSE({1,2},ALL!$A$4:$A$500&ALL!$B$4:$B$500,ALL!$E$4:$E$500),2,FALSE),"") -> 0 | AJ38: 0 | AL38: 0 | AM38: 0
A39: طرابلس | B39: E1 | D39: =IFERROR(VLOOKUP($A39&$B39,CHOOSE({1,2},ALL!$A$4:$A$500&ALL!$B$4:$B$500,ALL!$E$4:$E$500),2,FALSE),"") -> 0 | AJ39: 0 | AL39: 0 | AM39: 0
A40: دوما | B40: E10 | D40: =IFERROR(VLOOKUP($A40&$B40,CHOOSE({1,2},ALL!$A$4:$A$500&ALL!$B$4:$B$500,ALL!$E$4:$E$500),2,FALSE),"") -> 0 | AJ40: 0 | AL40: 0 | AM40: 0
A41: العبدة | B41: E11 | D41: =IFERROR(VLOOKUP($A41&$B41,CHOOSE({1,2},ALL!$A$4:$A$500&ALL!$B$4:$B$500,ALL!$E$4:$E$500),2,FALSE),"") -> 0 | AJ41: 0 | AL41: 0 | AM41: 0
A42: بخعون | B42: E12 | D42: =IFERROR(VLOOKUP($A42&$B42,CHOOSE({1,2},ALL!$A$4:$A$500&ALL!$B$4:$B$500,ALL!$E$4:$E$500),2,FALSE),"") -> 0 | AJ42: 0 | AL42: 0 | AM42: 0
A43: بيت ملات | B43: E13 | D43: =IFERROR(VLOOKUP($A43&$B43,CHOOSE({1,2},ALL!$A$4:$A$500&ALL!$B$4:$B$500,ALL!$E$4:$E$500),2,FALSE),"") -> 0 | AJ43: 0 | AL43: 0 | AM43: 0
A44: المنية | B44: E2 | D44: =IFERROR(VLOOKUP($A44&$B44,CHOOSE({1,2},ALL!$A$4:$A$500&ALL!$B$4:$B$500,ALL!$E$4:$E$500),2,FALSE),"") -> 0 | AJ44: 0 | AL44: 0 | AM44: 0
A45: سير الضنية | B45: E3 | D45: =IFERROR(VLOOKUP($A45&$B45,CHOOSE({1,2},ALL!$A$4:$A$500&ALL!$B$4:$B$500,ALL!$E$4:$E$500),2,FALSE),"") -> 0 | AJ45: 0 | AL45: 0 | AM45: 0
A46: حلبا عكار | B46: E4 | D46: =IFERROR(VLOOKUP($A46&$B46,CHOOSE({1,2},ALL!$A$4:$A$500&ALL!$B$4:$B$500,ALL!$E$4:$E$500),2,FALSE),"") -> 0 | AJ46: 0 | AL46: 0 | AM46: 0
A47: القبيات | B47: E5 | D47: =IFERROR(VLOOKUP($A47&$B47,CHOOSE({1,2},ALL!$A$4:$A$500&ALL!$B$4:$B$500,ALL!$E$4:$E$500),2,FALSE),"") -> 0 | AJ47: 0 | AL47: 0 | AM47: 0
A48: البترون | B48: E6 | D48: =IFERROR(VLOOKUP($A48&$B48,CHOOSE({1,2},ALL!$A$4:$A$500&ALL!$B$4:$B$500,ALL!$E$4:$E$500),2,FALSE),"") -> 0 | AJ48: 0 | AL48: 0 | AM48: 0
A49: الكورة | B49: E7 | D49: 0 | AJ49: 0 | AL49: 0 | AM49: 0
A50: زغرتا | B50: E8 | D50: =IFERROR(VLOOKUP($A50&$B50,CHOOSE({1,2},ALL!$A$4:$A$500&ALL!$B$4:$B$500,ALL!$E$4:$E$500),2,FALSE),"") -> 0 | AJ50: 0 | AL50: 0 | AM50: 0
A51: بشري | B51: E9 | D51: 0 | AJ51: 0 | AL51: 0 | AM51: 0
A52: المجموع | C52: =SUM(C3:C51) -> 0 | D52: 0 | E52: 0 | F52: 0 | G52: 0 | H52: 0 | I52: 0 | J52: 0 | K52: 0 | L52: =SUM(L3:L51) -> 0 | M52: 0 | N52: 0 | O52: 0 | P52: 0 | Q52: 0 | R52: 0 | S52: 0 | T52: 0 | U52: 0 | V52: 0 | W52: 0 | X52: 0 | Y52: 0 | Z52: 0 | AA52: 0 | AB52: 0 | AC52: 0 | AD52: 0 | AE52: 0 | AF52: 0 | AG52: 0 | AJ52: =SUM(AJ3:AJ50) -> 0 | AL52: =SUM(AL3:AL51) -> 0 | AM52: 91

Sheet HA_OMT
A1: 2020 | B1: هويات OMT | D1: =ALL!C1 -> 2020-12-01
A2: كانون اول | B2: رمز | C2: المنصرم | D2: =ALL!C2 -> 02/12/ | AJ2: هويات مستلمة | AL2: هويات OMT مستلمة + المنصرم | AM2: هويات OMT غير مسلمة
A3: بيروت | B3: A | D3: 0 | AJ3: =SUM(C3:AG3) -> 0 | AL3: =SUM(AJ3+C3) -> 0 | AM3: 0
A4: بعبدا | B4: B1 | D4: 0 | AJ4: =SUM(C4:AG4) -> 0 | AL4: =SUM(AJ4+C4) -> 0 | AM4: 0
A5: بكفيا | B5: B10 | D5: 0 | AJ5: 0 | AL5: 0 | AM5: 0
A6: المتن الشمالي العالي | B6: B11 | D6: 0 | AJ6: 0 | AL6: 0 | AM6: 0
A7: كسروان | B7: B12 | D7: =IFERROR(VLOOKUP($A7&$B7,CHOOSE({1,2},ALL!$A$4:$A$500&ALL!$B$4:$B$500,ALL!$F$4:$F$500),2,FALSE),"") -> 0 | AJ7: 0 | AL7: 0 | AM7: 0
A8: جبيل | B8: B13 | D8: =IFERROR(VLOOKUP($A8&$B8,CHOOSE({1,2},ALL!$A$4:$A$500&ALL!$B$4:$B$500,ALL!$F$4:$F$500),2,FALSE),"") -> 0 | AJ8: 0 | AL8: 0 | AM8: 0
A9: فتوح كسروان | B9: B14 | D9: =IFERROR(VLOOKUP($A9&$B9,CHOOSE({1,2},ALL!$A$4:$A$500&ALL!$B$4:$B$500,ALL!$F$4:$F$500),2,FALSE),"") -> 0 | AJ9: 0 | AL9: 0 | AM9: 0
A10: الشويفات | B10: B2 | D10: =IFERROR(VLOOKUP($A10&$B10,CHOOSE({1,2},ALL!$A$4:$A$500&ALL!$B$4:$B$500,ALL!$F$4:$F$500),2,FALSE),"") -> 0 | AJ10: 0 | AL10: 0 | AM10: 0
A11: برجا | B11: B3 | D11: =IFERROR(VLOOKUP($A11&$B11,CHOOSE({1,2},ALL!$A$4:$A$500&ALL!$B$4:$B$500,ALL!$F$4:$F$500),2,FALSE),"") -> 0 | AJ11: 0 | AL11: 0 | AM11: 0
A12: شحيم | B12: B4 | D12: =IFERROR(VLOOKUP($A12&$B12,CHOOSE({1,2},ALL!$A$4:$A$500&ALL!$B$4:$B$500,ALL!$F$4:$F$500),2,FALSE),"") -> 0 | AJ12: 0 | AL12: 0 | AM12: 0
A13: عاليه | B13: B5 | D13: =IFERROR(VLOOKUP($A13&$B13,CHOOSE({1,2},ALL!$A$4:$A$500&ALL!$B$4:$B$500,ALL!$F$4:$F$500),2,FALSE),"") -> 0 | AJ13: 0 | AL13: 0 | AM13: 0
A14: حمانا | B14: B6 | D14: =IFERROR(VLOOKUP($A14&$B14,CHOOSE({1,2},ALL!$A$4:$A$500&ALL!$B$4:$B$500,ALL!$F$4:$F$500),2,FALSE),"") -> 0 | AJ14: 0 | AL14: 0 | AM14: 0
A15: الشوف | B15: B7 | D15: =IFERROR(VLOOKUP($A15&$B15,CHOOSE({1,2},ALL!$A$4:$A$500&ALL!$B$4:$B$500,ALL!$F$4:$F$500),2,FALSE),"") -> 0 | AJ15: 0 | AL15: 0 | AM15: 0
A16: المتن | B16: B8 | D16: =IFERROR(VLOOKUP($A16&$B16,CHOOSE({1,2},ALL!$A$4:$A$500&ALL!$B$4:$B$500,ALL!$F$4:$F$500),2,FALSE),"") -> 0 | AJ16: 0 | AL16: 0 | AM16: 0
A17: انطلياس | B17: B9 | D17: =IFERROR(VLOOKUP($A17&$B17,CHOOSE({1,2},ALL!$A$4:$A$500&ALL!$B$4:$B$500,ALL!$F$4:$F$500),2,FALSE),"") -> 0 | AJ17: 0 | AL17: 0 | AM17: 0
A18: صيدا | B18: C1 | D18: =IFERROR(VLOOKUP($A18&$B18,CHOOSE({1,2},ALL!$A$4:$A$500&ALL!$B$4:$B$500,ALL!$F$4:$F$500),2,FALSE),"") -> 0 | AJ18: 0 | AL18: 0 | AM18: 0
A19: جويا | B19: C10 | D19: =IFERROR(VLOOKUP($A19&$B19,CHOOSE({1,2},ALL!$A$4:$A$500&ALL!$B$4:$B$500,ALL!$F$4:$F$500),2,FALSE),"") -> 0 | AJ19: 0 | AL19: 0 | AM19: 0
A20: ميس الجبل | B20: C11 | D20: =IFERROR(VLOOKUP($A20&$B20,CHOOSE({1,2},ALL!$A$4:$A$500&ALL!$B$4:$B$500,ALL!$F$4:$F$500),2,FALSE),"") -> 0 | AJ20: 0 | AL20: 0 | AM20: 0
A21: صور | B21: C2 | D21: =IFERROR(VLOOKUP($A21&$B21,CHOOSE({1,2},ALL!$A$4:$A$500&ALL!$B$4:$B$500,ALL!$F$4:$F$500),2,FALSE),"") -> 0 | AJ21: 0 | AL21: 0 | AM21: 0
A22: جزين | B22: C3 | D22: =IFERROR(VLOOKUP($A22&$B22,CHOOSE({1,2},ALL!$A$4:$A$500&ALL!$B$4:$B$500,ALL!$F$4:$F$500),2,FALSE),"") -> 0 | AJ22: 0 | AL22: 0 | AM22: 0
A23: النبطية | B23: C4 | D23: =IFERROR(VLOOKUP($A23&$B23,CHOOSE({1,2},ALL!$A$4:$A$500&ALL!$B$4:$B$500,ALL!$F$4:$F$500),2,FALSE),"") -> 0 | AJ23: 0 | AL23: 0 | AM23: 0
A24: بنت جبيل | B24: C5 | D24: =IFERROR(VLOOKUP($A24&$B24,CHOOSE({1,2},ALL!$A$4:$A$500&ALL!$B$4:$B$500,ALL!$F$4:$F$500),2,FALSE),"") -> 0 | AJ24: 0 | AL24: 0 | AM24: 0
A25: مرجعيون | B25: C6 | D25: =IFERROR(VLOOKUP($A25&$B25,CHOOSE({1,2},ALL!$A$4:$A$500&ALL!$B$4:$B$500,ALL!$F$4:$F$500),2,FALSE),"") -> 0 | AJ25: 0 | AL25: 0 | AM25: 0
A26: حاصبيا | B26: C7 | D26: =IFERROR(VLOOKUP($A26&$B26,CHOOSE({1,2},ALL!$A$4:$A$500&ALL!$B$4:$B$500,ALL!$F$4:$F$500),2,FALSE),"") -> 0 | AJ26: 0 | AL26: 0 | AM26: 0
A27: تبنين | B27: C8 | D27: =IFERROR(VLOOKUP($A27&$B27,CHOOSE({1,2},ALL!$A$4:$A$500&ALL!$B$4:$B$500,ALL!$F$4:$F$500),2,FALSE),"") -> 0 | AJ27: 0 | AL27: 0 | AM27: 0
A28: جباع | B28: C9 | D28: =IFERROR(VLOOKUP($A28&$B28,CHOOSE({1,2},ALL!$A$4:$A$500&ALL!$B$4:$B$500,ALL!$F$4:$F$500),2,FALSE),"") -> 0 | AJ28: 0 | AL28: 0 | AM28: 0
A29: زحلة | B29: D1 | D29: =IFERROR(VLOOKUP($A29&$B29,CHOOSE({1,2},ALL!$A$4:$A$500&ALL!$B$4:$B$500,ALL!$F$4:$F$500),2,FALSE),"") -> 0 | AJ29: 0 | AL29: 0 | AM29: 0
A30: النبي شيت | B30: D10 | D30: =IFERROR(VLOOKUP($A30&$B30,CHOOSE({1,2},ALL!$A$4:$A$500&ALL!$B$4:$B$500,ALL!$F$4:$F$500),2,FALSE),"") -> 0 | AJ30: 0 | AL30: 0 | AM30: 0
A31: راشيا | B31: D2 | D31: =IFERROR(VLOOKUP($A31&$B31,CHOOSE({1,2},ALL!$A$4:$A$500&ALL!$B$4:$B$500,ALL!$F$4:$F$500),2,FALSE),"") -> 0 | AJ31: 0 | AL31: 0 | AM31: 0
A32: البقاع الغربي | B32: D3 | D32: =IFERROR(VLOOKUP($A32&$B32,CHOOSE({1,2},ALL!$A$4:$A$500&ALL!$B$4:$B$500,ALL!$F$4:$F$500),2,FALSE),"") -> 0 | AJ32: 0 | AL32: 0 | AM32: 0
A33: شمسطار | B33: D4 | D33: =IFERROR(VLOOKUP($A33&$B33,CHOOSE({1,2},ALL!$A$4:$A$500&ALL!$B$4:$B$500,ALL!$F$4:$F$500),2,FALSE),"") -> 0 | AJ33: 0 | AL33: 0 | AM33: 0
A34: بعلبك | B34: D5 | D34: =IFERROR(VLOOKUP($A34&$B34,CHOOSE({1,2},ALL!$A$4:$A$500&ALL!$B$4:$B$500,ALL!$F$4:$F$500),2,FALSE),"") -> 0 | AJ34: 0 | AL34: 0 | AM34: 0
A35: الهرمل | B35: D6 | D35: =IFERROR(VLOOKUP($A35&$B35,CHOOSE({1,2},ALL!$A$4:$A$500&ALL!$B$4:$B$500,ALL!$F$4:$F$500),2,FALSE),"") -> 0 | AJ35: 0 | AL35: 0 | AM35: 0
A36: دير الاحمر | B36: D7 | D36: =IFERROR(VLOOKUP($A36&$B36,CHOOSE({1,2},ALL!$A$4:$A$500&ALL!$B$4:$B$500,ALL!$F$4:$F$500),2,FALSE),"") -> 0 | AJ36: 0 | AL36: 0 | AM36: 0
A37: اللبوة | B37: D8 | D37: =IFERROR(VLOOKUP($A37&$B37,CHOOSE({1,2},ALL!$A$4:$A$500&ALL!$B$4:$B$500,ALL!$F$4:$F$500),2,FALSE),"") -> 0 | AJ37: 0 | AL37: 0 | AM37: 0
A38: صغبين | B38: D9 | D38: =IFERROR(VLOOKUP($A38&$B38,CHOOSE({1,2},ALL!$A$4:$A$500&ALL!$B$4:$B$500,ALL!$F$4:$F$500),2,FALSE),"") -> 0 | AJ38: 0 | AL38: 0 | AM38: 0
A39: طرابلس | B39: E1 | D39: =IFERROR(VLOOKUP($A39&$B39,CHOOSE({1,2},ALL!$A$4:$A$500&ALL!$B$4:$B$500,ALL!$F$4:$F$500),2,FALSE),"") -> 0 | AJ39: 0 | AL39: 0 | AM39: 0
A40: دوما | B40: E10 | D40: =IFERROR(VLOOKUP($A40&$B40,CHOOSE({1,2},ALL!$A$4:$A$500&ALL!$B$4:$B$500,ALL!$F$4:$F$500),2,FALSE),"") -> 0 | AJ40: 0 | AL40: 0 | AM40: 0
A41: العبدة | B41: E11 | D41: =IFERROR(VLOOKUP($A41&$B41,CHOOSE({1,2},ALL!$A$4:$A$500&ALL!$B$4:$B$500,ALL!$F$4:$F$500),2,FALSE),"") -> 0 | AJ41: 0 | AL41: 0 | AM41: 0
A42: بخعون | B42: E12 | D42: =IFERROR(VLOOKUP($A42&$B42,CHOOSE({1,2},ALL!$A$4:$A$500&ALL!$B$4:$B$500,ALL!$F$4:$F$500),2,FALSE),"") -> 0 | AJ42: 0 | AL42: 0 | AM42: 0
A43: بيت ملات | B43: E13 | D43: =IFERROR(VLOOKUP($A43&$B43,CHOOSE({1,2},ALL!$A$4:$A$500&ALL!$B$4:$B$500,ALL!$F$4:$F$500),2,FALSE),"") -> 0 | AJ43: 0 | AL43: 0 | AM43: 0
A44: المنية | B44: E2 | D44: =IFERROR(VLOOKUP($A44&$B44,CHOOSE({1,2},ALL!$A$4:$A$500&ALL!$B$4:$B$500,ALL!$F$4:$F$500),2,FALSE),"") -> 0 | AJ44: 0 | AL44: 0 | AM44: 0
A45: سير الضنية | B45: E3 | D45: =IFERROR(VLOOKUP($A45&$B45,CHOOSE({1,2},ALL!$A$4:$A$500&ALL!$B$4:$B$500,ALL!$F$4:$F$500),2,FALSE),"") -> 0 | AJ45: 0 | AL45: 0 | AM45: 0
A46: حلبا عكار | B46: E4 | D46: =IFERROR(VLOOKUP($A46&$B46,CHOOSE({1,2},ALL!$A$4:$A$500&ALL!$B$4:$B$500,ALL!$F$4:$F$500),2,FALSE),"") -> 0 | AJ46: 0 | AL46: 0 | AM46: 0
A47: القبيات | B47: E5 | D47: =IFERROR(VLOOKUP($A47&$B47,CHOOSE({1,2},ALL!$A$4:$A$500&ALL!$B$4:$B$500,ALL!$F$4:$F$500),2,FALSE),"") -> 0 | AJ47: 0 | AL47: 0 | AM47: 0
A48: البترون | B48: E6 | D48: =IFERROR(VLOOKUP($A48&$B48,CHOOSE({1,2},ALL!$A$4:$A$500&ALL!$B$4:$B$500,ALL!$F$4:$F$500),2,FALSE),"") -> 0 | AJ48: 0 | AL48: 0 | AM48: 0
A49: الكورة | B49: E7 | D49: 0 | AJ49: 0 | AL49: 0 | AM49: 0
A50: زغرتا | B50: E8 | D50: 0 | AJ50: 0 | AL50: 0 | AM50: 0
A51: بشري | B51: E9 | D51: =IFERROR(VLOOKUP($A51&$B51,CHOOSE({1,2},ALL!$A$4:$A$500&ALL!$B$4:$B$500,ALL!$F$4:$F$500),2,FALSE),"") -> 0 | AJ51: 0 | AL51: 0 | AM51: 0
A52: المجموع | C52: =SUM(C3:C51) -> 0 | D52: =SUM(D3:D51) -> 0 | E52: 0 | F52: 0 | G52: 0 | H52: 0 | I52: 0 | J52: 0 | K52: 0 | L52: 0 | M52: 0 | N52: 0 | O52: 0 | P52: 0 | Q52: 0 | R52: 0 | S52: 0 | T52: 0 | U52: 0 | V52: 0 | W52: 0 | X52: 0 | Y52: 0 | Z52: 0 | AA52: 0 | AB52: 0 | AC52: 0 | AD52: 0 | AE52: 0 | AF52: 0 | AG52: 0 | AJ52: =SUM(AJ3:AJ50) -> 0 | AL52: =SUM(AL3:AL51) -> 0 | AM52: =SUM(AM3:AM51) -> 0

Sheet JARD_MOG
B1: جدول بعدد المغلفات المستلمة من المشغل والمسلمة الى اقلام النفوس والتي هي قيد التسليم من 2020/12/1 لغــاية 2020/12/31
A2: قلم النفوس | B2: رمز | C2: المجموع العام لغاية2020/12/31 | D2: مغلفات الشهر المنصرم | E2: مغلفات المسلمة لغاية 2020/12/31 | F2: مغلفات قيد التسليم
A3: بيروت | B3: A | C3: =IFERROR(VLOOKUP($A3&$B3,CHOOSE({1,2},MOG!$A$3:$A$500&MOG!$B$3:$B$500,MOG!$AK$3:$AK$500),2,FALSE),"") -> 4 | D3: 11 | E3: =SUM((D3+C3)-F3) -> 15 | F3: =IFERROR(VLOOKUP($A3&$B3,CHOOSE({1,2},MOG!$A$3:$A$500&MOG!$B$3:$B$500,MOG!$AM$3:$AM$500),2,FALSE),"") -> 0
A4: بعبدا | B4: B1 | C4: =IFERROR(VLOOKUP($A4&$B4,CHOOSE({1,2},MOG!$A$3:$A$500&MOG!$B$3:$B$500,MOG!$AK$3:$AK$500),2,FALSE),"") -> 3 | D4: 0 | E4: =SUM((D4+C4)-F4) -> 0 | F4: =IFERROR(VLOOKUP($A4&$B4,CHOOSE({1,2},MOG!$A$3:$A$500&MOG!$B$3:$B$500,MOG!$AM$3:$AM$500),2,FALSE),"") -> 3
A5: بكفيا | B5: B10 | C5: =IFERROR(VLOOKUP($A5&$B5,CHOOSE({1,2},MOG!$A$3:$A$500&MOG!$B$3:$B$500,MOG!$AK$3:$AK$500),2,FALSE),"") -> 4 | D5: 11 | E5: 11 | F5: =IFERROR(VLOOKUP($A5&$B5,CHOOSE({1,2},MOG!$A$3:$A$500&MOG!$B$3:$B$500,MOG!$AM$3:$AM$500),2,FALSE),"") -> 4
A6: المتن الشمالي العالي | B6: B11 | C6: =IFERROR(VLOOKUP($A6&$B6,CHOOSE({1,2},MOG!$A$3:$A$500&MOG!$B$3:$B$500,MOG!$AK$3:$AK$500),2,FALSE),"") -> 5 | D6: 7 | E6: 7 | F6: =IFERROR(VLOOKUP($A6&$B6,CHOOSE({1,2},MOG!$A$3:$A$500&MOG!$B$3:$B$500,MOG!$AM$3:$AM$500),2,FALSE),"") -> 5
A7: كسروان | B7: B12 | C7: =IFERROR(VLOOKUP($A7&$B7,CHOOSE({1,2},MOG!$A$3:$A$500&MOG!$B$3:$B$500,MOG!$AK$3:$AK$500),2,FALSE),"") -> 12 | D7: 30 | E7: 30 | F7: =IFERROR(VLOOKUP($A7&$B7,CHOOSE({1,2},MOG!$A$3:$A$500&MOG!$B$3:$B$500,MOG!$AM$3:$AM$500),2,FALSE),"") -> 12
A8: جبيل | B8: B13 | C8: =IFERROR(VLOOKUP($A8&$B8,CHOOSE({1,2},MOG!$A$3:$A$500&MOG!$B$3:$B$500,MOG!$AK$3:$AK$500),2,FALSE),"") -> 0 | D8: 12 | E8: 12 | F8: =IFERROR(VLOOKUP($A8&$B8,CHOOSE({1,2},MOG!$A$3:$A$500&MOG!$B$3:$B$500,MOG!$AM$3:$AM$500),2,FALSE),"") -> 0
A9: فتوح كسروان | B9: B14 | C9: =IFERROR(VLOOKUP($A9&$B9,CHOOSE({1,2},MOG!$A$3:$A$500&MOG!$B$3:$B$500,MOG!$AK$3:$AK$500),2,FALSE),"") -> 4 | D9: 13 | E9: 13 | F9: =IFERROR(VLOOKUP($A9&$B9,CHOOSE({1,2},MOG!$A$3:$A$500&MOG!$B$3:$B$500,MOG!$AM$3:$AM$500),2,FALSE),"") -> 4
A10: الشويفات | B10: B2 | C10: =IFERROR(VLOOKUP($A10&$B10,CHOOSE({1,2},MOG!$A$3:$A$500&MOG!$B$3:$B$500,MOG!$AK$3:$AK$500),2,FALSE),"") -> 8 | D10: 26 | E10: 26 | F10: =IFERROR(VLOOKUP($A10&$B10,CHOOSE({1,2},MOG!$A$3:$A$500&MOG!$B$3:$B$500,MOG!$AM$3:$AM$500),2,FALSE),"") -> 8
A11: برجا | B11: B3 | C11: =IFERROR(VLOOKUP($A11&$B11,CHOOSE({1,2},MOG!$A$3:$A$500&MOG!$B$3:$B$500,MOG!$AK$3:$AK$500),2,FALSE),"") -> 0 | D11: 16 | E11: 16 | F11: =IFERROR(VLOOKUP($A11&$B11,CHOOSE({1,2},MOG!$A$3:$A$500&MOG!$B$3:$B$500,MOG!$AM$3:$AM$500),2,FALSE),"") -> 0
A12: شحيم | B12: B4 | C12: =IFERROR(VLOOKUP($A12&$B12,CHOOSE({1,2},MOG!$A$3:$A$500&MOG!$B$3:$B$500,MOG!$AK$3:$AK$500),2,FALSE),"") -> 0 | D12: 2 | E12: 2 | F12: =IFERROR(VLOOKUP($A12&$B12,CHOOSE({1,2},MOG!$A$3:$A$500&MOG!$B$3:$B$500,MOG!$AM$3:$AM$500),2,FALSE),"") -> 0
A13: عاليه | B13: B5 | C13: =IFERROR(VLOOKUP($A13&$B13,CHOOSE({1,2},MOG!$A$3:$A$500&MOG!$B$3:$B$500,MOG!$AK$3:$AK$500),2,FALSE),"") -> 5 | D13: 26 | E13: 26 | F13: =IFERROR(VLOOKUP($A13&$B13,CHOOSE({1,2},MOG!$A$3:$A$500&MOG!$B$3:$B$500,MOG!$AM$3:$AM$500),2,FALSE),"") -> 5
A14: حمانا | B14: B6 | C14: =IFERROR(VLOOKUP($A14&$B14,CHOOSE({1,2},MOG!$A$3:$A$500&MOG!$B$3:$B$500,MOG!$AK$3:$AK$500),2,FALSE),"") -> 0 | D14: 11 | E14: 11 | F14: =IFERROR(VLOOKUP($A14&$B14,CHOOSE({1,2},MOG!$A$3:$A$500&MOG!$B$3:$B$500,MOG!$AM$3:$AM$500),2,FALSE),"") -> 0
A15: الشوف | B15: B7 | C15: =IFERROR(VLOOKUP($A15&$B15,CHOOSE({1,2},MOG!$A$3:$A$500&MOG!$B$3:$B$500,MOG!$AK$3:$AK$500),2,FALSE),"") -> 1 | D15: 13 | E15: 13 | F15: =IFERROR(VLOOKUP($A15&$B15,CHOOSE({1,2},MOG!$A$3:$A$500&MOG!$B$3:$B$500,MOG!$AM$3:$AM$500),2,FALSE),"") -> 1
A16: المتن | B16: B8 | C16: =IFERROR(VLOOKUP($A16&$B16,CHOOSE({1,2},MOG!$A$3:$A$500&MOG!$B$3:$B$500,MOG!$AK$3:$AK$500),2,FALSE),"") -> 6 | D16: 22 | E16: 22 | F16: =IFERROR(VLOOKUP($A16&$B16,CHOOSE({1,2},MOG!$A$3:$A$500&MOG!$B$3:$B$500,MOG!$AM$3:$AM$500),2,FALSE),"") -> 6
A17: انطلياس | B17: B9 | C17: =IFERROR(VLOOKUP($A17&$B17,CHOOSE({1,2},MOG!$A$3:$A$500&MOG!$B$3:$B$500,MOG!$AK$3:$AK$500),2,FALSE),"") -> 7 | D17: 8 | E17: 8 | F17: =IFERROR(VLOOKUP($A17&$B17,CHOOSE({1,2},MOG!$A$3:$A$500&MOG!$B$3:$B$500,MOG!$AM$3:$AM$500),2,FALSE),"") -> 7
A18: صيدا | B18: C1 | C18: =IFERROR(VLOOKUP($A18&$B18,CHOOSE({1,2},MOG!$A$3:$A$500&MOG!$B$3:$B$500,MOG!$AK$3:$AK$500),2,FALSE),"") -> 0 | D18: 9 | E18: 9 | F18: =IFERROR(VLOOKUP($A18&$B18,CHOOSE({1,2},MOG!$A$3:$A$500&MOG!$B$3:$B$500,MOG!$AM$3:$AM$500),2,FALSE),"") -> 0
A19: جويا | B19: C10 | C19: =IFERROR(VLOOKUP($A19&$B19,CHOOSE({1,2},MOG!$A$3:$A$500&MOG!$B$3:$B$500,MOG!$AK$3:$AK$500),2,FALSE),"") -> 0 | D19: 21 | E19: 21 | F19: =IFERROR(VLOOKUP($A19&$B19,CHOOSE({1,2},MOG!$A$3:$A$500&MOG!$B$3:$B$500,MOG!$AM$3:$AM$500),2,FALSE),"") -> 0
A20: ميس الجبل | B20: C11 | C20: =IFERROR(VLOOKUP($A20&$B20,CHOOSE({1,2},MOG!$A$3:$A$500&MOG!$B$3:$B$500,MOG!$AK$3:$AK$500),2,FALSE),"") -> 0 | D20: 12 | E20: 12 | F20: =IFERROR(VLOOKUP($A20&$B20,CHOOSE({1,2},MOG!$A$3:$A$500&MOG!$B$3:$B$500,MOG!$AM$3:$AM$500),2,FALSE),"") -> 0
A21: صور | B21: C2 | C21: =IFERROR(VLOOKUP($A21&$B21,CHOOSE({1,2},MOG!$A$3:$A$500&MOG!$B$3:$B$500,MOG!$AK$3:$AK$500),2,FALSE),"") -> 0 | D21: 42 | E21: 42 | F21: =IFERROR(VLOOKUP($A21&$B21,CHOOSE({1,2},MOG!$A$3:$A$500&MOG!$B$3:$B$500,MOG!$AM$3:$AM$500),2,FALSE),"") -> 0
A22: جزين | B22: C3 | C22: =IFERROR(VLOOKUP($A22&$B22,CHOOSE({1,2},MOG!$A$3:$A$500&MOG!$B$3:$B$500,MOG!$AK$3:$AK$500),2,FALSE),"") -> 0 | D22: 8 | E22: 8 | F22: =IFERROR(VLOOKUP($A22&$B22,CHOOSE({1,2},MOG!$A$3:$A$500&MOG!$B$3:$B$500,MOG!$AM$3:$AM$500),2,FALSE),"") -> 0
A23: النبطية | B23: C4 | C23: =IFERROR(VLOOKUP($A23&$B23,CHOOSE({1,2},MOG!$A$3:$A$500&MOG!$B$3:$B$500,MOG!$AK$3:$AK$500),2,FALSE),"") -> 2 | D23: 47 | E23: 47 | F23: =IFERROR(VLOOKUP($A23&$B23,CHOOSE({1,2},MOG!$A$3:$A$500&MOG!$B$3:$B$500,MOG!$AM$3:$AM$500),2,FALSE),"") -> 2
A24: بنت جبيل | B24: C5 | C24: =IFERROR(VLOOKUP($A24&$B24,CHOOSE({1,2},MOG!$A$3:$A$500&MOG!$B$3:$B$500,MOG!$AK$3:$AK$500),2,FALSE),"") -> 2 | D24: 46 | E24: 46 | F24: =IFERROR(VLOOKUP($A24&$B24,CHOOSE({1,2},MOG!$A$3:$A$500&MOG!$B$3:$B$500,MOG!$AM$3:$AM$500),2,FALSE),"") -> 2
A25: مرجعيون | B25: C6 | C25: =IFERROR(VLOOKUP($A25&$B25,CHOOSE({1,2},MOG!$A$3:$A$500&MOG!$B$3:$B$500,MOG!$AK$3:$AK$500),2,FALSE),"") -> 0 | D25: 15 | E25: 15 | F25: =IFERROR(VLOOKUP($A25&$B25,CHOOSE({1,2},MOG!$A$3:$A$500&MOG!$B$3:$B$500,MOG!$AM$3:$AM$500),2,FALSE),"") -> 0
A26: حاصبيا | B26: C7 | C26: =IFERROR(VLOOKUP($A26&$B26,CHOOSE({1,2},MOG!$A$3:$A$500&MOG!$B$3:$B$500,MOG!$AK$3:$AK$500),2,FALSE),"") -> 0 | D26: 21 | E26: 21 | F26: =IFERROR(VLOOKUP($A26&$B26,CHOOSE({1,2},MOG!$A$3:$A$500&MOG!$B$3:$B$500,MOG!$AM$3:$AM$500),2,FALSE),"") -> 0
A27: تبنين | B27: C8 | C27: =IFERROR(VLOOKUP($A27&$B27,CHOOSE({1,2},MOG!$A$3:$A$500&MOG!$B$3:$B$500,MOG!$AK$3:$AK$500),2,FALSE),"") -> 2 | D27: 37 | E27: 37 | F27: =IFERROR(VLOOKUP($A27&$B27,CHOOSE({1,2},MOG!$A$3:$A$500&MOG!$B$3:$B$500,MOG!$AM$3:$AM$500),2,FALSE),"") -> 2
A28: جباع | B28: C9 | C28: =IFERROR(VLOOKUP($A28&$B28,CHOOSE({1,2},MOG!$A$3:$A$500&MOG!$B$3:$B$500,MOG!$AK$3:$AK$500),2,FALSE),"") -> 1 | D28: 17 | E28: 17 | F28: =IFERROR(VLOOKUP($A28&$B28,CHOOSE({1,2},MOG!$A$3:$A$500&MOG!$B$3:$B$500,MOG!$AM$3:$AM$500),2,FALSE),"") -> 1
A29: زحلة | B29: D1 | C29: =IFERROR(VLOOKUP($A29&$B29,CHOOSE({1,2},MOG!$A$3:$A$500&MOG!$B$3:$B$500,MOG!$AK$3:$AK$500),2,FALSE),"") -> 4 | D29: 80 | E29: 80 | F29: =IFERROR(VLOOKUP($A29&$B29,CHOOSE({1,2},MOG!$A$3:$A$500&MOG!$B$3:$B$500,MOG!$AM$3:$AM$500),2,FALSE),"") -> 4
A30: النبي شيت | B30: D10 | C30: =IFERROR(VLOOKUP($A30&$B30,CHOOSE({1,2},MOG!$A$3:$A$500&MOG!$B$3:$B$500,MOG!$AK$3:$AK$500),2,FALSE),"") -> 11 | D30: 18 | E30: 18 | F30: =IFERROR(VLOOKUP($A30&$B30,CHOOSE({1,2},MOG!$A$3:$A$500&MOG!$B$3:$B$500,MOG!$AM$3:$AM$500),2,FALSE),"") -> 11
A31: راشيا | B31: D2 | C31: =IFERROR(VLOOKUP($A31&$B31,CHOOSE({1,2},MOG!$A$3:$A$500&MOG!$B$3:$B$500,MOG!$AK$3:$AK$500),2,FALSE),"") -> 0 | D31: 22 | E31: 22 | F31: =IFERROR(VLOOKUP($A31&$B31,CHOOSE({1,2},MOG!$A$3:$A$500&MOG!$B$3:$B$500,MOG!$AM$3:$AM$500),2,FALSE),"") -> 0
A32: البقاع الغربي | B32: D3 | C32: =IFERROR(VLOOKUP($A32&$B32,CHOOSE({1,2},MOG!$A$3:$A$500&MOG!$B$3:$B$500,MOG!$AK$3:$AK$500),2,FALSE),"") -> 2 | D32: 47 | E32: 47 | F32: =IFERROR(VLOOKUP($A32&$B32,CHOOSE({1,2},MOG!$A$3:$A$500&MOG!$B$3:$B$500,MOG!$AM$3:$AM$500),2,FALSE),"") -> 2
A33: شمسطار | B33: D4 | C33: =IFERROR(VLOOKUP($A33&$B33,CHOOSE({1,2},MOG!$A$3:$A$500&MOG!$B$3:$B$500,MOG!$AK$3:$AK$500),2,FALSE),"") -> 5 | D33: 25 | E33: 25 | F33: =IFERROR(VLOOKUP($A33&$B33,CHOOSE({1,2},MOG!$A$3:$A$500&MOG!$B$3:$B$500,MOG!$AM$3:$AM$500),2,FALSE),"") -> 5
A34: بعلبك | B34: D5 | C34: =IFERROR(VLOOKUP($A34&$B34,CHOOSE({1,2},MOG!$A$3:$A$500&MOG!$B$3:$B$500,MOG!$AK$3:$AK$500),2,FALSE),"") -> 19 | D34: 57 | E34: 57 | F34: =IFERROR(VLOOKUP($A34&$B34,CHOOSE({1,2},MOG!$A$3:$A$500&MOG!$B$3:$B$500,MOG!$AM$3:$AM$500),2,FALSE),"") -> 19
A35: الهرمل | B35: D6 | C35: =IFERROR(VLOOKUP($A35&$B35,CHOOSE({1,2},MOG!$A$3:$A$500&MOG!$B$3:$B$500,MOG!$AK$3:$AK$500),2,FALSE),"") -> 0 | D35: 30 | E35: 30 | F35: =IFERROR(VLOOKUP($A35&$B35,CHOOSE({1,2},MOG!$A$3:$A$500&MOG!$B$3:$B$500,MOG!$AM$3:$AM$500),2,FALSE),"") -> 0
A36: دير الاحمر | B36: D7 | C36: =IFERROR(VLOOKUP($A36&$B36,CHOOSE({1,2},MOG!$A$3:$A$500&MOG!$B$3:$B$500,MOG!$AK$3:$AK$500),2,FALSE),"") -> 6 | D36: 12 | E36: 12 | F36: =IFERROR(VLOOKUP($A36&$B36,CHOOSE({1,2},MOG!$A$3:$A$500&MOG!$B$3:$B$500,MOG!$AM$3:$AM$500),2,FALSE),"") -> 6
A37: اللبوة | B37: D8 | C37: =IFERROR(VLOOKUP($A37&$B37,CHOOSE({1,2},MOG!$A$3:$A$500&MOG!$B$3:$B$500,MOG!$AK$3:$AK$500),2,FALSE),"") -> 0 | D37: 47 | E37: 47 | F37: =IFERROR(VLOOKUP($A37&$B37,CHOOSE({1,2},MOG!$A$3:$A$500&MOG!$B$3:$B$500,MOG!$AM$3:$AM$500),2,FALSE),"") -> 0
A38: صغبين | B38: D9 | C38: =IFERROR(VLOOKUP($A38&$B38,CHOOSE({1,2},MOG!$A$3:$A$500&MOG!$B$3:$B$500,MOG!$AK$3:$AK$500),2,FALSE),"") -> 2 | D38: 33 | E38: 33 | F38: =IFERROR(VLOOKUP($A38&$B38,CHOOSE({1,2},MOG!$A$3:$A$500&MOG!$B$3:$B$500,MOG!$AM$3:$AM$500),2,FALSE),"") -> 2
A39: طرابلس | B39: E1 | C39: =IFERROR(VLOOKUP($A39&$B39,CHOOSE({1,2},MOG!$A$3:$A$500&MOG!$B$3:$B$500,MOG!$AK$3:$AK$500),2,FALSE),"") -> 4 | D39: 0 | E39: 0 | F39: =IFERROR(VLOOKUP($A39&$B39,CHOOSE({1,2},MOG!$A$3:$A$500&MOG!$B$3:$B$500,MOG!$AM$3:$AM$500),2,FALSE),"") -> 4
A40: دوما | B40: E10 | C40: =IFERROR(VLOOKUP($A40&$B40,CHOOSE({1,2},MOG!$A$3:$A$500&MOG!$B$3:$B$500,MOG!$AK$3:$AK$500),2,FALSE),"") -> 4 | D40: 4 | E40: 4 | F40: =IFERROR(VLOOKUP($A40&$B40,CHOOSE({1,2},MOG!$A$3:$A$500&MOG!$B$3:$B$500,MOG!$AM$3:$AM$500),2,FALSE),"") -> 4
A41: العبدة | B41: E11 | C41: =IFERROR(VLOOKUP($A41&$B41,CHOOSE({1,2},MOG!$A$3:$A$500&MOG!$B$3:$B$500,MOG!$AK$3:$AK$500),2,FALSE),"") -> 0 | D41: 11 | E41: 11 | F41: =IFERROR(VLOOKUP($A41&$B41,CHOOSE({1,2},MOG!$A$3:$A$500&MOG!$B$3:$B$500,MOG!$AM$3:$AM$500),2,FALSE),"") -> 0
A42: بخعون | B42: E12 | C42: =IFERROR(VLOOKUP($A42&$B42,CHOOSE({1,2},MOG!$A$3:$A$500&MOG!$B$3:$B$500,MOG!$AK$3:$AK$500),2,FALSE),"") -> 0 | D42: 2 | E42: 2 | F42: =IFERROR(VLOOKUP($A42&$B42,CHOOSE({1,2},MOG!$A$3:$A$500&MOG!$B$3:$B$500,MOG!$AM$3:$AM$500),2,FALSE),"") -> 0
A43: بيت ملات | B43: E13 | C43: =IFERROR(VLOOKUP($A43&$B43,CHOOSE({1,2},MOG!$A$3:$A$500&MOG!$B$3:$B$500,MOG!$AK$3:$AK$500),2,FALSE),"") -> 0 | D43: 10 | E43: 10 | F43: =IFERROR(VLOOKUP($A43&$B43,CHOOSE({1,2},MOG!$A$3:$A$500&MOG!$B$3:$B$500,MOG!$AM$3:$AM$500),2,FALSE),"") -> 0
A44: المنية | B44: E2 | C44: =IFERROR(VLOOKUP($A44&$B44,CHOOSE({1,2},MOG!$A$3:$A$500&MOG!$B$3:$B$500,MOG!$AK$3:$AK$500),2,FALSE),"") -> 1 | D44: 20 | E44: 20 | F44: =IFERROR(VLOOKUP($A44&$B44,CHOOSE({1,2},MOG!$A$3:$A$500&MOG!$B$3:$B$500,MOG!$AM$3:$AM$500),2,FALSE),"") -> 1
A45: سير الضنية | B45: E3 | C45: =IFERROR(VLOOKUP($A45&$B45,CHOOSE({1,2},MOG!$A$3:$A$500&MOG!$B$3:$B$500,MOG!$AK$3:$AK$500),2,FALSE),"") -> 2 | D45: 11 | E45: 11 | F45: =IFERROR(VLOOKUP($A45&$B45,CHOOSE({1,2},MOG!$A$3:$A$500&MOG!$B$3:$B$500,MOG!$AM$3:$AM$500),2,FALSE),"") -> 2
A46: حلبا عكار | B46: E4 | C46: =IFERROR(VLOOKUP($A46&$B46,CHOOSE({1,2},MOG!$A$3:$A$500&MOG!$B$3:$B$500,MOG!$AK$3:$AK$500),2,FALSE),"") -> 0 | D46: 7 | E46: 7 | F46: =IFERROR(VLOOKUP($A46&$B46,CHOOSE({1,2},MOG!$A$3:$A$500&MOG!$B$3:$B$500,MOG!$AM$3:$AM$500),2,FALSE),"") -> 0
A47: القبيات | B47: E5 | C47: =IFERROR(VLOOKUP($A47&$B47,CHOOSE({1,2},MOG!$A$3:$A$500&MOG!$B$3:$B$500,MOG!$AK$3:$AK$500),2,FALSE),"") -> 0 | D47: 18 | E47: 18 | F47: =IFERROR(VLOOKUP($A47&$B47,CHOOSE({1,2},MOG!$A$3:$A$500&MOG!$B$3:$B$500,MOG!$AM$3:$AM$500),2,FALSE),"") -> 0
A48: البترون | B48: E6 | C48: =IFERROR(VLOOKUP($A48&$B48,CHOOSE({1,2},MOG!$A$3:$A$500&MOG!$B$3:$B$500,MOG!$AK$3:$AK$500),2,FALSE),"") -> 3 | D48: 5 | E48: 5 | F48: =IFERROR(VLOOKUP($A48&$B48,CHOOSE({1,2},MOG!$A$3:$A$500&MOG!$B$3:$B$500,MOG!$AM$3:$AM$500),2,FALSE),"") -> 3
A49: الكورة | B49: E7 | C49: =IFERROR(VLOOKUP($A49&$B49,CHOOSE({1,2},MOG!$A$3:$A$500&MOG!$B$3:$B$500,MOG!$AK$3:$AK$500),2,FALSE),"") -> 5 | D49: 9 | E49: 9 | F49: =IFERROR(VLOOKUP($A49&$B49,CHOOSE({1,2},MOG!$A$3:$A$500&MOG!$B$3:$B$500,MOG!$AM$3:$AM$500),2,FALSE),"") -> 5
A50: زغرتا | B50: E8 | C50: =IFERROR(VLOOKUP($A50&$B50,CHOOSE({1,2},MOG!$A$3:$A$500&MOG!$B$3:$B$500,MOG!$AK$3:$AK$500),2,FALSE),"") -> 1 | D50: 13 | E50: 13 | F50: =IFERROR(VLOOKUP($A50&$B50,CHOOSE({1,2},MOG!$A$3:$A$500&MOG!$B$3:$B$500,MOG!$AM$3:$AM$500),2,FALSE),"") -> 1
A51: بشري | B51: E9 | C51: =IFERROR(VLOOKUP($A51&$B51,CHOOSE({1,2},MOG!$A$3:$A$500&MOG!$B$3:$B$500,MOG!$AK$3:$AK$500),2,FALSE),"") -> 4 | D51: 2 | E51: 2 | F51: =IFERROR(VLOOKUP($A51&$B51,CHOOSE({1,2},MOG!$A$3:$A$500&MOG!$B$3:$B$500,MOG!$AM$3:$AM$500),2,FALSE),"") -> 4
A52: المجموع العام | C52: =SUM(C3:C51) -> 139 | D52: =SUM(D3:D51) -> 966 | E52: =SUM(E3:E51) -> 970 | F52: =SUM(F3:F51) -> 135

Sheet JARD_HA
B1: جدول بعدد الهويات المستلمة من المشغل والمسلمة الى اقلام النفوس والتي هي قيد التسليم من 2020/12/1 لغــاية 2020/12/31
A2: قلم النفوس | B2: رمز | C2: المجموع العام لغاية2020/12/31 | D2: بطاقات الشهر المنصرم | E2: بطاقات المسلمة لغاية 2020/12/31 | F2: بطاقات قيد التسليم
A3: بيروت | B3: A | C3: =IFERROR(VLOOKUP($A3&$B3,CHOOSE({1,2},HA!$A$3:$A$500&HA!$B$3:$B$500,HA!$AK$3:$AK$500),2,FALSE),"") -> 4 | D3: 140 | E3: =SUM((D3+C3)-F3) -> 144 | F3: =IFERROR(VLOOKUP($A3&$B3,CHOOSE({1,2},HA!$A$3:$A$500&HA!$B$3:$B$500,HA!$AM$3:$AM$500),2,FALSE),"") -> 0
A4: بعبدا | B4: B1 | C4: =IFERROR(VLOOKUP($A4&$B4,CHOOSE({1,2},HA!$A$3:$A$500&HA!$B$3:$B$500,HA!$AK$3:$AK$500),2,FALSE),"") -> 22 | D4: 0 | E4: =SUM((D4+C4)-F4) -> 0 | F4: =IFERROR(VLOOKUP($A4&$B4,CHOOSE({1,2},HA!$A$3:$A$500&HA!$B$3:$B$500,HA!$AM$3:$AM$500),2,FALSE),"") -> 22
A5: بكفيا | B5: B10 | C5: =IFERROR(VLOOKUP($A5&$B5,CHOOSE({1,2},HA!$A$3:$A$500&HA!$B$3:$B$500,HA!$AK$3:$AK$500),2,FALSE),"") -> 82 | D5: 88 | E5: 88 | F5: =IFERROR(VLOOKUP($A5&$B5,CHOOSE({1,2},HA!$A$3:$A$500&HA!$B$3:$B$500,HA!$AM$3:$AM$500),2,FALSE),"") -> 82
A6: المتن الشمالي العالي | B6: B11 | C6: =IFERROR(VLOOKUP($A6&$B6,CHOOSE({1,2},HA!$A$3:$A$500&HA!$B$3:$B$500,HA!$AK$3:$AK$500),2,FALSE),"") -> 9 | D6: 16 | E6: 16 | F6: =IFERROR(VLOOKUP($A6&$B6,CHOOSE({1,2},HA!$A$3:$A$500&HA!$B$3:$B$500,HA!$AM$3:$AM$500),2,FALSE),"") -> 9
A7: كسروان | B7: B12 | C7: =IFERROR(VLOOKUP($A7&$B7,CHOOSE({1,2},HA!$A$3:$A$500&HA!$B$3:$B$500,HA!$AK$3:$AK$500),2,FALSE),"") -> 63 | D7: 81 | E7: 81 | F7: =IFERROR(VLOOKUP($A7&$B7,CHOOSE({1,2},HA!$A$3:$A$500&HA!$B$3:$B$500,HA!$AM$3:$AM$500),2,FALSE),"") -> 63
A8: جبيل | B8: B13 | C8: =IFERROR(VLOOKUP($A8&$B8,CHOOSE({1,2},HA!$A$3:$A$500&HA!$B$3:$B$500,HA!$AK$3:$AK$500),2,FALSE),"") -> 0 | D8: 81 | E8: 81 | F8: =IFERROR(VLOOKUP($A8&$B8,CHOOSE({1,2},HA!$A$3:$A$500&HA!$B$3:$B$500,HA!$AM$3:$AM$500),2,FALSE),"") -> 0
A9: فتوح كسروان | B9: B14 | C9: =IFERROR(VLOOKUP($A9&$B9,CHOOSE({1,2},HA!$A$3:$A$500&HA!$B$3:$B$500,HA!$AK$3:$AK$500),2,FALSE),"") -> 22 | D9: 22 | E9: 22 | F9: =IFERROR(VLOOKUP($A9&$B9,CHOOSE({1,2},HA!$A$3:$A$500&HA!$B$3:$B$500,HA!$AM$3:$AM$500),2,FALSE),"") -> 22
A10: الشويفات | B10: B2 | C10: =IFERROR(VLOOKUP($A10&$B10,CHOOSE({1,2},HA!$A$3:$A$500&HA!$B$3:$B$500,HA!$AK$3:$AK$500),2,FALSE),"") -> 24 | D10: 58 | E10: 58 | F10: =IFERROR(VLOOKUP($A10&$B10,CHOOSE({1,2},HA!$A$3:$A$500&HA!$B$3:$B$500,HA!$AM$3:$AM$500),2,FALSE),"") -> 24
A11: برجا | B11: B3 | C11: =IFERROR(VLOOKUP($A11&$B11,CHOOSE({1,2},HA!$A$3:$A$500&HA!$B$3:$B$500,HA!$AK$3:$AK$500),2,FALSE),"") -> 0 | D11: 44 | E11: 44 | F11: =IFERROR(VLOOKUP($A11&$B11,CHOOSE({1,2},HA!$A$3:$A$500&HA!$B$3:$B$500,HA!$AM$3:$AM$500),2,FALSE),"") -> 0
A12: شحيم | B12: B4 | C12: =IFERROR(VLOOKUP($A12&$B12,CHOOSE({1,2},HA!$A$3:$A$500&HA!$B$3:$B$500,HA!$AK$3:$AK$500),2,FALSE),"") -> 0 | D12: 5 | E12: 5 | F12: =IFERROR(VLOOKUP($A12&$B12,CHOOSE({1,2},HA!$A$3:$A$500&HA!$B$3:$B$500,HA!$AM$3:$AM$500),2,FALSE),"") -> 0
A13: عاليه | B13: B5 | C13: =IFERROR(VLOOKUP($A13&$B13,CHOOSE({1,2},HA!$A$3:$A$500&HA!$B$3:$B$500,HA!$AK$3:$AK$500),2,FALSE),"") -> 7 | D13: 51 | E13: 51 | F13: =IFERROR(VLOOKUP($A13&$B13,CHOOSE({1,2},HA!$A$3:$A$500&HA!$B$3:$B$500,HA!$AM$3:$AM$500),2,FALSE),"") -> 7
A14: حمانا | B14: B6 | C14: =IFERROR(VLOOKUP($A14&$B14,CHOOSE({1,2},HA!$A$3:$A$500&HA!$B$3:$B$500,HA!$AK$3:$AK$500),2,FALSE),"") -> 0 | D14: 10 | E14: 10 | F14: =IFERROR(VLOOKUP($A14&$B14,CHOOSE({1,2},HA!$A$3:$A$500&HA!$B$3:$B$500,HA!$AM$3:$AM$500),2,FALSE),"") -> 0
A15: الشوف | B15: B7 | C15: =IFERROR(VLOOKUP($A15&$B15,CHOOSE({1,2},HA!$A$3:$A$500&HA!$B$3:$B$500,HA!$AK$3:$AK$500),2,FALSE),"") -> 1 | D15: 19 | E15: 19 | F15: =IFERROR(VLOOKUP($A15&$B15,CHOOSE({1,2},HA!$A$3:$A$500&HA!$B$3:$B$500,HA!$AM$3:$AM$500),2,FALSE),"") -> 1
A16: المتن | B16: B8 | C16: =IFERROR(VLOOKUP($A16&$B16,CHOOSE({1,2},HA!$A$3:$A$500&HA!$B$3:$B$500,HA!$AK$3:$AK$500),2,FALSE),"") -> 14 | D16: 62 | E16: 62 | F16: =IFERROR(VLOOKUP($A16&$B16,CHOOSE({1,2},HA!$A$3:$A$500&HA!$B$3:$B$500,HA!$AM$3:$AM$500),2,FALSE),"") -> 14
A17: انطلياس | B17: B9 | C17: =IFERROR(VLOOKUP($A17&$B17,CHOOSE({1,2},HA!$A$3:$A$500&HA!$B$3:$B$500,HA!$AK$3:$AK$500),2,FALSE),"") -> 28 | D17: 36 | E17: 36 | F17: =IFERROR(VLOOKUP($A17&$B17,CHOOSE({1,2},HA!$A$3:$A$500&HA!$B$3:$B$500,HA!$AM$3:$AM$500),2,FALSE),"") -> 28
A18: صيدا | B18: C1 | C18: =IFERROR(VLOOKUP($A18&$B18,CHOOSE({1,2},HA!$A$3:$A$500&HA!$B$3:$B$500,HA!$AK$3:$AK$500),2,FALSE),"") -> 0 | D18: 16 | E18: 16 | F18: =IFERROR(VLOOKUP($A18&$B18,CHOOSE({1,2},HA!$A$3:$A$500&HA!$B$3:$B$500,HA!$AM$3:$AM$500),2,FALSE),"") -> 0
A19: جويا | B19: C10 | C19: =IFERROR(VLOOKUP($A19&$B19,CHOOSE({1,2},HA!$A$3:$A$500&HA!$B$3:$B$500,HA!$AK$3:$AK$500),2,FALSE),"") -> 0 | D19: 90 | E19: 90 | F19: =IFERROR(VLOOKUP($A19&$B19,CHOOSE({1,2},HA!$A$3:$A$500&HA!$B$3:$B$500,HA!$AM$3:$AM$500),2,FALSE),"") -> 0
A20: ميس الجبل | B20: C11 | C20: =IFERROR(VLOOKUP($A20&$B20,CHOOSE({1,2},HA!$A$3:$A$500&HA!$B$3:$B$500,HA!$AK$3:$AK$500),2,FALSE),"") -> 0 | D20: 69 | E20: 69 | F20: =IFERROR(VLOOKUP($A20&$B20,CHOOSE({1,2},HA!$A$3:$A$500&HA!$B$3:$B$500,HA!$AM$3:$AM$500),2,FALSE),"") -> 0
A21: صور | B21: C2 | C21: =IFERROR(VLOOKUP($A21&$B21,CHOOSE({1,2},HA!$A$3:$A$500&HA!$B$3:$B$500,HA!$AK$3:$AK$500),2,FALSE),"") -> 0 | D21: 139 | E21: 139 | F21: =IFERROR(VLOOKUP($A21&$B21,CHOOSE({1,2},HA!$A$3:$A$500&HA!$B$3:$B$500,HA!$AM$3:$AM$500),2,FALSE),"") -> 0
A22: جزين | B22: C3 | C22: =IFERROR(VLOOKUP($A22&$B22,CHOOSE({1,2},HA!$A$3:$A$500&HA!$B$3:$B$500,HA!$AK$3:$AK$500),2,FALSE),"") -> 0 | D22: 13 | E22: 13 | F22: =IFERROR(VLOOKUP($A22&$B22,CHOOSE({1,2},HA!$A$3:$A$500&HA!$B$3:$B$500,HA!$AM$3:$AM$500),2,FALSE),"") -> 0
A23: النبطية | B23: C4 | C23: =IFERROR(VLOOKUP($A23&$B23,CHOOSE({1,2},HA!$A$3:$A$500&HA!$B$3:$B$500,HA!$AK$3:$AK$500),2,FALSE),"") -> 2 | D23: 94 | E23: 94 | F23: =IFERROR(VLOOKUP($A23&$B23,CHOOSE({1,2},HA!$A$3:$A$500&HA!$B$3:$B$500,HA!$AM$3:$AM$500),2,FALSE),"") -> 2
A24: بنت جبيل | B24: C5 | C24: =IFERROR(VLOOKUP($A24&$B24,CHOOSE({1,2},HA!$A$3:$A$500&HA!$B$3:$B$500,HA!$AK$3:$AK$500),2,FALSE),"") -> 3 | D24: 216 | E24: 216 | F24: =IFERROR(VLOOKUP($A24&$B24,CHOOSE({1,2},HA!$A$3:$A$500&HA!$B$3:$B$500,HA!$AM$3:$AM$500),2,FALSE),"") -> 3
A25: مرجعيون | B25: C6 | C25: =IFERROR(VLOOKUP($A25&$B25,CHOOSE({1,2},HA!$A$3:$A$500&HA!$B$3:$B$500,HA!$AK$3:$AK$500),2,FALSE),"") -> 0 | D25: 29 | E25: 29 | F25: =IFERROR(VLOOKUP($A25&$B25,CHOOSE({1,2},HA!$A$3:$A$500&HA!$B$3:$B$500,HA!$AM$3:$AM$500),2,FALSE),"") -> 0
A26: حاصبيا | B26: C7 | C26: =IFERROR(VLOOKUP($A26&$B26,CHOOSE({1,2},HA!$A$3:$A$500&HA!$B$3:$B$500,HA!$AK$3:$AK$500),2,FALSE),"") -> 0 | D26: 45 | E26: 45 | F26: =IFERROR(VLOOKUP($A26&$B26,CHOOSE({1,2},HA!$A$3:$A$500&HA!$B$3:$B$500,HA!$AM$3:$AM$500),2,FALSE),"") -> 0
A27: تبنين | B27: C8 | C27: =IFERROR(VLOOKUP($A27&$B27,CHOOSE({1,2},HA!$A$3:$A$500&HA!$B$3:$B$500,HA!$AK$3:$AK$500),2,FALSE),"") -> 3 | D27: 97 | E27: 97 | F27: =IFERROR(VLOOKUP($A27&$B27,CHOOSE({1,2},HA!$A$3:$A$500&HA!$B$3:$B$500,HA!$AM$3:$AM$500),2,FALSE),"") -> 3
A28: جباع | B28: C9 | C28: =IFERROR(VLOOKUP($A28&$B28,CHOOSE({1,2},HA!$A$3:$A$500&HA!$B$3:$B$500,HA!$AK$3:$AK$500),2,FALSE),"") -> 1 | D28: 60 | E28: 60 | F28: =IFERROR(VLOOKUP($A28&$B28,CHOOSE({1,2},HA!$A$3:$A$500&HA!$B$3:$B$500,HA!$AM$3:$AM$500),2,FALSE),"") -> 1
A29: زحلة | B29: D1 | C29: =IFERROR(VLOOKUP($A29&$B29,CHOOSE({1,2},HA!$A$3:$A$500&HA!$B$3:$B$500,HA!$AK$3:$AK$500),2,FALSE),"") -> 21 | D29: 322 | E29: 322 | F29: =IFERROR(VLOOKUP($A29&$B29,CHOOSE({1,2},HA!$A$3:$A$500&HA!$B$3:$B$500,HA!$AM$3:$AM$500),2,FALSE),"") -> 21
A30: النبي شيت | B30: D10 | C30: =IFERROR(VLOOKUP($A30&$B30,CHOOSE({1,2},HA!$A$3:$A$500&HA!$B$3:$B$500,HA!$AK$3:$AK$500),2,FALSE),"") -> 68 | D30: 36 | E30: 36 | F30: =IFERROR(VLOOKUP($A30&$B30,CHOOSE({1,2},HA!$A$3:$A$500&HA!$B$3:$B$500,HA!$AM$3:$AM$500),2,FALSE),"") -> 68
A31: راشيا | B31: D2 | C31: =IFERROR(VLOOKUP($A31&$B31,CHOOSE({1,2},HA!$A$3:$A$500&HA!$B$3:$B$500,HA!$AK$3:$AK$500),2,FALSE),"") -> 0 | D31: 82 | E31: 82 | F31: =IFERROR(VLOOKUP($A31&$B31,CHOOSE({1,2},HA!$A$3:$A$500&HA!$B$3:$B$500,HA!$AM$3:$AM$500),2,FALSE),"") -> 0
A32: البقاع الغربي | B32: D3 | C32: =IFERROR(VLOOKUP($A32&$B32,CHOOSE({1,2},HA!$A$3:$A$500&HA!$B$3:$B$500,HA!$AK$3:$AK$500),2,FALSE),"") -> 4 | D32: 174 | E32: 174 | F32: =IFERROR(VLOOKUP($A32&$B32,CHOOSE({1,2},HA!$A$3:$A$500&HA!$B$3:$B$500,HA!$AM$3:$AM$500),2,FALSE),"") -> 4
A33: شمسطار | B33: D4 | C33: =IFERROR(VLOOKUP($A33&$B33,CHOOSE({1,2},HA!$A$3:$A$500&HA!$B$3:$B$500,HA!$AK$3:$AK$500),2,FALSE),"") -> 10 | D33: 93 | E33: 93 | F33: =IFERROR(VLOOKUP($A33&$B33,CHOOSE({1,2},HA!$A$3:$A$500&HA!$B$3:$B$500,HA!$AM$3:$AM$500),2,FALSE),"") -> 10
A34: بعلبك | B34: D5 | C34: =IFERROR(VLOOKUP($A34&$B34,CHOOSE({1,2},HA!$A$3:$A$500&HA!$B$3:$B$500,HA!$AK$3:$AK$500),2,FALSE),"") -> 58 | D34: 167 | E34: 167 | F34: =IFERROR(VLOOKUP($A34&$B34,CHOOSE({1,2},HA!$A$3:$A$500&HA!$B$3:$B$500,HA!$AM$3:$AM$500),2,FALSE),"") -> 58
A35: الهرمل | B35: D6 | C35: =IFERROR(VLOOKUP($A35&$B35,CHOOSE({1,2},HA!$A$3:$A$500&HA!$B$3:$B$500,HA!$AK$3:$AK$500),2,FALSE),"") -> 0 | D35: 131 | E35: 131 | F35: =IFERROR(VLOOKUP($A35&$B35,CHOOSE({1,2},HA!$A$3:$A$500&HA!$B$3:$B$500,HA!$AM$3:$AM$500),2,FALSE),"") -> 0
A36: دير الاحمر | B36: D7 | C36: =IFERROR(VLOOKUP($A36&$B36,CHOOSE({1,2},HA!$A$3:$A$500&HA!$B$3:$B$500,HA!$AK$3:$AK$500),2,FALSE),"") -> 14 | D36: 24 | E36: 24 | F36: =IFERROR(VLOOKUP($A36&$B36,CHOOSE({1,2},HA!$A$3:$A$500&HA!$B$3:$B$500,HA!$AM$3:$AM$500),2,FALSE),"") -> 14
A37: اللبوة | B37: D8 | C37: =IFERROR(VLOOKUP($A37&$B37,CHOOSE({1,2},HA!$A$3:$A$500&HA!$B$3:$B$500,HA!$AK$3:$AK$500),2,FALSE),"") -> 0 | D37: 144 | E37: 144 | F37: =IFERROR(VLOOKUP($A37&$B37,CHOOSE({1,2},HA!$A$3:$A$500&HA!$B$3:$B$500,HA!$AM$3:$AM$500),2,FALSE),"") -> 0
A38: صغبين | B38: D9 | C38: =IFERROR(VLOOKUP($A38&$B38,CHOOSE({1,2},HA!$A$3:$A$500&HA!$B$3:$B$500,HA!$AK$3:$AK$500),2,FALSE),"") -> 2 | D38: 86 | E38: 86 | F38: =IFERROR(VLOOKUP($A38&$B38,CHOOSE({1,2},HA!$A$3:$A$500&HA!$B$3:$B$500,HA!$AM$3:$AM$500),2,FALSE),"") -> 2
A39: طرابلس | B39: E1 | C39: =IFERROR(VLOOKUP($A39&$B39,CHOOSE({1,2},HA!$A$3:$A$500&HA!$B$3:$B$500,HA!$AK$3:$AK$500),2,FALSE),"") -> 7 | D39: 0 | E39: 0 | F39: =IFERROR(VLOOKUP($A39&$B39,CHOOSE({1,2},HA!$A$3:$A$500&HA!$B$3:$B$500,HA!$AM$3:$AM$500),2,FALSE),"") -> 7
A40: دوما | B40: E10 | C40: =IFERROR(VLOOKUP($A40&$B40,CHOOSE({1,2},HA!$A$3:$A$500&HA!$B$3:$B$500,HA!$AK$3:$AK$500),2,FALSE),"") -> 9 | D40: 12 | E40: 12 | F40: =IFERROR(VLOOKUP($A40&$B40,CHOOSE({1,2},HA!$A$3:$A$500&HA!$B$3:$B$500,HA!$AM$3:$AM$500),2,FALSE),"") -> 9
A41: العبدة | B41: E11 | C41: =IFERROR(VLOOKUP($A41&$B41,CHOOSE({1,2},HA!$A$3:$A$500&HA!$B$3:$B$500,HA!$AK$3:$AK$500),2,FALSE),"") -> 0 | D41: 32 | E41: 32 | F41: =IFERROR(VLOOKUP($A41&$B41,CHOOSE({1,2},HA!$A$3:$A$500&HA!$B$3:$B$500,HA!$AM$3:$AM$500),2,FALSE),"") -> 0
A42: بخعون | B42: E12 | C42: =IFERROR(VLOOKUP($A42&$B42,CHOOSE({1,2},HA!$A$3:$A$500&HA!$B$3:$B$500,HA!$AK$3:$AK$500),2,FALSE),"") -> 0 | D42: 5 | E42: 5 | F42: =IFERROR(VLOOKUP($A42&$B42,CHOOSE({1,2},HA!$A$3:$A$500&HA!$B$3:$B$500,HA!$AM$3:$AM$500),2,FALSE),"") -> 0
A43: بيت ملات | B43: E13 | C43: =IFERROR(VLOOKUP($A43&$B43,CHOOSE({1,2},HA!$A$3:$A$500&HA!$B$3:$B$500,HA!$AK$3:$AK$500),2,FALSE),"") -> 0 | D43: 17 | E43: 17 | F43: =IFERROR(VLOOKUP($A43&$B43,CHOOSE({1,2},HA!$A$3:$A$500&HA!$B$3:$B$500,HA!$AM$3:$AM$500),2,FALSE),"") -> 0
A44: المنية | B44: E2 | C44: =IFERROR(VLOOKUP($A44&$B44,CHOOSE({1,2},HA!$A$3:$A$500&HA!$B$3:$B$500,HA!$AK$3:$AK$500),2,FALSE),"") -> 2 | D44: 63 | E44: 63 | F44: =IFERROR(VLOOKUP($A44&$B44,CHOOSE({1,2},HA!$A$3:$A$500&HA!$B$3:$B$500,HA!$AM$3:$AM$500),2,FALSE),"") -> 2
A45: سير الضنية | B45: E3 | C45: =IFERROR(VLOOKUP($A45&$B45,CHOOSE({1,2},HA!$A$3:$A$500&HA!$B$3:$B$500,HA!$AK$3:$AK$500),2,FALSE),"") -> 2 | D45: 49 | E45: 49 | F45: =IFERROR(VLOOKUP($A45&$B45,CHOOSE({1,2},HA!$A$3:$A$500&HA!$B$3:$B$500,HA!$AM$3:$AM$500),2,FALSE),"") -> 2
A46: حلبا عكار | B46: E4 | C46: =IFERROR(VLOOKUP($A46&$B46,CHOOSE({1,2},HA!$A$3:$A$500&HA!$B$3:$B$500,HA!$AK$3:$AK$500),2,FALSE),"") -> 0 | D46: 71 | E46: 71 | F46: =IFERROR(VLOOKUP($A46&$B46,CHOOSE({1,2},HA!$A$3:$A$500&HA!$B$3:$B$500,HA!$AM$3:$AM$500),2,FALSE),"") -> 0
A47: القبيات | B47: E5 | C47: =IFERROR(VLOOKUP($A47&$B47,CHOOSE({1,2},HA!$A$3:$A$500&HA!$B$3:$B$500,HA!$AK$3:$AK$500),2,FALSE),"") -> 0 | D47: 41 | E47: 41 | F47: =IFERROR(VLOOKUP($A47&$B47,CHOOSE({1,2},HA!$A$3:$A$500&HA!$B$3:$B$500,HA!$AM$3:$AM$500),2,FALSE),"") -> 0
A48: البترون | B48: E6 | C48: =IFERROR(VLOOKUP($A48&$B48,CHOOSE({1,2},HA!$A$3:$A$500&HA!$B$3:$B$500,HA!$AK$3:$AK$500),2,FALSE),"") -> 8 | D48: 29 | E48: 29 | F48: =IFERROR(VLOOKUP($A48&$B48,CHOOSE({1,2},HA!$A$3:$A$500&HA!$B$3:$B$500,HA!$AM$3:$AM$500),2,FALSE),"") -> 8
A49: الكورة | B49: E7 | C49: =IFERROR(VLOOKUP($A49&$B49,CHOOSE({1,2},HA!$A$3:$A$500&HA!$B$3:$B$500,HA!$AK$3:$AK$500),2,FALSE),"") -> 36 | D49: 53 | E49: 53 | F49: =IFERROR(VLOOKUP($A49&$B49,CHOOSE({1,2},HA!$A$3:$A$500&HA!$B$3:$B$500,HA!$AM$3:$AM$500),2,FALSE),"") -> 36
A50: زغرتا | B50: E8 | C50: =IFERROR(VLOOKUP($A50&$B50,CHOOSE({1,2},HA!$A$3:$A$500&HA!$B$3:$B$500,HA!$AK$3:$AK$500),2,FALSE),"") -> 2 | D50: 77 | E50: 77 | F50: =IFERROR(VLOOKUP($A50&$B50,CHOOSE({1,2},HA!$A$3:$A$500&HA!$B$3:$B$500,HA!$AM$3:$AM$500),2,FALSE),"") -> 2
A51: بشري | B51: E9 | C51: =IFERROR(VLOOKUP($A51&$B51,CHOOSE({1,2},HA!$A$3:$A$500&HA!$B$3:$B$500,HA!$AK$3:$AK$500),2,FALSE),"") -> 22 | D51: 2 | E51: 2 | F51: =IFERROR(VLOOKUP($A51&$B51,CHOOSE({1,2},HA!$A$3:$A$500&HA!$B$3:$B$500,HA!$AM$3:$AM$500),2,FALSE),"") -> 22
A52: المجموع العام | C52: =SUM(C3:C51) -> 550 | D52: =SUM(D3:D51) -> 3291 | E52: =SUM(E3:E51) -> 3295 | F52: =SUM(F3:F51) -> 546

Sheet JARD_MOG_OMT
B1: جدول بعدد المغلفات المستلمة من المشغل والمسلمة الى اقلام النفوس والتي هي قيد التسليم من 2020/12/1 لغــاية 2020/12/31
A2: قلم النفوس | B2: رمز | C2: المجموع العام لغاية2020/12/31 | D2: مغلفات الشهر المنصرم | E2: مغلفات المسلمة لغاية 2020/12/31 | F2: مغلفات قيد التسليم
A3: بيروت | B3: A | C3: =IFERROR(VLOOKUP($A3&$B3,CHOOSE({1,2},MOG_OMT!$A$3:$A$500&MOG_OMT!$B$3:$B$500,MOG_OMT!$AK$3:$AK$500),2,FALSE),"") -> 0 | D3: 0 | E3: =SUM((D3+C3)-F3) -> 0 | F3: =IFERROR(VLOOKUP($A3&$B3,CHOOSE({1,2},MOG_OMT!$A$3:$A$500&MOG_OMT!$B$3:$B$500,MOG_OMT!$AM$3:$AM$500),2,FALSE),"") -> 0
A4: بعبدا | B4: B1 | C4: =IFERROR(VLOOKUP($A4&$B4,CHOOSE({1,2},MOG_OMT!$A$3:$A$500&MOG_OMT!$B$3:$B$500,MOG_OMT!$AK$3:$AK$500),2,FALSE),"") -> 0 | D4: 0 | E4: =SUM((D4+C4)-F4) -> 0 | F4: =IFERROR(VLOOKUP($A4&$B4,CHOOSE({1,2},MOG_OMT!$A$3:$A$500&MOG_OMT!$B$3:$B$500,MOG_OMT!$AM$3:$AM$500),2,FALSE),"") -> 0
A5: بكفيا | B5: B10 | C5: =IFERROR(VLOOKUP($A5&$B5,CHOOSE({1,2},MOG_OMT!$A$3:$A$500&MOG_OMT!$B$3:$B$500,MOG_OMT!$AK$3:$AK$500),2,FALSE),"") -> 0 | D5: 0 | E5: 0 | F5: =IFERROR(VLOOKUP($A5&$B5,CHOOSE({1,2},MOG_OMT!$A$3:$A$500&MOG_OMT!$B$3:$B$500,MOG_OMT!$AM$3:$AM$500),2,FALSE),"") -> 0
A6: المتن الشمالي العالي | B6: B11 | C6: =IFERROR(VLOOKUP($A6&$B6,CHOOSE({1,2},MOG_OMT!$A$3:$A$500&MOG_OMT!$B$3:$B$500,MOG_OMT!$AK$3:$AK$500),2,FALSE),"") -> 0 | D6: 0 | E6: 0 | F6: =IFERROR(VLOOKUP($A6&$B6,CHOOSE({1,2},MOG_OMT!$A$3:$A$500&MOG_OMT!$B$3:$B$500,MOG_OMT!$AM$3:$AM$500),2,FALSE),"") -> 0
A7: كسروان | B7: B12 | C7: =IFERROR(VLOOKUP($A7&$B7,CHOOSE({1,2},MOG_OMT!$A$3:$A$500&MOG_OMT!$B$3:$B$500,MOG_OMT!$AK$3:$AK$500),2,FALSE),"") -> 0 | D7: 0 | E7: 0 | F7: =IFERROR(VLOOKUP($A7&$B7,CHOOSE({1,2},MOG_OMT!$A$3:$A$500&MOG_OMT!$B$3:$B$500,MOG_OMT!$AM$3:$AM$500),2,FALSE),"") -> 0
A8: جبيل | B8: B13 | C8: =IFERROR(VLOOKUP($A8&$B8,CHOOSE({1,2},MOG_OMT!$A$3:$A$500&MOG_OMT!$B$3:$B$500,MOG_OMT!$AK$3:$AK$500),2,FALSE),"") -> 0 | D8: 0 | E8: 0 | F8: =IFERROR(VLOOKUP($A8&$B8,CHOOSE({1,2},MOG_OMT!$A$3:$A$500&MOG_OMT!$B$3:$B$500,MOG_OMT!$AM$3:$AM$500),2,FALSE),"") -> 0
A9: فتوح كسروان | B9: B14 | C9: =IFERROR(VLOOKUP($A9&$B9,CHOOSE({1,2},MOG_OMT!$A$3:$A$500&MOG_OMT!$B$3:$B$500,MOG_OMT!$AK$3:$AK$500),2,FALSE),"") -> 0 | D9: 0 | E9: 0 | F9: =IFERROR(VLOOKUP($A9&$B9,CHOOSE({1,2},MOG_OMT!$A$3:$A$500&MOG_OMT!$B$3:$B$500,MOG_OMT!$AM$3:$AM$500),2,FALSE),"") -> 0
A10: الشويفات | B10: B2 | C10: =IFERROR(VLOOKUP($A10&$B10,CHOOSE({1,2},MOG_OMT!$A$3:$A$500&MOG_OMT!$B$3:$B$500,MOG_OMT!$AK$3:$AK$500),2,FALSE),"") -> 0 | D10: 0 | E10: 0 | F10: =IFERROR(VLOOKUP($A10&$B10,CHOOSE({1,2},MOG_OMT!$A$3:$A$500&MOG_OMT!$B$3:$B$500,MOG_OMT!$AM$3:$AM$500),2,FALSE),"") -> 0
A11: برجا | B11: B3 | C11: =IFERROR(VLOOKUP($A11&$B11,CHOOSE({1,2},MOG_OMT!$A$3:$A$500&MOG_OMT!$B$3:$B$500,MOG_OMT!$AK$3:$AK$500),2,FALSE),"") -> 0 | D11: 0 | E11: 0 | F11: =IFERROR(VLOOKUP($A11&$B11,CHOOSE({1,2},MOG_OMT!$A$3:$A$500&MOG_OMT!$B$3:$B$500,MOG_OMT!$AM$3:$AM$500),2,FALSE),"") -> 0
A12: شحيم | B12: B4 | C12: =IFERROR(VLOOKUP($A12&$B12,CHOOSE({1,2},MOG_OMT!$A$3:$A$500&MOG_OMT!$B$3:$B$500,MOG_OMT!$AK$3:$AK$500),2,FALSE),"") -> 0 | D12: 0 | E12: 0 | F12: =IFERROR(VLOOKUP($A12&$B12,CHOOSE({1,2},MOG_OMT!$A$3:$A$500&MOG_OMT!$B$3:$B$500,MOG_OMT!$AM$3:$AM$500),2,FALSE),"") -> 0
A13: عاليه | B13: B5 | C13: =IFERROR(VLOOKUP($A13&$B13,CHOOSE({1,2},MOG_OMT!$A$3:$A$500&MOG_OMT!$B$3:$B$500,MOG_OMT!$AK$3:$AK$500),2,FALSE),"") -> 0 | D13: 0 | E13: 0 | F13: =IFERROR(VLOOKUP($A13&$B13,CHOOSE({1,2},MOG_OMT!$A$3:$A$500&MOG_OMT!$B$3:$B$500,MOG_OMT!$AM$3:$AM$500),2,FALSE),"") -> 0
A14: حمانا | B14: B6 | C14: =IFERROR(VLOOKUP($A14&$B14,CHOOSE({1,2},MOG_OMT!$A$3:$A$500&MOG_OMT!$B$3:$B$500,MOG_OMT!$AK$3:$AK$500),2,FALSE),"") -> 0 | D14: 0 | E14: 0 | F14: =IFERROR(VLOOKUP($A14&$B14,CHOOSE({1,2},MOG_OMT!$A$3:$A$500&MOG_OMT!$B$3:$B$500,MOG_OMT!$AM$3:$AM$500),2,FALSE),"") -> 0
A15: الشوف | B15: B7 | C15: =IFERROR(VLOOKUP($A15&$B15,CHOOSE({1,2},MOG_OMT!$A$3:$A$500&MOG_OMT!$B$3:$B$500,MOG_OMT!$AK$3:$AK$500),2,FALSE),"") -> 0 | D15: 0 | E15: 0 | F15: =IFERROR(VLOOKUP($A15&$B15,CHOOSE({1,2},MOG_OMT!$A$3:$A$500&MOG_OMT!$B$3:$B$500,MOG_OMT!$AM$3:$AM$500),2,FALSE),"") -> 0
A16: المتن | B16: B8 | C16: =IFERROR(VLOOKUP($A16&$B16,CHOOSE({1,2},MOG_OMT!$A$3:$A$500&MOG_OMT!$B$3:$B$500,MOG_OMT!$AK$3:$AK$500),2,FALSE),"") -> 0 | D16: 0 | E16: 0 | F16: =IFERROR(VLOOKUP($A16&$B16,CHOOSE({1,2},MOG_OMT!$A$3:$A$500&MOG_OMT!$B$3:$B$500,MOG_OMT!$AM$3:$AM$500),2,FALSE),"") -> 0
A17: انطلياس | B17: B9 | C17: =IFERROR(VLOOKUP($A17&$B17,CHOOSE({1,2},MOG_OMT!$A$3:$A$500&MOG_OMT!$B$3:$B$500,MOG_OMT!$AK$3:$AK$500),2,FALSE),"") -> 0 | D17: 0 | E17: 0 | F17: =IFERROR(VLOOKUP($A17&$B17,CHOOSE({1,2},MOG_OMT!$A$3:$A$500&MOG_OMT!$B$3:$B$500,MOG_OMT!$AM$3:$AM$500),2,FALSE),"") -> 0
A18: صيدا | B18: C1 | C18: =IFERROR(VLOOKUP($A18&$B18,CHOOSE({1,2},MOG_OMT!$A$3:$A$500&MOG_OMT!$B$3:$B$500,MOG_OMT!$AK$3:$AK$500),2,FALSE),"") -> 0 | D18: 0 | E18: 0 | F18: =IFERROR(VLOOKUP($A18&$B18,CHOOSE({1,2},MOG_OMT!$A$3:$A$500&MOG_OMT!$B$3:$B$500,MOG_OMT!$AM$3:$AM$500),2,FALSE),"") -> 0
A19: جويا | B19: C10 | C19: =IFERROR(VLOOKUP($A19&$B19,CHOOSE({1,2},MOG_OMT!$A$3:$A$500&MOG_OMT!$B$3:$B$500,MOG_OMT!$AK$3:$AK$500),2,FALSE),"") -> 0 | D19: 0 | E19: 0 | F19: =IFERROR(VLOOKUP($A19&$B19,CHOOSE({1,2},MOG_OMT!$A$3:$A$500&MOG_OMT!$B$3:$B$500,MOG_OMT!$AM$3:$AM$500),2,FALSE),"") -> 0
A20: ميس الجبل | B20: C11 | C20: =IFERROR(VLOOKUP($A20&$B20,CHOOSE({1,2},MOG_OMT!$A$3:$A$500&MOG_OMT!$B$3:$B$500,MOG_OMT!$AK$3:$AK$500),2,FALSE),"") -> 0 | D20: 0 | E20: 0 | F20: =IFERROR(VLOOKUP($A20&$B20,CHOOSE({1,2},MOG_OMT!$A$3:$A$500&MOG_OMT!$B$3:$B$500,MOG_OMT!$AM$3:$AM$500),2,FALSE),"") -> 0
A21: صور | B21: C2 | C21: =IFERROR(VLOOKUP($A21&$B21,CHOOSE({1,2},MOG_OMT!$A$3:$A$500&MOG_OMT!$B$3:$B$500,MOG_OMT!$AK$3:$AK$500),2,FALSE),"") -> 0 | D21: 0 | E21: 0 | F21: =IFERROR(VLOOKUP($A21&$B21,CHOOSE({1,2},MOG_OMT!$A$3:$A$500&MOG_OMT!$B$3:$B$500,MOG_OMT!$AM$3:$AM$500),2,FALSE),"") -> 0
A22: جزين | B22: C3 | C22: =IFERROR(VLOOKUP($A22&$B22,CHOOSE({1,2},MOG_OMT!$A$3:$A$500&MOG_OMT!$B$3:$B$500,MOG_OMT!$AK$3:$AK$500),2,FALSE),"") -> 0 | D22: 0 | E22: 0 | F22: =IFERROR(VLOOKUP($A22&$B22,CHOOSE({1,2},MOG_OMT!$A$3:$A$500&MOG_OMT!$B$3:$B$500,MOG_OMT!$AM$3:$AM$500),2,FALSE),"") -> 0
A23: النبطية | B23: C4 | C23: =IFERROR(VLOOKUP($A23&$B23,CHOOSE({1,2},MOG_OMT!$A$3:$A$500&MOG_OMT!$B$3:$B$500,MOG_OMT!$AK$3:$AK$500),2,FALSE),"") -> 0 | D23: 0 | E23: 0 | F23: =IFERROR(VLOOKUP($A23&$B23,CHOOSE({1,2},MOG_OMT!$A$3:$A$500&MOG_OMT!$B$3:$B$500,MOG_OMT!$AM$3:$AM$500),2,FALSE),"") -> 0
A24: بنت جبيل | B24: C5 | C24: =IFERROR(VLOOKUP($A24&$B24,CHOOSE({1,2},MOG_OMT!$A$3:$A$500&MOG_OMT!$B$3:$B$500,MOG_OMT!$AK$3:$AK$500),2,FALSE),"") -> 0 | D24: 0 | E24: 0 | F24: =IFERROR(VLOOKUP($A24&$B24,CHOOSE({1,2},MOG_OMT!$A$3:$A$500&MOG_OMT!$B$3:$B$500,MOG_OMT!$AM$3:$AM$500),2,FALSE),"") -> 0
A25: مرجعيون | B25: C6 | C25: =IFERROR(VLOOKUP($A25&$B25,CHOOSE({1,2},MOG_OMT!$A$3:$A$500&MOG_OMT!$B$3:$B$500,MOG_OMT!$AK$3:$AK$500),2,FALSE),"") -> 0 | D25: 0 | E25: 0 | F25: =IFERROR(VLOOKUP($A25&$B25,CHOOSE({1,2},MOG_OMT!$A$3:$A$500&MOG_OMT!$B$3:$B$500,MOG_OMT!$AM$3:$AM$500),2,FALSE),"") -> 0
A26: حاصبيا | B26: C7 | C26: =IFERROR(VLOOKUP($A26&$B26,CHOOSE({1,2},MOG_OMT!$A$3:$A$500&MOG_OMT!$B$3:$B$500,MOG_OMT!$AK$3:$AK$500),2,FALSE),"") -> 0 | D26: 0 | E26: 0 | F26: =IFERROR(VLOOKUP($A26&$B26,CHOOSE({1,2},MOG_OMT!$A$3:$A$500&MOG_OMT!$B$3:$B$500,MOG_OMT!$AM$3:$AM$500),2,FALSE),"") -> 0
A27: تبنين | B27: C8 | C27: =IFERROR(VLOOKUP($A27&$B27,CHOOSE({1,2},MOG_OMT!$A$3:$A$500&MOG_OMT!$B$3:$B$500,MOG_OMT!$AK$3:$AK$500),2,FALSE),"") -> 0 | D27: 0 | E27: 0 | F27: =IFERROR(VLOOKUP($A27&$B27,CHOOSE({1,2},MOG_OMT!$A$3:$A$500&MOG_OMT!$B$3:$B$500,MOG_OMT!$AM$3:$AM$500),2,FALSE),"") -> 0
A28: جباع | B28: C9 | C28: =IFERROR(VLOOKUP($A28&$B28,CHOOSE({1,2},MOG_OMT!$A$3:$A$500&MOG_OMT!$B$3:$B$500,MOG_OMT!$AK$3:$AK$500),2,FALSE),"") -> 0 | D28: 0 | E28: 0 | F28: =IFERROR(VLOOKUP($A28&$B28,CHOOSE({1,2},MOG_OMT!$A$3:$A$500&MOG_OMT!$B$3:$B$500,MOG_OMT!$AM$3:$AM$500),2,FALSE),"") -> 0
A29: زحلة | B29: D1 | C29: =IFERROR(VLOOKUP($A29&$B29,CHOOSE({1,2},MOG_OMT!$A$3:$A$500&MOG_OMT!$B$3:$B$500,MOG_OMT!$AK$3:$AK$500),2,FALSE),"") -> 0 | D29: 0 | E29: 0 | F29: =IFERROR(VLOOKUP($A29&$B29,CHOOSE({1,2},MOG_OMT!$A$3:$A$500&MOG_OMT!$B$3:$B$500,MOG_OMT!$AM$3:$AM$500),2,FALSE),"") -> 0
A30: النبي شيت | B30: D10 | C30: =IFERROR(VLOOKUP($A30&$B30,CHOOSE({1,2},MOG_OMT!$A$3:$A$500&MOG_OMT!$B$3:$B$500,MOG_OMT!$AK$3:$AK$500),2,FALSE),"") -> 0 | D30: 0 | E30: 0 | F30: =IFERROR(VLOOKUP($A30&$B30,CHOOSE({1,2},MOG_OMT!$A$3:$A$500&MOG_OMT!$B$3:$B$500,MOG_OMT!$AM$3:$AM$500),2,FALSE),"") -> 0
A31: راشيا | B31: D2 | C31: =IFERROR(VLOOKUP($A31&$B31,CHOOSE({1,2},MOG_OMT!$A$3:$A$500&MOG_OMT!$B$3:$B$500,MOG_OMT!$AK$3:$AK$500),2,FALSE),"") -> 0 | D31: 0 | E31: 0 | F31: =IFERROR(VLOOKUP($A31&$B31,CHOOSE({1,2},MOG_OMT!$A$3:$A$500&MOG_OMT!$B$3:$B$500,MOG_OMT!$AM$3:$AM$500),2,FALSE),"") -> 0
A32: البقاع الغربي | B32: D3 | C32: =IFERROR(VLOOKUP($A32&$B32,CHOOSE({1,2},MOG_OMT!$A$3:$A$500&MOG_OMT!$B$3:$B$500,MOG_OMT!$AK$3:$AK$500),2,FALSE),"") -> 0 | D32: 0 | E32: 0 | F32: =IFERROR(VLOOKUP($A32&$B32,CHOOSE({1,2},MOG_OMT!$A$3:$A$500&MOG_OMT!$B$3:$B$500,MOG_OMT!$AM$3:$AM$500),2,FALSE),"") -> 0
A33: شمسطار | B33: D4 | C33: =IFERROR(VLOOKUP($A33&$B33,CHOOSE({1,2},MOG_OMT!$A$3:$A$500&MOG_OMT!$B$3:$B$500,MOG_OMT!$AK$3:$AK$500),2,FALSE),"") -> 0 | D33: 0 | E33: 0 | F33: =IFERROR(VLOOKUP($A33&$B33,CHOOSE({1,2},MOG_OMT!$A$3:$A$500&MOG_OMT!$B$3:$B$500,MOG_OMT!$AM$3:$AM$500),2,FALSE),"") -> 0
A34: بعلبك | B34: D5 | C34: =IFERROR(VLOOKUP($A34&$B34,CHOOSE({1,2},MOG_OMT!$A$3:$A$500&MOG_OMT!$B$3:$B$500,MOG_OMT!$AK$3:$AK$500),2,FALSE),"") -> 0 | D34: 0 | E34: 0 | F34: =IFERROR(VLOOKUP($A34&$B34,CHOOSE({1,2},MOG_OMT!$A$3:$A$500&MOG_OMT!$B$3:$B$500,MOG_OMT!$AM$3:$AM$500),2,FALSE),"") -> 0
A35: الهرمل | B35: D6 | C35: =IFERROR(VLOOKUP($A35&$B35,CHOOSE({1,2},MOG_OMT!$A$3:$A$500&MOG_OMT!$B$3:$B$500,MOG_OMT!$AK$3:$AK$500),2,FALSE),"") -> 0 | D35: 0 | E35: 0 | F35: =IFERROR(VLOOKUP($A35&$B35,CHOOSE({1,2},MOG_OMT!$A$3:$A$500&MOG_OMT!$B$3:$B$500,MOG_OMT!$AM$3:$AM$500),2,FALSE),"") -> 0
A36: دير الاحمر | B36: D7 | C36: =IFERROR(VLOOKUP($A36&$B36,CHOOSE({1,2},MOG_OMT!$A$3:$A$500&MOG_OMT!$B$3:$B$500,MOG_OMT!$AK$3:$AK$500),2,FALSE),"") -> 0 | D36: 0 | E36: 0 | F36: =IFERROR(VLOOKUP($A36&$B36,CHOOSE({1,2},MOG_OMT!$A$3:$A$500&MOG_OMT!$B$3:$B$500,MOG_OMT!$AM$3:$AM$500),2,FALSE),"") -> 0
A37: اللبوة | B37: D8 | C37: =IFERROR(VLOOKUP($A37&$B37,CHOOSE({1,2},MOG_OMT!$A$3:$A$500&MOG_OMT!$B$3:$B$500,MOG_OMT!$AK$3:$AK$500),2,FALSE),"") -> 0 | D37: 0 | E37: 0 | F37: =IFERROR(VLOOKUP($A37&$B37,CHOOSE({1,2},MOG_OMT!$A$3:$A$500&MOG_OMT!$B$3:$B$500,MOG_OMT!$AM$3:$AM$500),2,FALSE),"") -> 0
A38: صغبين | B38: D9 | C38: =IFERROR(VLOOKUP($A38&$B38,CHOOSE({1,2},MOG_OMT!$A$3:$A$500&MOG_OMT!$B$3:$B$500,MOG_OMT!$AK$3:$AK$500),2,FALSE),"") -> 0 | D38: 0 | E38: 0 | F38: =IFERROR(VLOOKUP($A38&$B38,CHOOSE({1,2},MOG_OMT!$A$3:$A$500&MOG_OMT!$B$3:$B$500,MOG_OMT!$AM$3:$AM$500),2,FALSE),"") -> 0
A39: طرابلس | B39: E1 | C39: =IFERROR(VLOOKUP($A39&$B39,CHOOSE({1,2},MOG_OMT!$A$3:$A$500&MOG_OMT!$B$3:$B$500,MOG_OMT!$AK$3:$AK$500),2,FALSE),"") -> 0 | D39: 0 | E39: 0 | F39: =IFERROR(VLOOKUP($A39&$B39,CHOOSE({1,2},MOG_OMT!$A$3:$A$500&MOG_OMT!$B$3:$B$500,MOG_OMT!$AM$3:$AM$500),2,FALSE),"") -> 0
A40: دوما | B40: E10 | C40: =IFERROR(VLOOKUP($A40&$B40,CHOOSE({1,2},MOG_OMT!$A$3:$A$500&MOG_OMT!$B$3:$B$500,MOG_OMT!$AK$3:$AK$500),2,FALSE),"") -> 0 | D40: 0 | E40: 0 | F40: =IFERROR(VLOOKUP($A40&$B40,CHOOSE({1,2},MOG_OMT!$A$3:$A$500&MOG_OMT!$B$3:$B$500,MOG_OMT!$AM$3:$AM$500),2,FALSE),"") -> 0
A41: العبدة | B41: E11 | C41: =IFERROR(VLOOKUP($A41&$B41,CHOOSE({1,2},MOG_OMT!$A$3:$A$500&MOG_OMT!$B$3:$B$500,MOG_OMT!$AK$3:$AK$500),2,FALSE),"") -> 0 | D41: 0 | E41: 0 | F41: =IFERROR(VLOOKUP($A41&$B41,CHOOSE({1,2},MOG_OMT!$A$3:$A$500&MOG_OMT!$B$3:$B$500,MOG_OMT!$AM$3:$AM$500),2,FALSE),"") -> 0
A42: بخعون | B42: E12 | C42: =IFERROR(VLOOKUP($A42&$B42,CHOOSE({1,2},MOG_OMT!$A$3:$A$500&MOG_OMT!$B$3:$B$500,MOG_OMT!$AK$3:$AK$500),2,FALSE),"") -> 0 | D42: 0 | E42: 0 | F42: =IFERROR(VLOOKUP($A42&$B42,CHOOSE({1,2},MOG_OMT!$A$3:$A$500&MOG_OMT!$B$3:$B$500,MOG_OMT!$AM$3:$AM$500),2,FALSE),"") -> 0
A43: بيت ملات | B43: E13 | C43: =IFERROR(VLOOKUP($A43&$B43,CHOOSE({1,2},MOG_OMT!$A$3:$A$500&MOG_OMT!$B$3:$B$500,MOG_OMT!$AK$3:$AK$500),2,FALSE),"") -> 0 | D43: 0 | E43: 0 | F43: =IFERROR(VLOOKUP($A43&$B43,CHOOSE({1,2},MOG_OMT!$A$3:$A$500&MOG_OMT!$B$3:$B$500,MOG_OMT!$AM$3:$AM$500),2,FALSE),"") -> 0
A44: المنية | B44: E2 | C44: =IFERROR(VLOOKUP($A44&$B44,CHOOSE({1,2},MOG_OMT!$A$3:$A$500&MOG_OMT!$B$3:$B$500,MOG_OMT!$AK$3:$AK$500),2,FALSE),"") -> 0 | D44: 0 | E44: 0 | F44: =IFERROR(VLOOKUP($A44&$B44,CHOOSE({1,2},MOG_OMT!$A$3:$A$500&MOG_OMT!$B$3:$B$500,MOG_OMT!$AM$3:$AM$500),2,FALSE),"") -> 0
A45: سير الضنية | B45: E3 | C45: =IFERROR(VLOOKUP($A45&$B45,CHOOSE({1,2},MOG_OMT!$A$3:$A$500&MOG_OMT!$B$3:$B$500,MOG_OMT!$AK$3:$AK$500),2,FALSE),"") -> 0 | D45: 0 | E45: 0 | F45: =IFERROR(VLOOKUP($A45&$B45,CHOOSE({1,2},MOG_OMT!$A$3:$A$500&MOG_OMT!$B$3:$B$500,MOG_OMT!$AM$3:$AM$500),2,FALSE),"") -> 0
A46: حلبا عكار | B46: E4 | C46: =IFERROR(VLOOKUP($A46&$B46,CHOOSE({1,2},MOG_OMT!$A$3:$A$500&MOG_OMT!$B$3:$B$500,MOG_OMT!$AK$3:$AK$500),2,FALSE),"") -> 0 | D46: 0 | E46: 0 | F46: =IFERROR(VLOOKUP($A46&$B46,CHOOSE({1,2},MOG_OMT!$A$3:$A$500&MOG_OMT!$B$3:$B$500,MOG_OMT!$AM$3:$AM$500),2,FALSE),"") -> 0
A47: القبيات | B47: E5 | C47: =IFERROR(VLOOKUP($A47&$B47,CHOOSE({1,2},MOG_OMT!$A$3:$A$500&MOG_OMT!$B$3:$B$500,MOG_OMT!$AK$3:$AK$500),2,FALSE),"") -> 0 | D47: 0 | E47: 0 | F47: =IFERROR(VLOOKUP($A47&$B47,CHOOSE({1,2},MOG_OMT!$A$3:$A$500&MOG_OMT!$B$3:$B$500,MOG_OMT!$AM$3:$AM$500),2,FALSE),"") -> 0
A48: البترون | B48: E6 | C48: =IFERROR(VLOOKUP($A48&$B48,CHOOSE({1,2},MOG_OMT!$A$3:$A$500&MOG_OMT!$B$3:$B$500,MOG_OMT!$AK$3:$AK$500),2,FALSE),"") -> 0 | D48: 0 | E48: 0 | F48: =IFERROR(VLOOKUP($A48&$B48,CHOOSE({1,2},MOG_OMT!$A$3:$A$500&MOG_OMT!$B$3:$B$500,MOG_OMT!$AM$3:$AM$500),2,FALSE),"") -> 0
A49: الكورة | B49: E7 | C49: =IFERROR(VLOOKUP($A49&$B49,CHOOSE({1,2},MOG_OMT!$A$3:$A$500&MOG_OMT!$B$3:$B$500,MOG_OMT!$AK$3:$AK$500),2,FALSE),"") -> 0 | D49: 0 | E49: 0 | F49: =IFERROR(VLOOKUP($A49&$B49,CHOOSE({1,2},MOG_OMT!$A$3:$A$500&MOG_OMT!$B$3:$B$500,MOG_OMT!$AM$3:$AM$500),2,FALSE),"") -> 0
A50: زغرتا | B50: E8 | C50: =IFERROR(VLOOKUP($A50&$B50,CHOOSE({1,2},MOG_OMT!$A$3:$A$500&MOG_OMT!$B$3:$B$500,MOG_OMT!$AK$3:$AK$500),2,FALSE),"") -> 0 | D50: 0 | E50: 0 | F50: =IFERROR(VLOOKUP($A50&$B50,CHOOSE({1,2},MOG_OMT!$A$3:$A$500&MOG_OMT!$B$3:$B$500,MOG_OMT!$AM$3:$AM$500),2,FALSE),"") -> 0
A51: بشري | B51: E9 | C51: =IFERROR(VLOOKUP($A51&$B51,CHOOSE({1,2},MOG_OMT!$A$3:$A$500&MOG_OMT!$B$3:$B$500,MOG_OMT!$AK$3:$AK$500),2,FALSE),"") -> 0 | D51: 0 | E51: 0 | F51: =IFERROR(VLOOKUP($A51&$B51,CHOOSE({1,2},MOG_OMT!$A$3:$A$500&MOG_OMT!$B$3:$B$500,MOG_OMT!$AM$3:$AM$500),2,FALSE),"") -> 0
A52: المجموع العام | C52: =SUM(C3:C51) -> 0 | D52: =SUM(D3:D51) -> 0 | E52: =SUM(E3:E51) -> 0 | F52: =SUM(F3:F51) -> 0

Sheet JARD_HA_OMT
B1: جدول بعدد الهويات المستلمة من المشغل والمسلمة الى اقلام النفوس والتي هي قيد التسليم من 2020/12/1 لغــاية 2020/12/31
A2: قلم النفوس | B2: رمز | C2: المجموع العام لغاية2020/12/31 | D2: بطاقات الشهر المنصرم | E2: بطاقات المسلمة لغاية 2020/12/31 | F2: بطاقات قيد التسليم
A3: بيروت | B3: A | C3: =IFERROR(VLOOKUP($A3&$B3,CHOOSE({1,2},HA_OMT!$A$3:$A$500&HA_OMT!$B$3:$B$500,HA_OMT!$AK$3:$AK$500),2,FALSE),"") -> 0 | D3: 0 | E3: =SUM((D3+C3)-F3) -> 0 | F3: =IFERROR(VLOOKUP($A3&$B3,CHOOSE({1,2},HA_OMT!$A$3:$A$500&HA_OMT!$B$3:$B$500,HA_OMT!$AM$3:$AM$500),2,FALSE),"") -> 0
A4: بعبدا | B4: B1 | C4: =IFERROR(VLOOKUP($A4&$B4,CHOOSE({1,2},HA_OMT!$A$3:$A$500&HA_OMT!$B$3:$B$500,HA_OMT!$AK$3:$AK$500),2,FALSE),"") -> 0 | D4: 0 | E4: =SUM((D4+C4)-F4) -> 0 | F4: =IFERROR(VLOOKUP($A4&$B4,CHOOSE({1,2},HA_OMT!$A$3:$A$500&HA_OMT!$B$3:$B$500,HA_OMT!$AM$3:$AM$500),2,FALSE),"") -> 0
A5: بكفيا | B5: B10 | C5: =IFERROR(VLOOKUP($A5&$B5,CHOOSE({1,2},HA_OMT!$A$3:$A$500&HA_OMT!$B$3:$B$500,HA_OMT!$AK$3:$AK$500),2,FALSE),"") -> 0 | D5: 0 | E5: 0 | F5: =IFERROR(VLOOKUP($A5&$B5,CHOOSE({1,2},HA_OMT!$A$3:$A$500&HA_OMT!$B$3:$B$500,HA_OMT!$AM$3:$AM$500),2,FALSE),"") -> 0
A6: المتن الشمالي العالي | B6: B11 | C6: =IFERROR(VLOOKUP($A6&$B6,CHOOSE({1,2},HA_OMT!$A$3:$A$500&HA_OMT!$B$3:$B$500,HA_OMT!$AK$3:$AK$500),2,FALSE),"") -> 0 | D6: 0 | E6: 0 | F6: =IFERROR(VLOOKUP($A6&$B6,CHOOSE({1,2},HA_OMT!$A$3:$A$500&HA_OMT!$B$3:$B$500,HA_OMT!$AM$3:$AM$500),2,FALSE),"") -> 0
A7: كسروان | B7: B12 | C7: =IFERROR(VLOOKUP($A7&$B7,CHOOSE({1,2},HA_OMT!$A$3:$A$500&HA_OMT!$B$3:$B$500,HA_OMT!$AK$3:$AK$500),2,FALSE),"") -> 0 | D7: 0 | E7: 0 | F7: =IFERROR(VLOOKUP($A7&$B7,CHOOSE({1,2},HA_OMT!$A$3:$A$500&HA_OMT!$B$3:$B$500,HA_OMT!$AM$3:$AM$500),2,FALSE),"") -> 0
A8: جبيل | B8: B13 | C8: =IFERROR(VLOOKUP($A8&$B8,CHOOSE({1,2},HA_OMT!$A$3:$A$500&HA_OMT!$B$3:$B$500,HA_OMT!$AK$3:$AK$500),2,FALSE),"") -> 0 | D8: 0 | E8: 0 | F8: =IFERROR(VLOOKUP($A8&$B8,CHOOSE({1,2},HA_OMT!$A$3:$A$500&HA_OMT!$B$3:$B$500,HA_OMT!$AM$3:$AM$500),2,FALSE),"") -> 0
A9: فتوح كسروان | B9: B14 | C9: =IFERROR(VLOOKUP($A9&$B9,CHOOSE({1,2},HA_OMT!$A$3:$A$500&HA_OMT!$B$3:$B$500,HA_OMT!$AK$3:$AK$500),2,FALSE),"") -> 0 | D9: 0 | E9: 0 | F9: =IFERROR(VLOOKUP($A9&$B9,CHOOSE({1,2},HA_OMT!$A$3:$A$500&HA_OMT!$B$3:$B$500,HA_OMT!$AM$3:$AM$500),2,FALSE),"") -> 0
A10: الشويفات | B10: B2 | C10: =IFERROR(VLOOKUP($A10&$B10,CHOOSE({1,2},HA_OMT!$A$3:$A$500&HA_OMT!$B$3:$B$500,HA_OMT!$AK$3:$AK$500),2,FALSE),"") -> 0 | D10: 0 | E10: 0 | F10: =IFERROR(VLOOKUP($A10&$B10,CHOOSE({1,2},HA_OMT!$A$3:$A$500&HA_OMT!$B$3:$B$500,HA_OMT!$AM$3:$AM$500),2,FALSE),"") -> 0
A11: برجا | B11: B3 | C11: =IFERROR(VLOOKUP($A11&$B11,CHOOSE({1,2},HA_OMT!$A$3:$A$500&HA_OMT!$B$3:$B$500,HA_OMT!$AK$3:$AK$500),2,FALSE),"") -> 0 | D11: 0 | E11: 0 | F11: =IFERROR(VLOOKUP($A11&$B11,CHOOSE({1,2},HA_OMT!$A$3:$A$500&HA_OMT!$B$3:$B$500,HA_OMT!$AM$3:$AM$500),2,FALSE),"") -> 0
A12: شحيم | B12: B4 | C12: =IFERROR(VLOOKUP($A12&$B12,CHOOSE({1,2},HA_OMT!$A$3:$A$500&HA_OMT!$B$3:$B$500,HA_OMT!$AK$3:$AK$500),2,FALSE),"") -> 0 | D12: 0 | E12: 0 | F12: =IFERROR(VLOOKUP($A12&$B12,CHOOSE({1,2},HA_OMT!$A$3:$A$500&HA_OMT!$B$3:$B$500,HA_OMT!$AM$3:$AM$500),2,FALSE),"") -> 0
A13: عاليه | B13: B5 | C13: =IFERROR(VLOOKUP($A13&$B13,CHOOSE({1,2},HA_OMT!$A$3:$A$500&HA_OMT!$B$3:$B$500,HA_OMT!$AK$3:$AK$500),2,FALSE),"") -> 0 | D13: 0 | E13: 0 | F13: =IFERROR(VLOOKUP($A13&$B13,CHOOSE({1,2},HA_OMT!$A$3:$A$500&HA_OMT!$B$3:$B$500,HA_OMT!$AM$3:$AM$500),2,FALSE),"") -> 0
A14: حمانا | B14: B6 | C14: =IFERROR(VLOOKUP($A14&$B14,CHOOSE({1,2},HA_OMT!$A$3:$A$500&HA_OMT!$B$3:$B$500,HA_OMT!$AK$3:$AK$500),2,FALSE),"") -> 0 | D14: 0 | E14: 0 | F14: =IFERROR(VLOOKUP($A14&$B14,CHOOSE({1,2},HA_OMT!$A$3:$A$500&HA_OMT!$B$3:$B$500,HA_OMT!$AM$3:$AM$500),2,FALSE),"") -> 0
A15: الشوف | B15: B7 | C15: =IFERROR(VLOOKUP($A15&$B15,CHOOSE({1,2},HA_OMT!$A$3:$A$500&HA_OMT!$B$3:$B$500,HA_OMT!$AK$3:$AK$500),2,FALSE),"") -> 0 | D15: 0 | E15: 0 | F15: =IFERROR(VLOOKUP($A15&$B15,CHOOSE({1,2},HA_OMT!$A$3:$A$500&HA_OMT!$B$3:$B$500,HA_OMT!$AM$3:$AM$500),2,FALSE),"") -> 0
A16: المتن | B16: B8 | C16: =IFERROR(VLOOKUP($A16&$B16,CHOOSE({1,2},HA_OMT!$A$3:$A$500&HA_OMT!$B$3:$B$500,HA_OMT!$AK$3:$AK$500),2,FALSE),"") -> 0 | D16: 0 | E16: 0 | F16: =IFERROR(VLOOKUP($A16&$B16,CHOOSE({1,2},HA_OMT!$A$3:$A$500&HA_OMT!$B$3:$B$500,HA_OMT!$AM$3:$AM$500),2,FALSE),"") -> 0
A17: انطلياس | B17: B9 | C17: =IFERROR(VLOOKUP($A17&$B17,CHOOSE({1,2},HA_OMT!$A$3:$A$500&HA_OMT!$B$3:$B$500,HA_OMT!$AK$3:$AK$500),2,FALSE),"") -> 0 | D17: 0 | E17: 0 | F17: =IFERROR(VLOOKUP($A17&$B17,CHOOSE({1,2},HA_OMT!$A$3:$A$500&HA_OMT!$B$3:$B$500,HA_OMT!$AM$3:$AM$500),2,FALSE),"") -> 0
A18: صيدا | B18: C1 | C18: =IFERROR(VLOOKUP($A18&$B18,CHOOSE({1,2},HA_OMT!$A$3:$A$500&HA_OMT!$B$3:$B$500,HA_OMT!$AK$3:$AK$500),2,FALSE),"") -> 0 | D18: 0 | E18: 0 | F18: =IFERROR(VLOOKUP($A18&$B18,CHOOSE({1,2},HA_OMT!$A$3:$A$500&HA_OMT!$B$3:$B$500,HA_OMT!$AM$3:$AM$500),2,FALSE),"") -> 0
A19: جويا | B19: C10 | C19: =IFERROR(VLOOKUP($A19&$B19,CHOOSE({1,2},HA_OMT!$A$3:$A$500&HA_OMT!$B$3:$B$500,HA_OMT!$AK$3:$AK$500),2,FALSE),"") -> 0 | D19: 0 | E19: 0 | F19: =IFERROR(VLOOKUP($A19&$B19,CHOOSE({1,2},HA_OMT!$A$3:$A$500&HA_OMT!$B$3:$B$500,HA_OMT!$AM$3:$AM$500),2,FALSE),"") -> 0
A20: ميس الجبل | B20: C11 | C20: =IFERROR(VLOOKUP($A20&$B20,CHOOSE({1,2},HA_OMT!$A$3:$A$500&HA_OMT!$B$3:$B$500,HA_OMT!$AK$3:$AK$500),2,FALSE),"") -> 0 | D20: 0 | E20: 0 | F20: =IFERROR(VLOOKUP($A20&$B20,CHOOSE({1,2},HA_OMT!$A$3:$A$500&HA_OMT!$B$3:$B$500,HA_OMT!$AM$3:$AM$500),2,FALSE),"") -> 0
A21: صور | B21: C2 | C21: =IFERROR(VLOOKUP($A21&$B21,CHOOSE({1,2},HA_OMT!$A$3:$A$500&HA_OMT!$B$3:$B$500,HA_OMT!$AK$3:$AK$500),2,FALSE),"") -> 0 | D21: 0 | E21: 0 | F21: =IFERROR(VLOOKUP($A21&$B21,CHOOSE({1,2},HA_OMT!$A$3:$A$500&HA_OMT!$B$3:$B$500,HA_OMT!$AM$3:$AM$500),2,FALSE),"") -> 0
A22: جزين | B22: C3 | C22: =IFERROR(VLOOKUP($A22&$B22,CHOOSE({1,2},HA_OMT!$A$3:$A$500&HA_OMT!$B$3:$B$500,HA_OMT!$AK$3:$AK$500),2,FALSE),"") -> 0 | D22: 0 | E22: 0 | F22: =IFERROR(VLOOKUP($A22&$B22,CHOOSE({1,2},HA_OMT!$A$3:$A$500&HA_OMT!$B$3:$B$500,HA_OMT!$AM$3:$AM$500),2,FALSE),"") -> 0
A23: النبطية | B23: C4 | C23: =IFERROR(VLOOKUP($A23&$B23,CHOOSE({1,2},HA_OMT!$A$3:$A$500&HA_OMT!$B$3:$B$500,HA_OMT!$AK$3:$AK$500),2,FALSE),"") -> 0 | D23: 0 | E23: 0 | F23: =IFERROR(VLOOKUP($A23&$B23,CHOOSE({1,2},HA_OMT!$A$3:$A$500&HA_OMT!$B$3:$B$500,HA_OMT!$AM$3:$AM$500),2,FALSE),"") -> 0
A24: بنت جبيل | B24: C5 | C24: =IFERROR(VLOOKUP($A24&$B24,CHOOSE({1,2},HA_OMT!$A$3:$A$500&HA_OMT!$B$3:$B$500,HA_OMT!$AK$3:$AK$500),2,FALSE),"") -> 0 | D24: 0 | E24: 0 | F24: =IFERROR(VLOOKUP($A24&$B24,CHOOSE({1,2},HA_OMT!$A$3:$A$500&HA_OMT!$B$3:$B$500,HA_OMT!$AM$3:$AM$500),2,FALSE),"") -> 0
A25: مرجعيون | B25: C6 | C25: =IFERROR(VLOOKUP($A25&$B25,CHOOSE({1,2},HA_OMT!$A$3:$A$500&HA_OMT!$B$3:$B$500,HA_OMT!$AK$3:$AK$500),2,FALSE),"") -> 0 | D25: 0 | E25: 0 | F25: =IFERROR(VLOOKUP($A25&$B25,CHOOSE({1,2},HA_OMT!$A$3:$A$500&HA_OMT!$B$3:$B$500,HA_OMT!$AM$3:$AM$500),2,FALSE),"") -> 0
A26: حاصبيا | B26: C7 | C26: =IFERROR(VLOOKUP($A26&$B26,CHOOSE({1,2},HA_OMT!$A$3:$A$500&HA_OMT!$B$3:$B$500,HA_OMT!$AK$3:$AK$500),2,FALSE),"") -> 0 | D26: 0 | E26: 0 | F26: =IFERROR(VLOOKUP($A26&$B26,CHOOSE({1,2},HA_OMT!$A$3:$A$500&HA_OMT!$B$3:$B$500,HA_OMT!$AM$3:$AM$500),2,FALSE),"") -> 0
A27: تبنين | B27: C8 | C27: =IFERROR(VLOOKUP($A27&$B27,CHOOSE({1,2},HA_OMT!$A$3:$A$500&HA_OMT!$B$3:$B$500,HA_OMT!$AK$3:$AK$500),2,FALSE),"") -> 0 | D27: 0 | E27: 0 | F27: =IFERROR(VLOOKUP($A27&$B27,CHOOSE({1,2},HA_OMT!$A$3:$A$500&HA_OMT!$B$3:$B$500,HA_OMT!$AM$3:$AM$500),2,FALSE),"") -> 0
A28: جباع | B28: C9 | C28: =IFERROR(VLOOKUP($A28&$B28,CHOOSE({1,2},HA_OMT!$A$3:$A$500&HA_OMT!$B$3:$B$500,HA_OMT!$AK$3:$AK$500),2,FALSE),"") -> 0 | D28: 0 | E28: 0 | F28: =IFERROR(VLOOKUP($A28&$B28,CHOOSE({1,2},HA_OMT!$A$3:$A$500&HA_OMT!$B$3:$B$500,HA_OMT!$AM$3:$AM$500),2,FALSE),"") -> 0
A29: زحلة | B29: D1 | C29: =IFERROR(VLOOKUP($A29&$B29,CHOOSE({1,2},HA_OMT!$A$3:$A$500&HA_OMT!$B$3:$B$500,HA_OMT!$AK$3:$AK$500),2,FALSE),"") -> 0 | D29: 0 | E29: 0 | F29: =IFERROR(VLOOKUP($A29&$B29,CHOOSE({1,2},HA_OMT!$A$3:$A$500&HA_OMT!$B$3:$B$500,HA_OMT!$AM$3:$AM$500),2,FALSE),"") -> 0
A30: النبي شيت | B30: D10 | C30: =IFERROR(VLOOKUP($A30&$B30,CHOOSE({1,2},HA_OMT!$A$3:$A$500&HA_OMT!$B$3:$B$500,HA_OMT!$AK$3:$AK$500),2,FALSE),"") -> 0 | D30: 0 | E30: 0 | F30: =IFERROR(VLOOKUP($A30&$B30,CHOOSE({1,2},HA_OMT!$A$3:$A$500&HA_OMT!$B$3:$B$500,HA_OMT!$AM$3:$AM$500),2,FALSE),"") -> 0
A31: راشيا | B31: D2 | C31: =IFERROR(VLOOKUP($A31&$B31,CHOOSE({1,2},HA_OMT!$A$3:$A$500&HA_OMT!$B$3:$B$500,HA_OMT!$AK$3:$AK$500),2,FALSE),"") -> 0 | D31: 0 | E31: 0 | F31: =IFERROR(VLOOKUP($A31&$B31,CHOOSE({1,2},HA_OMT!$A$3:$A$500&HA_OMT!$B$3:$B$500,HA_OMT!$AM$3:$AM$500),2,FALSE),"") -> 0
A32: البقاع الغربي | B32: D3 | C32: =IFERROR(VLOOKUP($A32&$B32,CHOOSE({1,2},HA_OMT!$A$3:$A$500&HA_OMT!$B$3:$B$500,HA_OMT!$AK$3:$AK$500),2,FALSE),"") -> 0 | D32: 0 | E32: 0 | F32: =IFERROR(VLOOKUP($A32&$B32,CHOOSE({1,2},HA_OMT!$A$3:$A$500&HA_OMT!$B$3:$B$500,HA_OMT!$AM$3:$AM$500),2,FALSE),"") -> 0
A33: شمسطار | B33: D4 | C33: =IFERROR(VLOOKUP($A33&$B33,CHOOSE({1,2},HA_OMT!$A$3:$A$500&HA_OMT!$B$3:$B$500,HA_OMT!$AK$3:$AK$500),2,FALSE),"") -> 0 | D33: 0 | E33: 0 | F33: =IFERROR(VLOOKUP($A33&$B33,CHOOSE({1,2},HA_OMT!$A$3:$A$500&HA_OMT!$B$3:$B$500,HA_OMT!$AM$3:$AM$500),2,FALSE),"") -> 0
A34: بعلبك | B34: D5 | C34: =IFERROR(VLOOKUP($A34&$B34,CHOOSE({1,2},HA_OMT!$A$3:$A$500&HA_OMT!$B$3:$B$500,HA_OMT!$AK$3:$AK$500),2,FALSE),"") -> 0 | D34: 0 | E34: 0 | F34: =IFERROR(VLOOKUP($A34&$B34,CHOOSE({1,2},HA_OMT!$A$3:$A$500&HA_OMT!$B$3:$B$500,HA_OMT!$AM$3:$AM$500),2,FALSE),"") -> 0
A35: الهرمل | B35: D6 | C35: =IFERROR(VLOOKUP($A35&$B35,CHOOSE({1,2},HA_OMT!$A$3:$A$500&HA_OMT!$B$3:$B$500,HA_OMT!$AK$3:$AK$500),2,FALSE),"") -> 0 | D35: 0 | E35: 0 | F35: =IFERROR(VLOOKUP($A35&$B35,CHOOSE({1,2},HA_OMT!$A$3:$A$500&HA_OMT!$B$3:$B$500,HA_OMT!$AM$3:$AM$500),2,FALSE),"") -> 0
A36: دير الاحمر | B36: D7 | C36: =IFERROR(VLOOKUP($A36&$B36,CHOOSE({1,2},HA_OMT!$A$3:$A$500&HA_OMT!$B$3:$B$500,HA_OMT!$AK$3:$AK$500),2,FALSE),"") -> 0 | D36: 0 | E36: 0 | F36: =IFERROR(VLOOKUP($A36&$B36,CHOOSE({1,2},HA_OMT!$A$3:$A$500&HA_OMT!$B$3:$B$500,HA_OMT!$AM$3:$AM$500),2,FALSE),"") -> 0
A37: اللبوة | B37: D8 | C37: =IFERROR(VLOOKUP($A37&$B37,CHOOSE({1,2},HA_OMT!$A$3:$A$500&HA_OMT!$B$3:$B$500,HA_OMT!$AK$3:$AK$500),2,FALSE),"") -> 0 | D37: 0 | E37: 0 | F37: =IFERROR(VLOOKUP($A37&$B37,CHOOSE({1,2},HA_OMT!$A$3:$A$500&HA_OMT!$B$3:$B$500,HA_OMT!$AM$3:$AM$500),2,FALSE),"") -> 0
A38: صغبين | B38: D9 | C38: =IFERROR(VLOOKUP($A38&$B38,CHOOSE({1,2},HA_OMT!$A$3:$A$500&HA_OMT!$B$3:$B$500,HA_OMT!$AK$3:$AK$500),2,FALSE),"") -> 0 | D38: 0 | E38: 0 | F38: =IFERROR(VLOOKUP($A38&$B38,CHOOSE({1,2},HA_OMT!$A$3:$A$500&HA_OMT!$B$3:$B$500,HA_OMT!$AM$3:$AM$500),2,FALSE),"") -> 0
A39: طرابلس | B39: E1 | C39: =IFERROR(VLOOKUP($A39&$B39,CHOOSE({1,2},HA_OMT!$A$3:$A$500&HA_OMT!$B$3:$B$500,HA_OMT!$AK$3:$AK$500),2,FALSE),"") -> 0 | D39: 0 | E39: 0 | F39: =IFERROR(VLOOKUP($A39&$B39,CHOOSE({1,2},HA_OMT!$A$3:$A$500&HA_OMT!$B$3:$B$500,HA_OMT!$AM$3:$AM$500),2,FALSE),"") -> 0
A40: دوما | B40: E10 | C40: =IFERROR(VLOOKUP($A40&$B40,CHOOSE({1,2},HA_OMT!$A$3:$A$500&HA_OMT!$B$3:$B$500,HA_OMT!$AK$3:$AK$500),2,FALSE),"") -> 0 | D40: 0 | E40: 0 | F40: =IFERROR(VLOOKUP($A40&$B40,CHOOSE({1,2},HA_OMT!$A$3:$A$500&HA_OMT!$B$3:$B$500,HA_OMT!$AM$3:$AM$500),2,FALSE),"") -> 0
A41: العبدة | B41: E11 | C41: =IFERROR(VLOOKUP($A41&$B41,CHOOSE({1,2},HA_OMT!$A$3:$A$500&HA_OMT!$B$3:$B$500,HA_OMT!$AK$3:$AK$500),2,FALSE),"") -> 0 | D41: 0 | E41: 0 | F41: =IFERROR(VLOOKUP($A41&$B41,CHOOSE({1,2},HA_OMT!$A$3:$A$500&HA_OMT!$B$3:$B$500,HA_OMT!$AM$3:$AM$500),2,FALSE),"") -> 0
A42: بخعون | B42: E12 | C42: =IFERROR(VLOOKUP($A42&$B42,CHOOSE({1,2},HA_OMT!$A$3:$A$500&HA_OMT!$B$3:$B$500,HA_OMT!$AK$3:$AK$500),2,FALSE),"") -> 0 | D42: 0 | E42: 0 | F42: =IFERROR(VLOOKUP($A42&$B42,CHOOSE({1,2},HA_OMT!$A$3:$A$500&HA_OMT!$B$3:$B$500,HA_OMT!$AM$3:$AM$500),2,FALSE),"") -> 0
A43: بيت ملات | B43: E13 | C43: =IFERROR(VLOOKUP($A43&$B43,CHOOSE({1,2},HA_OMT!$A$3:$A$500&HA_OMT!$B$3:$B$500,HA_OMT!$AK$3:$AK$500),2,FALSE),"") -> 0 | D43: 0 | E43: 0 | F43: =IFERROR(VLOOKUP($A43&$B43,CHOOSE({1,2},HA_OMT!$A$3:$A$500&HA_OMT!$B$3:$B$500,HA_OMT!$AM$3:$AM$500),2,FALSE),"") -> 0
A44: المنية | B44: E2 | C44: =IFERROR(VLOOKUP($A44&$B44,CHOOSE({1,2},HA_OMT!$A$3:$A$500&HA_OMT!$B$3:$B$500,HA_OMT!$AK$3:$AK$500),2,FALSE),"") -> 0 | D44: 0 | E44: 0 | F44: =IFERROR(VLOOKUP($A44&$B44,CHOOSE({1,2},HA_OMT!$A$3:$A$500&HA_OMT!$B$3:$B$500,HA_OMT!$AM$3:$AM$500),2,FALSE),"") -> 0
A45: سير الضنية | B45: E3 | C45: =IFERROR(VLOOKUP($A45&$B45,CHOOSE({1,2},HA_OMT!$A$3:$A$500&HA_OMT!$B$3:$B$500,HA_OMT!$AK$3:$AK$500),2,FALSE),"") -> 0 | D45: 0 | E45: 0 | F45: =IFERROR(VLOOKUP($A45&$B45,CHOOSE({1,2},HA_OMT!$A$3:$A$500&HA_OMT!$B$3:$B$500,HA_OMT!$AM$3:$AM$500),2,FALSE),"") -> 0
A46: حلبا عكار | B46: E4 | C46: =IFERROR(VLOOKUP($A46&$B46,CHOOSE({1,2},HA_OMT!$A$3:$A$500&HA_OMT!$B$3:$B$500,HA_OMT!$AK$3:$AK$500),2,FALSE),"") -> 0 | D46: 0 | E46: 0 | F46: =IFERROR(VLOOKUP($A46&$B46,CHOOSE({1,2},HA_OMT!$A$3:$A$500&HA_OMT!$B$3:$B$500,HA_OMT!$AM$3:$AM$500),2,FALSE),"") -> 0
A47: القبيات | B47: E5 | C47: =IFERROR(VLOOKUP($A47&$B47,CHOOSE({1,2},HA_OMT!$A$3:$A$500&HA_OMT!$B$3:$B$500,HA_OMT!$AK$3:$AK$500),2,FALSE),"") -> 0 | D47: 0 | E47: 0 | F47: =IFERROR(VLOOKUP($A47&$B47,CHOOSE({1,2},HA_OMT!$A$3:$A$500&HA_OMT!$B$3:$B$500,HA_OMT!$AM$3:$AM$500),2,FALSE),"") -> 0
A48: البترون | B48: E6 | C48: =IFERROR(VLOOKUP($A48&$B48,CHOOSE({1,2},HA_OMT!$A$3:$A$500&HA_OMT!$B$3:$B$500,HA_OMT!$AK$3:$AK$500),2,FALSE),"") -> 0 | D48: 0 | E48: 0 | F48: =IFERROR(VLOOKUP($A48&$B48,CHOOSE({1,2},HA_OMT!$A$3:$A$500&HA_OMT!$B$3:$B$500,HA_OMT!$AM$3:$AM$500),2,FALSE),"") -> 0
A49: الكورة | B49: E7 | C49: =IFERROR(VLOOKUP($A49&$B49,CHOOSE({1,2},HA_OMT!$A$3:$A$500&HA_OMT!$B$3:$B$500,HA_OMT!$AK$3:$AK$500),2,FALSE),"") -> 0 | D49: 0 | E49: 0 | F49: =IFERROR(VLOOKUP($A49&$B49,CHOOSE({1,2},HA_OMT!$A$3:$A$500&HA_OMT!$B$3:$B$500,HA_OMT!$AM$3:$AM$500),2,FALSE),"") -> 0
A50: زغرتا | B50: E8 | C50: =IFERROR(VLOOKUP($A50&$B50,CHOOSE({1,2},HA_OMT!$A$3:$A$500&HA_OMT!$B$3:$B$500,HA_OMT!$AK$3:$AK$500),2,FALSE),"") -> 0 | D50: 0 | E50: 0 | F50: =IFERROR(VLOOKUP($A50&$B50,CHOOSE({1,2},HA_OMT!$A$3:$A$500&HA_OMT!$B$3:$B$500,HA_OMT!$AM$3:$AM$500),2,FALSE),"") -> 0
A51: بشري | B51: E9 | C51: =IFERROR(VLOOKUP($A51&$B51,CHOOSE({1,2},HA_OMT!$A$3:$A$500&HA_OMT!$B$3:$B$500,HA_OMT!$AK$3:$AK$500),2,FALSE),"") -> 0 | D51: 0 | E51: 0 | F51: =IFERROR(VLOOKUP($A51&$B51,CHOOSE({1,2},HA_OMT!$A$3:$A$500&HA_OMT!$B$3:$B$500,HA_OMT!$AM$3:$AM$500),2,FALSE),"") -> 0
A52: المجموع العام | C52: =SUM(C3:C51) -> 0 | D52: =SUM(D3:D51) -> 0 | E52: =SUM(E3:E51) -> 0 | F52: =SUM(F3:F51) -> 0

Sheet ALL
A1: 2020 | B1: ALL | C1: 2020-12-01
A2: كانون اول | B2: رمز | C2: 02/12/
C3: مغلفات | D3: هويات | E3: مغلفات OMT | F3: هويات OMT | G3: مغلفات | H3: هويات | I3: مغلفات OMT | J3: هويات OMT | K3: مغلفات | L3: هويات | M3: مغلفات OMT | N3: هويات OMT | O3: مغلفات | P3: هويات | Q3: مغلفات OMT | R3: هويات OMT | S3: مغلفات | T3: هويات | U3: مغلفات OMT | V3: هويات OMT | W3: مغلفات | X3: هويات | Y3: مغلفات OMT | Z3: هويات OMT | AA3: مغلفات | AB3: هويات | AC3: مغلفات OMT | AD3: هويات OMT | AE3: مغلفات | AF3: هويات | AG3: مغلفات OMT | AH3: هويات OMT | AI3: مغلفات | AJ3: هويات | AK3: مغلفات OMT | AL3: هويات OMT | AM3: مغلفات | AN3: هويات | AO3: مغلفات OMT | AP3: هويات OMT | AQ3: مغلفات | AR3: هويات | AS3: مغلفات OMT | AT3: هويات OMT | AU3: مغلفات | AV3: هويات | AW3: مغلفات OMT | AX3: هويات OMT | AY3: مغلفات | AZ3: هويات | BA3: مغلفات OMT | BB3: هويات OMT | BC3: مغلفات | BD3: هويات | BE3: مغلفات OMT | BF3: هويات OMT | BG3: مغلفات | BH3: هويات | BI3: مغلفات OMT | BJ3: هويات OMT | BK3: مغلفات | BL3: هويات | BM3: مغلفات OMT | BN3: هويات OMT | BO3: مغلفات | BP3: هويات | BQ3: مغلفات OMT | BR3: هويات OMT | BS3: مغلفات | BT3: هويات | BU3: مغلفات OMT | BV3: هويات OMT | BW3: مغلفات | BX3: هويات | BY3: مغلفات OMT | BZ3: هويات OMT | CA3: مغلفات | CB3: هويات | CC3: مغلفات OMT | CD3: هويات OMT | CE3: مغلفات | CF3: هويات | CG3: مغلفات OMT | CH3: هويات OMT | CI3: مغلفات | CJ3: هويات | CK3: مغلفات OMT | CL3: هويات OMT | CM3: مغلفات | CN3: هويات | CO3: مغلفات OMT | CP3: هويات OMT | CQ3: مغلفات | CR3: هويات | CS3: مغلفات OMT | CT3: هويات OMT | CU3: مغلفات | CV3: هويات | CW3: مغلفات OMT | CX3: هويات OMT | CY3: مغلفات | CZ3: هويات | DA3: مغلفات OMT | DB3: هويات OMT | DC3: مغلفات | DD3: هويات | DE3: مغلفات OMT | DF3: هويات OMT | DG3: مغلفات | DH3: هويات | DI3: مغلفات OMT | DJ3: هويات OMT | DK3: مغلفات | DL3: هويات | DM3: مغلفات OMT | DN3: هويات OMT | DO3: مغلفات | DP3: هويات | DQ3: مغلفات OMT | DR3: هويات OMT | DS3: مغلفات | DT3: هويات | DU3: مغلفات OMT | DV3: هويات OMT | DZ3: مغلفات | EA3: هويات | EB3: مغلفات OMT | EC3: هويات OMT
A4: بيروت | B4: A | C4: 4 | D4: 4 | DZ4: =SUM(C4+G4+K4+O4+S4+W4+AA4+AE4+AI4+AM4+AQ4+AU4+AY4+BC4+BG4+BK4+BO4+BS4+BW4+CA4+CE4+CI4+CM4+CQ4+CU4+CY4+DC4+DG4+DK4+DO4+DS4) -> 4 | EA4: =SUM(D4+H4+L4+P4+T4+X4+AB4+AF4+AJ4+AN4+AR4+AV4+AZ4+BD4+BH4+BL4+BP4+BT4+BX4+CB4+CF4+CJ4+CN4+CR4+CV4+CZ4+DD4+DH4+DL4+DP4+DT4) -> 4 | EB4: =SUM(E4+I4+M4+Q4+U4+Y4+AC4+AG4+AK4+AO4+AS4+AW4+BA4+BE4+BI4+BM4+BQ4+BU4+BY4+CC4+CG4+CK4+CO4+CS4+CW4+DA4+DE4+DI4+DM4+DQ4+DU4) -> 0 | EC4: =SUM(F4+J4+N4+R4+V4+Z4+AD4+AH4+AL4+AP4+AT4+AX4+BB4+BF4+BJ4+BN4+BR4+BV4+BZ4+CD4+CH4+CL4+CP4+CT4+CX4+DB4+DF4+DJ4+DN4+DR4+DV4) -> 0
A5: بعبدا | B5: B1 | C5: 3 | D5: 22 | DZ5: =SUM(C5+G5+K5+O5+S5+W5+AA5+AE5+AI5+AM5+AQ5+AU5+AY5+BC5+BG5+BK5+BO5+BS5+BW5+CA5+CE5+CI5+CM5+CQ5+CU5+CY5+DC5+DG5+DK5+DO5+DS5) -> 3 | EA5: =SUM(D5+H5+L5+P5+T5+X5+AB5+AF5+AJ5+AN5+AR5+AV5+AZ5+BD5+BH5+BL5+BP5+BT5+BX5+CB5+CF5+CJ5+CN5+CR5+CV5+CZ5+DD5+DH5+DL5+DP5+DT5) -> 22 | EB5: =SUM(E5+I5+M5+Q5+U5+Y5+AC5+AG5+AK5+AO5+AS5+AW5+BA5+BE5+BI5+BM5+BQ5+BU5+BY5+CC5+CG5+CK5+CO5+CS5+CW5+DA5+DE5+DI5+DM5+DQ5+DU5) -> 0 | EC5: =SUM(F5+J5+N5+R5+V5+Z5+AD5+AH5+AL5+AP5+AT5+AX5+BB5+BF5+BJ5+BN5+BR5+BV5+BZ5+CD5+CH5+CL5+CP5+CT5+CX5+DB5+DF5+DJ5+DN5+DR5+DV5) -> 0
A6: بكفيا | B6: B10 | C6: 4 | D6: 82 | DZ6: 4 | EA6: 82 | EB6: 0 | EC6: 0
A7: المتن الشمالي العالي | B7: B11 | C7: 5 | D7: 9 | DZ7: 5 | EA7: 9 | EB7: 0 | EC7: 0
A8: كسروان | B8: B12 | C8: 12 | D8: 63 | DZ8: 12 | EA8: 63 | EB8: 0 | EC8: 0
A9: جبيل | B9: B13 | DZ9: 0 | EA9: 0 | EB9: 0 | EC9: 0
A10: فتوح كسروان | B10: B14 | C10: 4 | D10: 22 | DZ10: 4 | EA10: 22 | EB10: 0 | EC10: 0
A11: الشويفات | B11: B2 | C11: 8 | D11: 24 | DZ11: 8 | EA11: 24 | EB11: 0 | EC11: 0
A12: برجا | B12: B3 | DZ12: 0 | EA12: 0 | EB12: 0 | EC12: 0
A13: شحيم | B13: B4 | DZ13: 0 | EA13: 0 | EB13: 0 | EC13: 0
A14: عاليه | B14: B5 | C14: 5 | D14: 7 | DZ14: 5 | EA14: 7 | EB14: 0 | EC14: 0
A15: حمانا | B15: B6 | DZ15: 0 | EA15: 0 | EB15: 0 | EC15: 0
A16: الشوف | B16: B7 | C16: 1 | D16: 1 | DZ16: 1 | EA16: 1 | EB16: 0 | EC16: 0
A17: المتن | B17: B8 | C17: 6 | D17: 14 | DZ17: 6 | EA17: 14 | EB17: 0 | EC17: 0
A18: انطلياس | B18: B9 | C18: 7 | D18: 28 | DZ18: 7 | EA18: 28 | EB18: 0 | EC18: 0
A19: صيدا | B19: C1 | DZ19: 0 | EA19: 0 | EB19: 0 | EC19: 0
A20: جويا | B20: C10 | DZ20: 0 | EA20: 0 | EB20: 0 | EC20: 0
A21: ميس الجبل | B21: C11 | DZ21: 0 | EA21: 0 | EB21: 0 | EC21: 0
A22: صور | B22: C2 | DZ22: 0 | EA22: 0 | EB22: 0 | EC22: 0
A23: جزين | B23: C3 | DZ23: 0 | EA23: 0 | EB23: 0 | EC23: 0
A24: النبطية | B24: C4 | C24: 2 | D24: 2 | DZ24: 2 | EA24: 2 | EB24: 0 | EC24: 0
A25: بنت جبيل | B25: C5 | C25: 2 | D25: 3 | DZ25: 2 | EA25: 3 | EB25: 0 | EC25: 0
A26: مرجعيون | B26: C6 | DZ26: 0 | EA26: 0 | EB26: 0 | EC26: 0
A27: حاصبيا | B27: C7 | DZ27: 0 | EA27: 0 | EB27: 0 | EC27: 0
A28: تبنين | B28: C8 | C28: 2 | D28: 3 | DZ28: 2 | EA28: 3 | EB28: 0 | EC28: 0
A29: جباع | B29: C9 | C29: 1 | D29: 1 | DZ29: 1 | EA29: 1 | EB29: 0 | EC29: 0
A30: زحلة | B30: D1 | C30: 4 | D30: 21 | DZ30: 4 | EA30: 21 | EB30: 0 | EC30: 0
A31: النبي شيت | B31: D10 | C31: 11 | D31: 68 | DZ31: 11 | EA31: 68 | EB31: 0 | EC31: 0
A32: راشيا | B32: D2 | DZ32: 0 | EA32: 0 | EB32: 0 | EC32: 0
A33: البقاع الغربي | B33: D3 | C33: 2 | D33: 4 | DZ33: 2 | EA33: 4 | EB33: 0 | EC33: 0
A34: شمسطار | B34: D4 | C34: 5 | D34: 10 | DZ34: 5 | EA34: 10 | EB34: 0 | EC34: 0
A35: بعلبك | B35: D5 | C35: 19 | D35: 58 | DZ35: 19 | EA35: 58 | EB35: 0 | EC35: 0
A36: الهرمل | B36: D6 | DZ36: 0 | EA36: 0 | EB36: 0 | EC36: 0
A37: دير الاحمر | B37: D7 | C37: 6 | D37: 14 | DZ37: 6 | EA37: 14 | EB37: 0 | EC37: 0
A38: اللبوة | B38: D8 | DZ38: 0 | EA38: 0 | EB38: 0 | EC38: 0
A39: صغبين | B39: D9 | C39: 2 | D39: 2 | DZ39: 2 | EA39: 2 | EB39: 0 | EC39: 0
A40: طرابلس | B40: E1 | C40: 4 | D40: 7 | DZ40: 4 | EA40: 7 | EB40: 0 | EC40: 0
A41: دوما | B41: E10 | C41: 4 | D41: 9 | DZ41: 4 | EA41: 9 | EB41: 0 | EC41: 0
A42: العبدة | B42: E11 | DZ42: 0 | EA42: 0 | EB42: 0 | EC42: 0
A43: بخعون | B43: E12 | DZ43: 0 | EA43: 0 | EB43: 0 | EC43: 0
A44: بيت ملات | B44: E13 | DZ44: 0 | EA44: 0 | EB44: 0 | EC44: 0
A45: المنية | B45: E2 | C45: 1 | D45: 2 | DZ45: 1 | EA45: 2 | EB45: 0 | EC45: 0
A46: سير الضنية | B46: E3 | C46: 2 | D46: 2 | DZ46: 2 | EA46: 2 | EB46: 0 | EC46: 0
A47: حلبا عكار | B47: E4 | DZ47: 0 | EA47: 0 | EB47: 0 | EC47: 0
A48: القبيات | B48: E5 | DZ48: 0 | EA48: 0 | EB48: 0 | EC48: 0
A49: البترون | B49: E6 | C49: 3 | D49: 8 | DZ49: 3 | EA49: 8 | EB49: 0 | EC49: 0
A50: الكورة | B50: E7 | C50: 5 | D50: 36 | DZ50: 5 | EA50: 36 | EB50: 0 | EC50: 0
A51: زغرتا | B51: E8 | C51: 1 | D51: 2 | DZ51: 1 | EA51: 2 | EB51: 0 | EC51: 0
A52: بشري | B52: E9 | C52: 4 | D52: 22 | DZ52: 4 | EA52: 22 | EB52: 0 | EC52: 0
A53: المجموع | C53: =SUM(C4:C52) -> 139 | D53: =SUM(D4:D52) -> 550 | E53: =SUM(E4:E52) -> 0 | F53: =SUM(F4:F52) -> 0 | G53: =SUM(G4:G52) -> 0 | H53: 0 | I53: 0 | J53: 0 | K53: 0 | L53: 0 | M53: 0 | N53: 0 | O53: 0 | P53: 0 | Q53: 0 | R53: 0 | S53: 0 | T53: 0 | U53: 0 | V53: 0 | W53: 0 | X53: 0 | Y53: 0 | Z53: 0 | AA53: 0 | AB53: 0 | AC53: 0 | AD53: 0 | AE53: 0 | AF53: 0 | AG53: 0 | AH53: 0 | AI53: 0 | AJ53: 0 | AK53: 0 | AL53: 0 | AM53: 0 | AN53: 0 | AO53: 0 | AP53: 0 | AQ53: 0 | AR53: 0 | AS53: 0 | AT53: 0 | AU53: 0 | AV53: 0 | AW53: 0 | AX53: 0 | AY53: =SUM(AY4:AY52) -> 0 | AZ53: =SUM(AZ4:AZ52) -> 0 | BA53: =SUM(BA4:BA52) -> 0 | BB53: =SUM(BB4:BB52) -> 0 | BC53: =SUM(BC4:BC52) -> 0 | BD53: =SUM(BD4:BD52) -> 0 | BE53: =SUM(BE4:BE52) -> 0 | BF53: =SUM(BF4:BF52) -> 0 | BG53: =SUM(BG4:BG52) -> 0 | BH53: =SUM(BH4:BH52) -> 0 | BI53: =SUM(BI4:BI52) -> 0 | BJ53: =SUM(BJ4:BJ52) -> 0 | BK53: =SUM(BK4:BK52) -> 0 | BL53: =SUM(BL4:BL52) -> 0 | BM53: =SUM(BM4:BM52) -> 0 | BN53: =SUM(BN4:BN52) -> 0 | BO53: =SUM(BO4:BO52) -> 0 | BP53: =SUM(BP4:BP52) -> 0 | BQ53: =SUM(BQ4:BQ52) -> 0 | BR53: =SUM(BR4:BR52) -> 0 | BS53: =SUM(BS4:BS52) -> 0 | BT53: =SUM(BT4:BT52) -> 0 | BU53: =SUM(BU4:BU52) -> 0 | BV53: =SUM(BV4:BV52) -> 0 | BW53: =SUM(BW4:BW52) -> 0 | BX53: =SUM(BX4:BX52) -> 0 | BY53: =SUM(BY4:BY52) -> 0 | BZ53: =SUM(BZ4:BZ52) -> 0 | CA53: =SUM(CA4:CA52) -> 0 | CB53: =SUM(CB4:CB52) -> 0 | CC53: =SUM(CC4:CC52) -> 0 | CD53: =SUM(CD4:CD52) -> 0 | CE53: =SUM(CE4:CE52) -> 0 | CF53: =SUM(CF4:CF52) -> 0 | CG53: =SUM(CG4:CG52) -> 0 | CH53: =SUM(CH4:CH52) -> 0 | CI53: =SUM(CI4:CI52) -> 0 | CJ53: =SUM(CJ4:CJ52) -> 0 | CK53: =SUM(CK4:CK52) -> 0 | CL53: =SUM(CL4:CL52) -> 0 | CM53: =SUM(CM4:CM52) -> 0 | CN53: =SUM(CN4:CN52) -> 0 | CO53: =SUM(CO4:CO52) -> 0 | CP53: =SUM(CP4:CP52) -> 0 | CQ53: =SUM(CQ4:CQ52) -> 0 | CR53: =SUM(CR4:CR52) -> 0 | CS53: =SUM(CS4:CS52) -> 0 | CT53: =SUM(CT4:CT52) -> 0 | CU53: =SUM(CU4:CU52) -> 0 | CV53: =SUM(CV4:CV52) -> 0 | CW53: =SUM(CW4:CW52) -> 0 | CX53: =SUM(CX4:CX52) -> 0 | CY53: =SUM(CY4:CY52) -> 0 | CZ53: =SUM(CZ4:CZ52) -> 0 | DA53: =SUM(DA4:DA52) -> 0 | DB53: =SUM(DB4:DB52) -> 0 | DC53: =SUM(DC4:DC52) -> 0 | DD53: =SUM(DD4:DD52) -> 0 | DE53: =SUM(DE4:DE52) -> 0 | DF53: =SUM(DF4:DF52) -> 0 | DG53: =SUM(DG4:DG52) -> 0 | DH53: =SUM(DH4:DH52) -> 0 | DI53: =SUM(DI4:DI52) -> 0 | DJ53: =SUM(DJ4:DJ52) -> 0 | DK53: =SUM(DK4:DK52) -> 0 | DL53: =SUM(DL4:DL52) -> 0 | DM53: =SUM(DM4:DM52) -> 0 | DN53: =SUM(DN4:DN52) -> 0 | DO53: =SUM(DO4:DO52) -> 0 | DP53: =SUM(DP4:DP52) -> 0 | DQ53: =SUM(DQ4:DQ52) -> 0 | DR53: =SUM(DR4:DR52) -> 0 | DS53: =SUM(DS4:DS52) -> 0 | DT53: =SUM(DT4:DT52) -> 0 | DU53: =SUM(DU4:DU52) -> 0 | DV53: =SUM(DV4:DV52) -> 0 | DZ53: 139 | EA53: 550 | EB53: 0 | EC53: 0

Sheet جدول تسليم البطاقات
A1: وزارة الداخــلية والبلــديات
A2: المديرية العامة للاحوال الشخصية | G2: جانب: رئيس دائرة التنسيق والمراقبة .
A4: رقم المحفوظات:
A5: رقم الصادر:
F6: الموضوع: بيان بحركة استمارات وبطاقات الهوية في مشغل بطاقة الهوية .
F7: المرجع: المذكرة رقم 3/ص تاريخ 2007/3/9 .
A9: نودعكم بياناً بعدد بطاقات الهوية المسلمة الى اقلام النفوس وعدد الاستمارات المسلمة الينا من
A10: قبل هذه الاقلام خلال شهر كانون الاول من العـام 2020
A11: اقلام النفوس | C11: عدد الهويات | D11: استمارات | E11: عدد الاستمارات | G11: اقلام النفوس | I11: عدد الهويات | J11: استمارات | K11: عدد الاستمارات
C12: المسلمة الى القلم | D12: محطة التبصيم | E12: المستلمة من القلم | I12: المسلمة الى القلم | J12: محطة التبصيم | K12: المستلمة من القلم
A13: بيروت | B13: A | C13: =IFERROR(VLOOKUP($A13&$B13,CHOOSE({1,2},HA!$A$3:$A$500&HA!$B$3:$B$500,HA!$AK$3:$AK$500),2,FALSE),"") -> 4 | G13: جباع | H13: C9 | I13: =IFERROR(VLOOKUP($G13&$H13,CHOOSE({1,2},HA!$A$28:$A$500&HA!$B$28:$B$500,HA!$AK$28:$AK$500),2,FALSE),"") -> 1
A14: بعبدا | B14: B1 | C14: =IFERROR(VLOOKUP($A14&$B14,CHOOSE({1,2},HA!$A$3:$A$500&HA!$B$3:$B$500,HA!$AK$3:$AK$500),2,FALSE),"") -> 22 | G14: زحلة | H14: D1 | I14: =IFERROR(VLOOKUP($G14&$H14,CHOOSE({1,2},HA!$A$28:$A$500&HA!$B$28:$B$500,HA!$AK$28:$AK$500),2,FALSE),"") -> 21
A15: بكفيا | B15: B10 | C15: =IFERROR(VLOOKUP($A15&$B15,CHOOSE({1,2},HA!$A$3:$A$500&HA!$B$3:$B$500,HA!$AK$3:$AK$500),2,FALSE),"") -> 82 | G15: النبي شيت | H15: D10 | I15: =IFERROR(VLOOKUP($G15&$H15,CHOOSE({1,2},HA!$A$28:$A$500&HA!$B$28:$B$500,HA!$AK$28:$AK$500),2,FALSE),"") -> 68
A16: المتن الشمالي العالي | B16: B11 | C16: =IFERROR(VLOOKUP($A16&$B16,CHOOSE({1,2},HA!$A$3:$A$500&HA!$B$3:$B$500,HA!$AK$3:$AK$500),2,FALSE),"") -> 9 | G16: راشيا | H16: D2 | I16: =IFERROR(VLOOKUP($G16&$H16,CHOOSE({1,2},HA!$A$28:$A$500&HA!$B$28:$B$500,HA!$AK$28:$AK$500),2,FALSE),"") -> 0
A17: كسروان | B17: B12 | C17: =IFERROR(VLOOKUP($A17&$B17,CHOOSE({1,2},HA!$A$3:$A$500&HA!$B$3:$B$500,HA!$AK$3:$AK$500),2,FALSE),"") -> 63 | G17: البقاع الغربي | H17: D3 | I17: =IFERROR(VLOOKUP($G17&$H17,CHOOSE({1,2},HA!$A$28:$A$500&HA!$B$28:$B$500,HA!$AK$28:$AK$500),2,FALSE),"") -> 4
A18: جبيل | B18: B13 | C18: =IFERROR(VLOOKUP($A18&$B18,CHOOSE({1,2},HA!$A$3:$A$500&HA!$B$3:$B$500,HA!$AK$3:$AK$500),2,FALSE),"") -> 0 | G18: شمسطار | H18: D4 | I18: =IFERROR(VLOOKUP($G18&$H18,CHOOSE({1,2},HA!$A$28:$A$500&HA!$B$28:$B$500,HA!$AK$28:$AK$500),2,FALSE),"") -> 10
A19: فتوح كسروان | B19: B14 | C19: =IFERROR(VLOOKUP($A19&$B19,CHOOSE({1,2},HA!$A$3:$A$500&HA!$B$3:$B$500,HA!$AK$3:$AK$500),2,FALSE),"") -> 22 | G19: بعلبك | H19: D5 | I19: =IFERROR(VLOOKUP($G19&$H19,CHOOSE({1,2},HA!$A$28:$A$500&HA!$B$28:$B$500,HA!$AK$28:$AK$500),2,FALSE),"") -> 58
A20: الشويفات | B20: B2 | C20: =IFERROR(VLOOKUP($A20&$B20,CHOOSE({1,2},HA!$A$3:$A$500&HA!$B$3:$B$500,HA!$AK$3:$AK$500),2,FALSE),"") -> 24 | G20: الهرمل | H20: D6 | I20: =IFERROR(VLOOKUP($G20&$H20,CHOOSE({1,2},HA!$A$28:$A$500&HA!$B$28:$B$500,HA!$AK$28:$AK$500),2,FALSE),"") -> 0
A21: برجا | B21: B3 | C21: =IFERROR(VLOOKUP($A21&$B21,CHOOSE({1,2},HA!$A$3:$A$500&HA!$B$3:$B$500,HA!$AK$3:$AK$500),2,FALSE),"") -> 0 | G21: دير الاحمر | H21: D7 | I21: =IFERROR(VLOOKUP($G21&$H21,CHOOSE({1,2},HA!$A$28:$A$500&HA!$B$28:$B$500,HA!$AK$28:$AK$500),2,FALSE),"") -> 14
A22: شحيم | B22: B4 | C22: =IFERROR(VLOOKUP($A22&$B22,CHOOSE({1,2},HA!$A$3:$A$500&HA!$B$3:$B$500,HA!$AK$3:$AK$500),2,FALSE),"") -> 0 | G22: اللبوة | H22: D8 | I22: =IFERROR(VLOOKUP($G22&$H22,CHOOSE({1,2},HA!$A$28:$A$500&HA!$B$28:$B$500,HA!$AK$28:$AK$500),2,FALSE),"") -> 0
A23: عاليه | B23: B5 | C23: =IFERROR(VLOOKUP($A23&$B23,CHOOSE({1,2},HA!$A$3:$A$500&HA!$B$3:$B$500,HA!$AK$3:$AK$500),2,FALSE),"") -> 7 | G23: صغبين | H23: D9 | I23: =IFERROR(VLOOKUP($G23&$H23,CHOOSE({1,2},HA!$A$28:$A$500&HA!$B$28:$B$500,HA!$AK$28:$AK$500),2,FALSE),"") -> 2
A24: حمانا | B24: B6 | C24: =IFERROR(VLOOKUP($A24&$B24,CHOOSE({1,2},HA!$A$3:$A$500&HA!$B$3:$B$500,HA!$AK$3:$AK$500),2,FALSE),"") -> 0 | G24: طرابلس | H24: E1 | I24: =IFERROR(VLOOKUP($G24&$H24,CHOOSE({1,2},HA!$A$28:$A$500&HA!$B$28:$B$500,HA!$AK$28:$AK$500),2,FALSE),"") -> 7
A25: الشوف | B25: B7 | C25: =IFERROR(VLOOKUP($A25&$B25,CHOOSE({1,2},HA!$A$3:$A$500&HA!$B$3:$B$500,HA!$AK$3:$AK$500),2,FALSE),"") -> 1 | G25: دوما | H25: E10 | I25: =IFERROR(VLOOKUP($G25&$H25,CHOOSE({1,2},HA!$A$28:$A$500&HA!$B$28:$B$500,HA!$AK$28:$AK$500),2,FALSE),"") -> 9
A26: المتن | B26: B8 | C26: =IFERROR(VLOOKUP($A26&$B26,CHOOSE({1,2},HA!$A$3:$A$500&HA!$B$3:$B$500,HA!$AK$3:$AK$500),2,FALSE),"") -> 14 | G26: العبدة | H26: E11 | I26: =IFERROR(VLOOKUP($G26&$H26,CHOOSE({1,2},HA!$A$28:$A$500&HA!$B$28:$B$500,HA!$AK$28:$AK$500),2,FALSE),"") -> 0
A27: انطلياس | B27: B9 | C27: =IFERROR(VLOOKUP($A27&$B27,CHOOSE({1,2},HA!$A$3:$A$500&HA!$B$3:$B$500,HA!$AK$3:$AK$500),2,FALSE),"") -> 28 | G27: بخعون | H27: E12 | I27: =IFERROR(VLOOKUP($G27&$H27,CHOOSE({1,2},HA!$A$28:$A$500&HA!$B$28:$B$500,HA!$AK$28:$AK$500),2,FALSE),"") -> 0
A28: صيدا | B28: C1 | C28: =IFERROR(VLOOKUP($A28&$B28,CHOOSE({1,2},HA!$A$3:$A$500&HA!$B$3:$B$500,HA!$AK$3:$AK$500),2,FALSE),"") -> 0 | G28: بيت ملات | H28: E13 | I28: =IFERROR(VLOOKUP($G28&$H28,CHOOSE({1,2},HA!$A$28:$A$500&HA!$B$28:$B$500,HA!$AK$28:$AK$500),2,FALSE),"") -> 0
A29: جويا | B29: C10 | C29: =IFERROR(VLOOKUP($A29&$B29,CHOOSE({1,2},HA!$A$3:$A$500&HA!$B$3:$B$500,HA!$AK$3:$AK$500),2,FALSE),"") -> 0 | G29: المنية | H29: E2 | I29: =IFERROR(VLOOKUP($G29&$H29,CHOOSE({1,2},HA!$A$28:$A$500&HA!$B$28:$B$500,HA!$AK$28:$AK$500),2,FALSE),"") -> 2
A30: ميس الجبل | B30: C11 | C30: =IFERROR(VLOOKUP($A30&$B30,CHOOSE({1,2},HA!$A$3:$A$500&HA!$B$3:$B$500,HA!$AK$3:$AK$500),2,FALSE),"") -> 0 | G30: سير الضنية | H30: E3 | I30: =IFERROR(VLOOKUP($G30&$H30,CHOOSE({1,2},HA!$A$28:$A$500&HA!$B$28:$B$500,HA!$AK$28:$AK$500),2,FALSE),"") -> 2
A31: صور | B31: C2 | C31: =IFERROR(VLOOKUP($A31&$B31,CHOOSE({1,2},HA!$A$3:$A$500&HA!$B$3:$B$500,HA!$AK$3:$AK$500),2,FALSE),"") -> 0 | G31: حلبا عكار | H31: E4 | I31: =IFERROR(VLOOKUP($G31&$H31,CHOOSE({1,2},HA!$A$28:$A$500&HA!$B$28:$B$500,HA!$AK$28:$AK$500),2,FALSE),"") -> 0
A32: جزين | B32: C3 | C32: =IFERROR(VLOOKUP($A32&$B32,CHOOSE({1,2},HA!$A$3:$A$500&HA!$B$3:$B$500,HA!$AK$3:$AK$500),2,FALSE),"") -> 0 | G32: القبيات | H32: E5 | I32: =IFERROR(VLOOKUP($G32&$H32,CHOOSE({1,2},HA!$A$28:$A$500&HA!$B$28:$B$500,HA!$AK$28:$AK$500),2,FALSE),"") -> 0
A33: النبطية | B33: C4 | C33: =IFERROR(VLOOKUP($A33&$B33,CHOOSE({1,2},HA!$A$3:$A$500&HA!$B$3:$B$500,HA!$AK$3:$AK$500),2,FALSE),"") -> 2 | G33: البترون | H33: E6 | I33: =IFERROR(VLOOKUP($G33&$H33,CHOOSE({1,2},HA!$A$28:$A$500&HA!$B$28:$B$500,HA!$AK$28:$AK$500),2,FALSE),"") -> 8
A34: بنت جبيل | B34: C5 | C34: =IFERROR(VLOOKUP($A34&$B34,CHOOSE({1,2},HA!$A$3:$A$500&HA!$B$3:$B$500,HA!$AK$3:$AK$500),2,FALSE),"") -> 3 | G34: الكورة | H34: E7 | I34: =IFERROR(VLOOKUP($G34&$H34,CHOOSE({1,2},HA!$A$28:$A$500&HA!$B$28:$B$500,HA!$AK$28:$AK$500),2,FALSE),"") -> 36
A35: مرجعيون | B35: C6 | C35: =IFERROR(VLOOKUP($A35&$B35,CHOOSE({1,2},HA!$A$3:$A$500&HA!$B$3:$B$500,HA!$AK$3:$AK$500),2,FALSE),"") -> 0 | G35: زغرتا | H35: E8 | I35: =IFERROR(VLOOKUP($G35&$H35,CHOOSE({1,2},HA!$A$28:$A$500&HA!$B$28:$B$500,HA!$AK$28:$AK$500),2,FALSE),"") -> 2
A36: حاصبيا | B36: C7 | C36: =IFERROR(VLOOKUP($A36&$B36,CHOOSE({1,2},HA!$A$3:$A$500&HA!$B$3:$B$500,HA!$AK$3:$AK$500),2,FALSE),"") -> 0 | G36: بشري | H36: E9 | I36: =IFERROR(VLOOKUP($G36&$H36,CHOOSE({1,2},HA!$A$28:$A$500&HA!$B$28:$B$500,HA!$AK$28:$AK$500),2,FALSE),"") -> 22
A37: تبنين | B37: C8 | C37: =IFERROR(VLOOKUP($A37&$B37,CHOOSE({1,2},HA!$A$3:$A$500&HA!$B$3:$B$500,HA!$AK$3:$AK$500),2,FALSE),"") -> 3
C38: =SUM(C13:C37) -> 284 | G38: المجموع العام | I38: =SUM(C38+I37) -> 284
A40: مكتب الفـرز والتوزيـع | G40: مكتـب المقـاصة
A41: التوقيــع | G41: التوقيــع
